Body Name,Body,Service Label,Service Code,CIPFA Detailed Expenditure Type,CIPFA Detailed Expenditure Code,Date,Transaction Number,Net Amount,Supplier Name
Nottinghamshire County Council,1111/1001,Children and Young People,CYP,Employee Related,ABA,24.01.2012,10-06097,2083.33,National College For School Leaders
Nottinghamshire County Council,1111/1001,Children and Young People,CYP,Employee Related,ABA,30.01.2012,10-06851,1800,Baaf
Nottinghamshire County Council,1111/1001,Children and Young People,CYP,Employee Related,ABA,30.01.2012,10-06852,1380,In Trac Training & Consultancy Ltd
Nottinghamshire County Council,1111/1001,Children and Young People,CYP,Employee Related,ABA,31.01.2012,10-10000,1800,Baaf
Nottinghamshire County Council,1111/1001,Children and Young People,CYP,Premises Related,BAA,09.01.2012,10-04069,1095,Environtec Ltd
Nottinghamshire County Council,1111/1001,Children and Young People,CYP,Premises Related,BAA,11.01.2012,10-04457,853.03,Gopak Ltd
Nottinghamshire County Council,1111/1001,Children and Young People,CYP,Premises Related,BAA,23.01.2012,10-05906,651,Lukes & Godwin Elect Contractors
Nottinghamshire County Council,1111/1001,Children and Young People,CYP,Premises Related,BAA,24.01.2012,10-05360,1076.25,Dorma Uk Limited
Nottinghamshire County Council,1111/1001,Children and Young People,CYP,Premises Related,BAA,25.01.2012,10-10107,872.5,Corbett Office Solutions
Nottinghamshire County Council,1111/1001,Children and Young People,CYP,Premises Related,BAA,26.01.2012,10-06485,1293.12,Kone Plc
Nottinghamshire County Council,1111/1001,Children and Young People,CYP,Premises Related,BAA,27.01.2012,10-06666,580,Arnold Electrical
Nottinghamshire County Council,1111/1001,Children and Young People,CYP,Premises Related,BAA,31.01.2012,10-09957,559.68,M Shooter
Nottinghamshire County Council,1111/1001,Children and Young People,CYP,Premises Related,BBA,17.01.2012,10-05374,2013.13,Television Install.Serv Mansfield L
Nottinghamshire County Council,1111/1001,Children and Young People,CYP,Premises Related,BCA,23.01.2012,10-05988,1974.29,King Edwin Primary School
Nottinghamshire County Council,1111/1001,Children and Young People,CYP,Premises Related,BDA,05.01.2012,10-03573,12660.42,The Derbyshire Hotel
Nottinghamshire County Council,1111/1001,Children and Young People,CYP,Premises Related,BDA,05.01.2012,10-03742,633,Notts Enterprises Ltd
Nottinghamshire County Council,1111/1001,Children and Young People,CYP,Premises Related,BDA,05.01.2012,10-03755,944.4,The Oaklands - Benefits
Nottinghamshire County Council,1111/1001,Children and Young People,CYP,Premises Related,BDA,05.01.2012,10-03756,2633.7,Countrywide Care Homes Ltd T/A Gate
Nottinghamshire County Council,1111/1001,Children and Young People,CYP,Premises Related,BDA,05.01.2012,10-03757,602.55,Mgb Care Services Client Account
Nottinghamshire County Council,1111/1001,Children and Young People,CYP,Premises Related,BDA,05.01.2012,10-03758,2147.85,HC-One Ltd (PA)
Nottinghamshire County Council,1111/1001,Children and Young People,CYP,Premises Related,BDA,05.01.2012,10-03759,5202.64,Barnsley Premier Leisure
Nottinghamshire County Council,1111/1001,Children and Young People,CYP,Premises Related,BDA,05.01.2012,10-03760,5202.64,Barnsley Premier Leisure
Nottinghamshire County Council,1111/1001,Children and Young People,CYP,Premises Related,BDA,05.01.2012,10-03761,1407.91,Barnsley Premier Leisure
Nottinghamshire County Council,1111/1001,Children and Young People,CYP,Premises Related,BDA,05.01.2012,10-03762,3200.04,Barnsley Premier Leisure
Nottinghamshire County Council,1111/1001,Children and Young People,CYP,Premises Related,BDA,06.01.2012,10-03943,6399.35,Notts Enterprises Ltd
Nottinghamshire County Council,1111/1001,Children and Young People,CYP,Premises Related,BDA,06.01.2012,10-03979,578.6,Amber House Refuge
Nottinghamshire County Council,1111/1001,Children and Young People,CYP,Premises Related,BDA,06.01.2012,10-03980,578.6,Amber House Refuge
Nottinghamshire County Council,1111/1001,Children and Young People,CYP,Premises Related,BDA,06.01.2012,10-03981,1984.31,Amber House Refuge
Nottinghamshire County Council,1111/1001,Children and Young People,CYP,Premises Related,BDA,10.01.2012,10-04148,5202.64,Barnsley Premier Leisure
Nottinghamshire County Council,1111/1001,Children and Young People,CYP,Premises Related,BDA,12.01.2012,10-04631,602.55,Mgb Care Services Client Account
Nottinghamshire County Council,1111/1001,Children and Young People,CYP,Premises Related,BDA,17.01.2012,10-05273,537.6,Sports & Leisure Management
Nottinghamshire County Council,1111/1001,Children and Young People,CYP,Premises Related,BDA,19.01.2012,10-05598,683.18,Cbre Ltd
Nottinghamshire County Council,1111/1001,Children and Young People,CYP,Premises Related,BDA,20.01.2012,10-05799,685.68,Department Of Work & Pensions Bac
Nottinghamshire County Council,1111/1001,Children and Young People,CYP,Premises Related,BDA,20.01.2012,10-05800,552.5,Havana House Nottingham Ltd
Nottinghamshire County Council,1111/1001,Children and Young People,CYP,Premises Related,BDA,20.01.2012,10-05801,602.55,Mgb Care Services Client Account
Nottinghamshire County Council,1111/1001,Children and Young People,CYP,Premises Related,BDA,20.01.2012,10-05802,958.25,RS Care Homes Ltd
Nottinghamshire County Council,1111/1001,Children and Young People,CYP,Premises Related,BDA,23.01.2012,10-06001,2187.1,Slm Community Leisure Ltd
Nottinghamshire County Council,1111/1001,Children and Young People,CYP,Premises Related,BDA,23.01.2012,10-06012,2904.72,Mansfield District Council
Nottinghamshire County Council,1111/1001,Children and Young People,CYP,Premises Related,BDA,25.01.2012,10-06315,2187.1,Slm Community Leisure Ltd
Nottinghamshire County Council,1111/1001,Children and Young People,CYP,Premises Related,BDA,27.01.2012,10-06682,9926,Making It! Enterprises Ltd
Nottinghamshire County Council,1111/1001,Children and Young People,CYP,Premises Related,BDA,27.01.2012,10-06685,9926,Making It! Enterprises Ltd
Nottinghamshire County Council,1111/1001,Children and Young People,CYP,Premises Related,BDA,27.01.2012,10-06806,602.55,Mgb Care Services Client Account
Nottinghamshire County Council,1111/1001,Children and Young People,CYP,Premises Related,BFA,05.01.2012,10-03634,2390.37,Severn Trent Water Ltd
Nottinghamshire County Council,1111/1001,Children and Young People,CYP,Premises Related,BFA,05.01.2012,10-03636,1841.28,Severn Trent Water Ltd
Nottinghamshire County Council,1111/1001,Children and Young People,CYP,Premises Related,BFA,05.01.2012,10-03637,3136.59,Severn Trent Water Ltd
Nottinghamshire County Council,1111/1001,Children and Young People,CYP,Premises Related,BFA,11.01.2012,10-04477,664.74,Severn Trent Water Ltd
Nottinghamshire County Council,1111/1001,Children and Young People,CYP,Premises Related,BFA,12.01.2012,10-04750,831.21,Severn Trent Water Ltd
Nottinghamshire County Council,1111/1001,Children and Young People,CYP,Premises Related,BFA,12.01.2012,10-04751,2358.2,Severn Trent Water Ltd
Nottinghamshire County Council,1111/1001,Children and Young People,CYP,Premises Related,BFA,16.01.2012,10-05020,604.48,Phs Group Plc
Nottinghamshire County Council,1111/1001,Children and Young People,CYP,Premises Related,BFA,17.01.2012,10-05355,1286.26,Severn Trent Water Ltd
Nottinghamshire County Council,1111/1001,Children and Young People,CYP,Premises Related,BFA,27.01.2012,10-06664,650.2,Severn Trent Water Ltd
Nottinghamshire County Council,1111/1001,Children and Young People,CYP,Premises Related,BJA,27.01.2012,10-06683,1577.6,Making It! Enterprises Ltd
Nottinghamshire County Council,1111/1001,Children and Young People,CYP,Premises Related,BJA,27.01.2012,10-06684,1972,Making It! Enterprises Ltd
Nottinghamshire County Council,1111/1001,Children and Young People,CYP,Premises Related,BJA,31.01.2012,10-10032,564.7,Phs Group Plc
Nottinghamshire County Council,1111/1001,Children and Young People,CYP,Transport Related,CCA,04.01.2012,10-00189,11936.82,Pathway Care Solutions II Ltd
Nottinghamshire County Council,1111/1001,Children and Young People,CYP,Transport Related,CCA,04.01.2012,10-00190,7445.13,Pathway Care Solutions II Ltd
Nottinghamshire County Council,1111/1001,Children and Young People,CYP,Transport Related,CCA,05.01.2012,10-03577,2724.86,Taxicover Uk Ltd
Nottinghamshire County Council,1111/1001,Children and Young People,CYP,Transport Related,CCA,05.01.2012,10-03580,1776.06,Taxicover Uk Ltd
Nottinghamshire County Council,1111/1001,Children and Young People,CYP,Transport Related,CCA,05.01.2012,10-03581,861.09,A Line Taxis
Nottinghamshire County Council,1111/1001,Children and Young People,CYP,Transport Related,CCA,05.01.2012,10-03582,861,All Wayz Travel
Nottinghamshire County Council,1111/1001,Children and Young People,CYP,Transport Related,CCA,05.01.2012,10-03583,770,All Wayz Travel
Nottinghamshire County Council,1111/1001,Children and Young People,CYP,Transport Related,CCA,05.01.2012,10-03584,1540,Arnold Acorn Travel
Nottinghamshire County Council,1111/1001,Children and Young People,CYP,Transport Related,CCA,05.01.2012,10-03586,3056.76,Arrow Specialised Transport Ltd
Nottinghamshire County Council,1111/1001,Children and Young People,CYP,Transport Related,CCA,05.01.2012,10-03587,1261.4,Arrow Specialised Transport Ltd
Nottinghamshire County Council,1111/1001,Children and Young People,CYP,Transport Related,CCA,05.01.2012,10-03588,528,Arrow Specialised Transport Ltd
Nottinghamshire County Council,1111/1001,Children and Young People,CYP,Transport Related,CCA,05.01.2012,10-03589,1508.36,Arrow Specialised Transport Ltd
Nottinghamshire County Council,1111/1001,Children and Young People,CYP,Transport Related,CCA,05.01.2012,10-03590,1519.56,Arrow Specialised Transport Ltd
Nottinghamshire County Council,1111/1001,Children and Young People,CYP,Transport Related,CCA,05.01.2012,10-03591,1491.42,Arrow Specialised Transport Ltd
Nottinghamshire County Council,1111/1001,Children and Young People,CYP,Transport Related,CCA,05.01.2012,10-03592,2590,Arrow Specialised Transport Ltd
Nottinghamshire County Council,1111/1001,Children and Young People,CYP,Transport Related,CCA,05.01.2012,10-03593,1960,Arrow Specialised Transport Ltd
Nottinghamshire County Council,1111/1001,Children and Young People,CYP,Transport Related,CCA,05.01.2012,10-03594,1565.2,Arrow Specialised Transport Ltd
Nottinghamshire County Council,1111/1001,Children and Young People,CYP,Transport Related,CCA,05.01.2012,10-03595,1092,Arrow Specialised Transport Ltd
Nottinghamshire County Council,1111/1001,Children and Young People,CYP,Transport Related,CCA,05.01.2012,10-03596,1199.8,Arrow Specialised Transport Ltd
Nottinghamshire County Council,1111/1001,Children and Young People,CYP,Transport Related,CCA,05.01.2012,10-03597,1764,Arrow Specialised Transport Ltd
Nottinghamshire County Council,1111/1001,Children and Young People,CYP,Transport Related,CCA,05.01.2012,10-03601,1809,F & J Marriott T/A Unity Coaches
Nottinghamshire County Council,1111/1001,Children and Young People,CYP,Transport Related,CCA,05.01.2012,10-03602,1809,F & J Marriott T/A Unity Coaches
Nottinghamshire County Council,1111/1001,Children and Young People,CYP,Transport Related,CCA,05.01.2012,10-03603,1373.4,Vallances Coaches
Nottinghamshire County Council,1111/1001,Children and Young People,CYP,Transport Related,CCA,05.01.2012,10-03604,1570.8,Vallances Coaches
Nottinghamshire County Council,1111/1001,Children and Young People,CYP,Transport Related,CCA,05.01.2012,10-03610,2462.32,AOT Coaches
Nottinghamshire County Council,1111/1001,Children and Young People,CYP,Transport Related,CCA,05.01.2012,10-03617,2659.3,Kettlewell Retford Ltd
Nottinghamshire County Council,1111/1001,Children and Young People,CYP,Transport Related,CCA,05.01.2012,10-03618,2045.28,Kettlewell Retford Ltd
Nottinghamshire County Council,1111/1001,Children and Young People,CYP,Transport Related,CCA,05.01.2012,10-03619,1547.7,Kettlewell Retford Ltd
Nottinghamshire County Council,1111/1001,Children and Young People,CYP,Transport Related,CCA,05.01.2012,10-03622,1989.96,C W Moxon Ltd
Nottinghamshire County Council,1111/1001,Children and Young People,CYP,Transport Related,CCA,05.01.2012,10-03628,3095.4,Isle Coaches
Nottinghamshire County Council,1111/1001,Children and Young People,CYP,Transport Related,CCA,06.01.2012,10-03829,2380,Taxicover Uk Ltd
Nottinghamshire County Council,1111/1001,Children and Young People,CYP,Transport Related,CCA,06.01.2012,10-03830,1937.6,Taxicover Uk Ltd
Nottinghamshire County Council,1111/1001,Children and Young People,CYP,Transport Related,CCA,06.01.2012,10-03831,1992,Taxicover Uk Ltd
Nottinghamshire County Council,1111/1001,Children and Young People,CYP,Transport Related,CCA,06.01.2012,10-03832,2079.7,Taxicover Uk Ltd
Nottinghamshire County Council,1111/1001,Children and Young People,CYP,Transport Related,CCA,06.01.2012,10-03833,2302.44,Taxicover Uk Ltd
Nottinghamshire County Council,1111/1001,Children and Young People,CYP,Transport Related,CCA,06.01.2012,10-03834,2617.3,Taxicover Uk Ltd
Nottinghamshire County Council,1111/1001,Children and Young People,CYP,Transport Related,CCA,06.01.2012,10-03835,2087.4,Taxicover Uk Ltd
Nottinghamshire County Council,1111/1001,Children and Young People,CYP,Transport Related,CCA,06.01.2012,10-03836,2166.78,Taxicover Uk Ltd
Nottinghamshire County Council,1111/1001,Children and Young People,CYP,Transport Related,CCA,06.01.2012,10-03837,1764,Taxicover Uk Ltd
Nottinghamshire County Council,1111/1001,Children and Young People,CYP,Transport Related,CCA,06.01.2012,10-03838,1312.5,Taxicover Uk Ltd
Nottinghamshire County Council,1111/1001,Children and Young People,CYP,Transport Related,CCA,06.01.2012,10-03839,1130.22,Taxicover Uk Ltd
Nottinghamshire County Council,1111/1001,Children and Young People,CYP,Transport Related,CCA,06.01.2012,10-03840,2387.14,Taxicover Uk Ltd
Nottinghamshire County Council,1111/1001,Children and Young People,CYP,Transport Related,CCA,06.01.2012,10-03841,2398.12,Taxicover Uk Ltd
Nottinghamshire County Council,1111/1001,Children and Young People,CYP,Transport Related,CCA,06.01.2012,10-03842,962.4,Arrow Specialised Transport Ltd
Nottinghamshire County Council,1111/1001,Children and Young People,CYP,Transport Related,CCA,06.01.2012,10-03843,1337.62,Arrow Specialised Transport Ltd
Nottinghamshire County Council,1111/1001,Children and Young People,CYP,Transport Related,CCA,06.01.2012,10-03844,894.3,Arrow Specialised Transport Ltd
Nottinghamshire County Council,1111/1001,Children and Young People,CYP,Transport Related,CCA,06.01.2012,10-03845,1411.2,Arrow Specialised Transport Ltd
Nottinghamshire County Council,1111/1001,Children and Young People,CYP,Transport Related,CCA,06.01.2012,10-03846,1640.6,Arrow Specialised Transport Ltd
Nottinghamshire County Council,1111/1001,Children and Young People,CYP,Transport Related,CCA,06.01.2012,10-03847,1548.3,Arrow Specialised Transport Ltd
Nottinghamshire County Council,1111/1001,Children and Young People,CYP,Transport Related,CCA,06.01.2012,10-03848,1157,Arrow Specialised Transport Ltd
Nottinghamshire County Council,1111/1001,Children and Young People,CYP,Transport Related,CCA,06.01.2012,10-03849,1222,Arrow Specialised Transport Ltd
Nottinghamshire County Council,1111/1001,Children and Young People,CYP,Transport Related,CCA,06.01.2012,10-03850,1610.83,Arrow Specialised Transport Ltd
Nottinghamshire County Council,1111/1001,Children and Young People,CYP,Transport Related,CCA,06.01.2012,10-03851,1045.85,Arrow Specialised Transport Ltd
Nottinghamshire County Council,1111/1001,Children and Young People,CYP,Transport Related,CCA,06.01.2012,10-03852,1280.5,Arrow Specialised Transport Ltd
Nottinghamshire County Council,1111/1001,Children and Young People,CYP,Transport Related,CCA,06.01.2012,10-03853,2158.09,Arrow Specialised Transport Ltd
Nottinghamshire County Council,1111/1001,Children and Young People,CYP,Transport Related,CCA,06.01.2012,10-03854,803.6,Arrow Specialised Transport Ltd
Nottinghamshire County Council,1111/1001,Children and Young People,CYP,Transport Related,CCA,06.01.2012,10-03855,1596,Arrow Specialised Transport Ltd
Nottinghamshire County Council,1111/1001,Children and Young People,CYP,Transport Related,CCA,06.01.2012,10-03856,1562.4,Arrow Specialised Transport Ltd
Nottinghamshire County Council,1111/1001,Children and Young People,CYP,Transport Related,CCA,06.01.2012,10-03857,1516.76,Arrow Specialised Transport Ltd
Nottinghamshire County Council,1111/1001,Children and Young People,CYP,Transport Related,CCA,06.01.2012,10-03858,1477.42,Arrow Specialised Transport Ltd
Nottinghamshire County Council,1111/1001,Children and Young People,CYP,Transport Related,CCA,06.01.2012,10-03859,1664.46,Arrow Specialised Transport Ltd
Nottinghamshire County Council,1111/1001,Children and Young People,CYP,Transport Related,CCA,06.01.2012,10-03860,1201.62,Arrow Specialised Transport Ltd
Nottinghamshire County Council,1111/1001,Children and Young People,CYP,Transport Related,CCA,06.01.2012,10-03861,1395.8,Arrow Specialised Transport Ltd
Nottinghamshire County Council,1111/1001,Children and Young People,CYP,Transport Related,CCA,06.01.2012,10-03862,1277.5,Arrow Specialised Transport Ltd
Nottinghamshire County Council,1111/1001,Children and Young People,CYP,Transport Related,CCA,06.01.2012,10-03863,916.02,Arrow Specialised Transport Ltd
Nottinghamshire County Council,1111/1001,Children and Young People,CYP,Transport Related,CCA,06.01.2012,10-03864,1624,Arrow Specialised Transport Ltd
Nottinghamshire County Council,1111/1001,Children and Young People,CYP,Transport Related,CCA,06.01.2012,10-03865,1146.23,Horizon Travel
Nottinghamshire County Council,1111/1001,Children and Young People,CYP,Transport Related,CCA,06.01.2012,10-03866,1212.84,Horizon Travel
Nottinghamshire County Council,1111/1001,Children and Young People,CYP,Transport Related,CCA,06.01.2012,10-03867,4974.52,Horizon Travel
Nottinghamshire County Council,1111/1001,Children and Young People,CYP,Transport Related,CCA,06.01.2012,10-03868,3154.32,Horizon Travel
Nottinghamshire County Council,1111/1001,Children and Young People,CYP,Transport Related,CCA,06.01.2012,10-03869,1042.86,Midfield Travel
Nottinghamshire County Council,1111/1001,Children and Young People,CYP,Transport Related,CCA,06.01.2012,10-03870,2203.88,Midfield Travel
Nottinghamshire County Council,1111/1001,Children and Young People,CYP,Transport Related,CCA,06.01.2012,10-03871,1661.24,K & S Coaches
Nottinghamshire County Council,1111/1001,Children and Young People,CYP,Transport Related,CCA,06.01.2012,10-03872,1750,Travelwise Coaches Ltd
Nottinghamshire County Council,1111/1001,Children and Young People,CYP,Transport Related,CCA,06.01.2012,10-03873,1461.18,Travelwise Coaches Ltd
Nottinghamshire County Council,1111/1001,Children and Young People,CYP,Transport Related,CCA,06.01.2012,10-03874,1535.38,Travelwise Coaches Ltd
Nottinghamshire County Council,1111/1001,Children and Young People,CYP,Transport Related,CCA,06.01.2012,10-03875,1431.78,Travelwise Coaches Ltd
Nottinghamshire County Council,1111/1001,Children and Young People,CYP,Transport Related,CCA,06.01.2012,10-03876,1790.74,Travelwise Coaches Ltd
Nottinghamshire County Council,1111/1001,Children and Young People,CYP,Transport Related,CCA,06.01.2012,10-03877,1435.42,Travelwise Coaches Ltd
Nottinghamshire County Council,1111/1001,Children and Young People,CYP,Transport Related,CCA,06.01.2012,10-03878,1718.22,Travelwise Coaches Ltd
Nottinghamshire County Council,1111/1001,Children and Young People,CYP,Transport Related,CCA,06.01.2012,10-03879,1596,Travelwise Coaches Ltd
Nottinghamshire County Council,1111/1001,Children and Young People,CYP,Transport Related,CCA,06.01.2012,10-03880,1293.04,Travelwise Coaches Ltd
Nottinghamshire County Council,1111/1001,Children and Young People,CYP,Transport Related,CCA,06.01.2012,10-03881,1687.7,Travelwise Coaches Ltd
Nottinghamshire County Council,1111/1001,Children and Young People,CYP,Transport Related,CCA,06.01.2012,10-03892,532.56,Enterprise Rent A Car
Nottinghamshire County Council,1111/1001,Children and Young People,CYP,Transport Related,CCA,09.01.2012,10-04019,813.12,Taxicover Uk Ltd
Nottinghamshire County Council,1111/1001,Children and Young People,CYP,Transport Related,CCA,09.01.2012,10-04020,1704.12,Taxicover Uk Ltd
Nottinghamshire County Council,1111/1001,Children and Young People,CYP,Transport Related,CCA,09.01.2012,10-04021,1943.76,Taxicover Uk Ltd
Nottinghamshire County Council,1111/1001,Children and Young People,CYP,Transport Related,CCA,09.01.2012,10-04022,2136,Taxicover Uk Ltd
Nottinghamshire County Council,1111/1001,Children and Young People,CYP,Transport Related,CCA,09.01.2012,10-04023,1940.52,Taxicover Uk Ltd
Nottinghamshire County Council,1111/1001,Children and Young People,CYP,Transport Related,CCA,09.01.2012,10-04024,1513.56,Taxicover Uk Ltd
Nottinghamshire County Council,1111/1001,Children and Young People,CYP,Transport Related,CCA,09.01.2012,10-04025,1848,Taxicover Uk Ltd
Nottinghamshire County Council,1111/1001,Children and Young People,CYP,Transport Related,CCA,09.01.2012,10-04026,1904,Taxicover Uk Ltd
Nottinghamshire County Council,1111/1001,Children and Young People,CYP,Transport Related,CCA,09.01.2012,10-04027,2436,Taxicover Uk Ltd
Nottinghamshire County Council,1111/1001,Children and Young People,CYP,Transport Related,CCA,09.01.2012,10-04028,1680.03,Taxicover Uk Ltd
Nottinghamshire County Council,1111/1001,Children and Young People,CYP,Transport Related,CCA,09.01.2012,10-04029,679.5,Southside Cars
Nottinghamshire County Council,1111/1001,Children and Young People,CYP,Transport Related,CCA,09.01.2012,10-04030,1365,Southside Cars
Nottinghamshire County Council,1111/1001,Children and Young People,CYP,Transport Related,CCA,09.01.2012,10-04031,541,Southside Cars
Nottinghamshire County Council,1111/1001,Children and Young People,CYP,Transport Related,CCA,09.01.2012,10-04032,1625.68,Cabline Uk Ltd
Nottinghamshire County Council,1111/1001,Children and Young People,CYP,Transport Related,CCA,09.01.2012,10-04033,540,Cabline Uk Ltd
Nottinghamshire County Council,1111/1001,Children and Young People,CYP,Transport Related,CCA,09.01.2012,10-04034,783.3,Cabline Uk Ltd
Nottinghamshire County Council,1111/1001,Children and Young People,CYP,Transport Related,CCA,09.01.2012,10-04035,1155.33,Cabline Uk Ltd
Nottinghamshire County Council,1111/1001,Children and Young People,CYP,Transport Related,CCA,09.01.2012,10-04036,840,Cabline Uk Ltd
Nottinghamshire County Council,1111/1001,Children and Young People,CYP,Transport Related,CCA,09.01.2012,10-04037,630,Cabline Uk Ltd
Nottinghamshire County Council,1111/1001,Children and Young People,CYP,Transport Related,CCA,09.01.2012,10-04038,1922.48,Marriotts Travel
Nottinghamshire County Council,1111/1001,Children and Young People,CYP,Transport Related,CCA,09.01.2012,10-04039,2213.06,Marriotts Travel
Nottinghamshire County Council,1111/1001,Children and Young People,CYP,Transport Related,CCA,09.01.2012,10-04042,936,Ace Of Mansfield Ltd
Nottinghamshire County Council,1111/1001,Children and Young People,CYP,Transport Related,CCA,09.01.2012,10-04043,980,Ace Of Mansfield Ltd
Nottinghamshire County Council,1111/1001,Children and Young People,CYP,Transport Related,CCA,09.01.2012,10-04044,2046.2,Arrow Specialised Transport Ltd
Nottinghamshire County Council,1111/1001,Children and Young People,CYP,Transport Related,CCA,09.01.2012,10-04045,1784.29,Arrow Specialised Transport Ltd
Nottinghamshire County Council,1111/1001,Children and Young People,CYP,Transport Related,CCA,09.01.2012,10-04046,1128,Arrow Specialised Transport Ltd
Nottinghamshire County Council,1111/1001,Children and Young People,CYP,Transport Related,CCA,09.01.2012,10-04047,581,Arrow Specialised Transport Ltd
Nottinghamshire County Council,1111/1001,Children and Young People,CYP,Transport Related,CCA,09.01.2012,10-04048,1643.2,Arrow Specialised Transport Ltd
Nottinghamshire County Council,1111/1001,Children and Young People,CYP,Transport Related,CCA,09.01.2012,10-04049,1451.4,Hawkins Taxis & Transport
Nottinghamshire County Council,1111/1001,Children and Young People,CYP,Transport Related,CCA,09.01.2012,10-04050,1688.4,Ja Travel Ltd
Nottinghamshire County Council,1111/1001,Children and Young People,CYP,Transport Related,CCA,09.01.2012,10-04051,1946,Ja Travel Ltd
Nottinghamshire County Council,1111/1001,Children and Young People,CYP,Transport Related,CCA,09.01.2012,10-04052,1845,Ja Travel Ltd
Nottinghamshire County Council,1111/1001,Children and Young People,CYP,Transport Related,CCA,09.01.2012,10-04053,1742.72,Mct Uk Ltd
Nottinghamshire County Council,1111/1001,Children and Young People,CYP,Transport Related,CCA,09.01.2012,10-04054,1829.1,Sprays Transport Ltd
Nottinghamshire County Council,1111/1001,Children and Young People,CYP,Transport Related,CCA,09.01.2012,10-04055,1425.96,Sprays Transport Ltd
Nottinghamshire County Council,1111/1001,Children and Young People,CYP,Transport Related,CCA,09.01.2012,10-04056,1774.92,Sprays Transport Ltd
Nottinghamshire County Council,1111/1001,Children and Young People,CYP,Transport Related,CCA,09.01.2012,10-04057,871.99,Sprays Transport Ltd
Nottinghamshire County Council,1111/1001,Children and Young People,CYP,Transport Related,CCA,09.01.2012,10-04058,1734.85,Sprays Transport Ltd
Nottinghamshire County Council,1111/1001,Children and Young People,CYP,Transport Related,CCA,09.01.2012,10-04059,1861.73,Sprays Transport Ltd
Nottinghamshire County Council,1111/1001,Children and Young People,CYP,Transport Related,CCA,09.01.2012,10-04060,1027,Sprays Transport Ltd
Nottinghamshire County Council,1111/1001,Children and Young People,CYP,Transport Related,CCA,09.01.2012,10-04061,500,Jb Tours Watnall Ltd
Nottinghamshire County Council,1111/1001,Children and Young People,CYP,Transport Related,CCA,09.01.2012,10-04062,1182,AAA Taxis
Nottinghamshire County Council,1111/1001,Children and Young People,CYP,Transport Related,CCA,09.01.2012,10-04063,1012.8,AAA Taxis
Nottinghamshire County Council,1111/1001,Children and Young People,CYP,Transport Related,CCA,09.01.2012,10-04064,760.5,AAA Taxis
Nottinghamshire County Council,1111/1001,Children and Young People,CYP,Transport Related,CCA,09.01.2012,10-04065,907.2,AAA Taxis
Nottinghamshire County Council,1111/1001,Children and Young People,CYP,Transport Related,CCA,09.01.2012,10-04066,1295,AAA Taxis
Nottinghamshire County Council,1111/1001,Children and Young People,CYP,Transport Related,CCA,09.01.2012,10-04067,588.5,AAA Taxis
Nottinghamshire County Council,1111/1001,Children and Young People,CYP,Transport Related,CCA,12.01.2012,10-04528,57000,C W Moxon Ltd
Nottinghamshire County Council,1111/1001,Children and Young People,CYP,Transport Related,CCA,12.01.2012,10-04537,642,6 Five 2s
Nottinghamshire County Council,1111/1001,Children and Young People,CYP,Transport Related,CCA,12.01.2012,10-04538,945.6,6 Five 2s
Nottinghamshire County Council,1111/1001,Children and Young People,CYP,Transport Related,CCA,12.01.2012,10-04539,633.6,6 Five 2s
Nottinghamshire County Council,1111/1001,Children and Young People,CYP,Transport Related,CCA,12.01.2012,10-04540,879.97,6 Five 2s
Nottinghamshire County Council,1111/1001,Children and Young People,CYP,Transport Related,CCA,12.01.2012,10-04541,884,6 Five 2s
Nottinghamshire County Council,1111/1001,Children and Young People,CYP,Transport Related,CCA,12.01.2012,10-04542,558,6 Five 2s
Nottinghamshire County Council,1111/1001,Children and Young People,CYP,Transport Related,CCA,12.01.2012,10-04543,513.76,6 Five 2s
Nottinghamshire County Council,1111/1001,Children and Young People,CYP,Transport Related,CCA,12.01.2012,10-04544,600.86,6 Five 2s
Nottinghamshire County Council,1111/1001,Children and Young People,CYP,Transport Related,CCA,12.01.2012,10-04545,582.96,6 Five 2s
Nottinghamshire County Council,1111/1001,Children and Young People,CYP,Transport Related,CCA,12.01.2012,10-04546,1084.46,6 Five 2s
Nottinghamshire County Council,1111/1001,Children and Young People,CYP,Transport Related,CCA,12.01.2012,10-04547,752.05,6 Five 2s
Nottinghamshire County Council,1111/1001,Children and Young People,CYP,Transport Related,CCA,12.01.2012,10-04548,837,6 Five 2s
Nottinghamshire County Council,1111/1001,Children and Young People,CYP,Transport Related,CCA,12.01.2012,10-04549,908.7,6 Five 2s
Nottinghamshire County Council,1111/1001,Children and Young People,CYP,Transport Related,CCA,12.01.2012,10-04553,2532.6,Redfern Travel
Nottinghamshire County Council,1111/1001,Children and Young People,CYP,Transport Related,CCA,12.01.2012,10-04561,1995.97,Arrow Specialised Transport Ltd
Nottinghamshire County Council,1111/1001,Children and Young People,CYP,Transport Related,CCA,12.01.2012,10-04562,2273.41,Arrow Specialised Transport Ltd
Nottinghamshire County Council,1111/1001,Children and Young People,CYP,Transport Related,CCA,12.01.2012,10-04563,2255.22,Arrow Specialised Transport Ltd
Nottinghamshire County Council,1111/1001,Children and Young People,CYP,Transport Related,CCA,12.01.2012,10-04564,2498.96,Arrow Specialised Transport Ltd
Nottinghamshire County Council,1111/1001,Children and Young People,CYP,Transport Related,CCA,12.01.2012,10-04565,1524.73,Arrow Specialised Transport Ltd
Nottinghamshire County Council,1111/1001,Children and Young People,CYP,Transport Related,CCA,12.01.2012,10-04566,2401.08,Arrow Specialised Transport Ltd
Nottinghamshire County Council,1111/1001,Children and Young People,CYP,Transport Related,CCA,12.01.2012,10-04567,1751.68,Arrow Specialised Transport Ltd
Nottinghamshire County Council,1111/1001,Children and Young People,CYP,Transport Related,CCA,12.01.2012,10-04568,1344.8,Arrow Specialised Transport Ltd
Nottinghamshire County Council,1111/1001,Children and Young People,CYP,Transport Related,CCA,12.01.2012,10-04569,1636.96,Arrow Specialised Transport Ltd
Nottinghamshire County Council,1111/1001,Children and Young People,CYP,Transport Related,CCA,12.01.2012,10-04580,1159.2,Fozcabs Newark Taxis
Nottinghamshire County Council,1111/1001,Children and Young People,CYP,Transport Related,CCA,12.01.2012,10-04587,1059.48,Sprays Transport Ltd
Nottinghamshire County Council,1111/1001,Children and Young People,CYP,Transport Related,CCA,12.01.2012,10-04590,884.74,Sprays Transport Ltd
Nottinghamshire County Council,1111/1001,Children and Young People,CYP,Transport Related,CCA,12.01.2012,10-04596,2361.24,Goldstar Travel Nottm Ltd
Nottinghamshire County Council,1111/1001,Children and Young People,CYP,Transport Related,CCA,12.01.2012,10-04597,1960,Goldstar Travel Nottm Ltd
Nottinghamshire County Council,1111/1001,Children and Young People,CYP,Transport Related,CCA,12.01.2012,10-04598,1333.92,Goldstar Travel Nottm Ltd
Nottinghamshire County Council,1111/1001,Children and Young People,CYP,Transport Related,CCA,12.01.2012,10-04599,1339,Goldstar Travel Nottm Ltd
Nottinghamshire County Council,1111/1001,Children and Young People,CYP,Transport Related,CCA,12.01.2012,10-04601,845,K & R Cars
Nottinghamshire County Council,1111/1001,Children and Young People,CYP,Transport Related,CCA,12.01.2012,10-04608,2307.34,Tiger European Uk Ltd
Nottinghamshire County Council,1111/1001,Children and Young People,CYP,Transport Related,CCA,12.01.2012,10-04613,1020,P & P Taxis
Nottinghamshire County Council,1111/1001,Children and Young People,CYP,Transport Related,CCA,12.01.2012,10-04623,1244.4,AAA Taxis
Nottinghamshire County Council,1111/1001,Children and Young People,CYP,Transport Related,CCA,13.01.2012,10-00062,693,Direct Cars (Lincoln) Ltd
Nottinghamshire County Council,1111/1001,Children and Young People,CYP,Transport Related,CCA,13.01.2012,10-00064,2351.16,Erewash Community Transport
Nottinghamshire County Council,1111/1001,Children and Young People,CYP,Transport Related,CCA,13.01.2012,10-00065,2034.12,Ashfield Travel
Nottinghamshire County Council,1111/1001,Children and Young People,CYP,Transport Related,CCA,13.01.2012,10-04812,814.2,Fozcabs Newark Taxis
Nottinghamshire County Council,1111/1001,Children and Young People,CYP,Transport Related,CCA,13.01.2012,10-04813,723.6,Fozcabs Newark Taxis
Nottinghamshire County Council,1111/1001,Children and Young People,CYP,Transport Related,CCA,13.01.2012,10-04814,0.01,Hawkins Taxis & Transport
Nottinghamshire County Council,1111/1001,Children and Young People,CYP,Transport Related,CCA,13.01.2012,10-04815,1385.02,Quantum Travel Specialists
Nottinghamshire County Council,1111/1001,Children and Young People,CYP,Transport Related,CCA,13.01.2012,10-04816,1421.14,Quantum Travel Specialists
Nottinghamshire County Council,1111/1001,Children and Young People,CYP,Transport Related,CCA,13.01.2012,10-04817,2105.04,Quantum Travel Specialists
Nottinghamshire County Council,1111/1001,Children and Young People,CYP,Transport Related,CCA,13.01.2012,10-04818,2176.46,Quantum Travel Specialists
Nottinghamshire County Council,1111/1001,Children and Young People,CYP,Transport Related,CCA,13.01.2012,10-04819,2446.62,Quantum Travel Specialists
Nottinghamshire County Council,1111/1001,Children and Young People,CYP,Transport Related,CCA,13.01.2012,10-04820,2233.22,Quantum Travel Specialists
Nottinghamshire County Council,1111/1001,Children and Young People,CYP,Transport Related,CCA,13.01.2012,10-04821,1704.08,Quantum Travel Specialists
Nottinghamshire County Council,1111/1001,Children and Young People,CYP,Transport Related,CCA,13.01.2012,10-04822,1385.02,Quantum Travel Specialists
Nottinghamshire County Council,1111/1001,Children and Young People,CYP,Transport Related,CCA,13.01.2012,10-04823,1556.94,Quantum Travel Specialists
Nottinghamshire County Council,1111/1001,Children and Young People,CYP,Transport Related,CCA,13.01.2012,10-04824,1421.14,Quantum Travel Specialists
Nottinghamshire County Council,1111/1001,Children and Young People,CYP,Transport Related,CCA,13.01.2012,10-04825,701.68,Quantum Travel Specialists
Nottinghamshire County Council,1111/1001,Children and Young People,CYP,Transport Related,CCA,13.01.2012,10-04826,1556.94,Quantum Travel Specialists
Nottinghamshire County Council,1111/1001,Children and Young People,CYP,Transport Related,CCA,13.01.2012,10-04827,1176,Sprays Transport Ltd
Nottinghamshire County Council,1111/1001,Children and Young People,CYP,Transport Related,CCA,13.01.2012,10-04828,1232,Sprays Transport Ltd
Nottinghamshire County Council,1111/1001,Children and Young People,CYP,Transport Related,CCA,13.01.2012,10-04829,1176,Sprays Transport Ltd
Nottinghamshire County Council,1111/1001,Children and Young People,CYP,Transport Related,CCA,13.01.2012,10-04830,1338.4,Sprays Transport Ltd
Nottinghamshire County Council,1111/1001,Children and Young People,CYP,Transport Related,CCA,13.01.2012,10-04831,1579.2,Sprays Transport Ltd
Nottinghamshire County Council,1111/1001,Children and Young People,CYP,Transport Related,CCA,13.01.2012,10-04832,1659.7,Sprays Transport Ltd
Nottinghamshire County Council,1111/1001,Children and Young People,CYP,Transport Related,CCA,13.01.2012,10-04833,1297.8,Sprays Transport Ltd
Nottinghamshire County Council,1111/1001,Children and Young People,CYP,Transport Related,CCA,13.01.2012,10-04834,1495,Sprays Transport Ltd
Nottinghamshire County Council,1111/1001,Children and Young People,CYP,Transport Related,CCA,13.01.2012,10-04835,980,Sprays Transport Ltd
Nottinghamshire County Council,1111/1001,Children and Young People,CYP,Transport Related,CCA,13.01.2012,10-04836,1573.46,Sprays Transport Ltd
Nottinghamshire County Council,1111/1001,Children and Young People,CYP,Transport Related,CCA,13.01.2012,10-04837,1533.84,Sprays Transport Ltd
Nottinghamshire County Council,1111/1001,Children and Young People,CYP,Transport Related,CCA,13.01.2012,10-04838,1555.4,Sprays Transport Ltd
Nottinghamshire County Council,1111/1001,Children and Young People,CYP,Transport Related,CCA,13.01.2012,10-04839,1516.96,Sprays Transport Ltd
Nottinghamshire County Council,1111/1001,Children and Young People,CYP,Transport Related,CCA,13.01.2012,10-04840,1428,Sprays Transport Ltd
Nottinghamshire County Council,1111/1001,Children and Young People,CYP,Transport Related,CCA,13.01.2012,10-04841,1559.84,Sprays Transport Ltd
Nottinghamshire County Council,1111/1001,Children and Young People,CYP,Transport Related,CCA,13.01.2012,10-04842,1406.08,Sprays Transport Ltd
Nottinghamshire County Council,1111/1001,Children and Young People,CYP,Transport Related,CCA,13.01.2012,10-04843,1561.28,Sprays Transport Ltd
Nottinghamshire County Council,1111/1001,Children and Young People,CYP,Transport Related,CCA,13.01.2012,10-04844,1501.36,Sprays Transport Ltd
Nottinghamshire County Council,1111/1001,Children and Young People,CYP,Transport Related,CCA,13.01.2012,10-04845,2304.96,F & J Marriott T/A Unity Coaches
Nottinghamshire County Council,1111/1001,Children and Young People,CYP,Transport Related,CCA,13.01.2012,10-04847,3695.56,Bn Gibson Ltd
Nottinghamshire County Council,1111/1001,Children and Young People,CYP,Transport Related,CCA,13.01.2012,10-04853,1260,Garys Coaches Ltd
Nottinghamshire County Council,1111/1001,Children and Young People,CYP,Transport Related,CCA,13.01.2012,10-04855,9063.86,Travel Wright Ltd
Nottinghamshire County Council,1111/1001,Children and Young People,CYP,Transport Related,CCA,13.01.2012,10-04880,1285,Redfern Travel
Nottinghamshire County Council,1111/1001,Children and Young People,CYP,Transport Related,CCA,13.01.2012,10-04881,758.88,Acorn Travel
Nottinghamshire County Council,1111/1001,Children and Young People,CYP,Transport Related,CCA,13.01.2012,10-04882,1467.78,Headland Taxi Services
Nottinghamshire County Council,1111/1001,Children and Young People,CYP,Transport Related,CCA,13.01.2012,10-04883,895.12,Headland Taxi Services
Nottinghamshire County Council,1111/1001,Children and Young People,CYP,Transport Related,CCA,13.01.2012,10-04884,731.92,Elkingtons Park Garage
Nottinghamshire County Council,1111/1001,Children and Young People,CYP,Transport Related,CCA,13.01.2012,10-04885,1500,Ron Gash & Sons Ltd
Nottinghamshire County Council,1111/1001,Children and Young People,CYP,Transport Related,CCA,13.01.2012,10-04886,1655.2,Ron Gash & Sons Ltd
Nottinghamshire County Council,1111/1001,Children and Young People,CYP,Transport Related,CCA,13.01.2012,10-04887,1678.6,Ron Gash & Sons Ltd
Nottinghamshire County Council,1111/1001,Children and Young People,CYP,Transport Related,CCA,13.01.2012,10-04888,3978.56,Bn Gibson Ltd
Nottinghamshire County Council,1111/1001,Children and Young People,CYP,Transport Related,CCA,13.01.2012,10-04889,2255.54,Bn Gibson Ltd
Nottinghamshire County Council,1111/1001,Children and Young People,CYP,Transport Related,CCA,13.01.2012,10-04890,2244.9,Bn Gibson Ltd
Nottinghamshire County Council,1111/1001,Children and Young People,CYP,Transport Related,CCA,13.01.2012,10-04891,2798.46,Bn Gibson Ltd
Nottinghamshire County Council,1111/1001,Children and Young People,CYP,Transport Related,CCA,13.01.2012,10-04892,1723.4,Bn Gibson Ltd
Nottinghamshire County Council,1111/1001,Children and Young People,CYP,Transport Related,CCA,13.01.2012,10-04893,2267.86,Bn Gibson Ltd
Nottinghamshire County Council,1111/1001,Children and Young People,CYP,Transport Related,CCA,13.01.2012,10-04894,1949.22,Bn Gibson Ltd
Nottinghamshire County Council,1111/1001,Children and Young People,CYP,Transport Related,CCA,13.01.2012,10-04895,3116.68,Bn Gibson Ltd
Nottinghamshire County Council,1111/1001,Children and Young People,CYP,Transport Related,CCA,13.01.2012,10-04896,2532.6,Bn Gibson Ltd
Nottinghamshire County Council,1111/1001,Children and Young People,CYP,Transport Related,CCA,13.01.2012,10-04897,2054.36,Bn Gibson Ltd
Nottinghamshire County Council,1111/1001,Children and Young People,CYP,Transport Related,CCA,13.01.2012,10-04898,1839.32,Bn Gibson Ltd
Nottinghamshire County Council,1111/1001,Children and Young People,CYP,Transport Related,CCA,13.01.2012,10-04899,1591.1,Bn Gibson Ltd
Nottinghamshire County Council,1111/1001,Children and Young People,CYP,Transport Related,CCA,13.01.2012,10-04900,2890,Bn Gibson Ltd
Nottinghamshire County Council,1111/1001,Children and Young People,CYP,Transport Related,CCA,13.01.2012,10-04901,1765.96,Bn Gibson Ltd
Nottinghamshire County Council,1111/1001,Children and Young People,CYP,Transport Related,CCA,13.01.2012,10-04902,888,Bn Gibson Ltd
Nottinghamshire County Council,1111/1001,Children and Young People,CYP,Transport Related,CCA,13.01.2012,10-04903,1901.28,Bn Gibson Ltd
Nottinghamshire County Council,1111/1001,Children and Young People,CYP,Transport Related,CCA,13.01.2012,10-04904,1905.54,Bn Gibson Ltd
Nottinghamshire County Council,1111/1001,Children and Young People,CYP,Transport Related,CCA,13.01.2012,10-04905,2092.43,Bn Gibson Ltd
Nottinghamshire County Council,1111/1001,Children and Young People,CYP,Transport Related,CCA,13.01.2012,10-04906,1801.1,Bn Gibson Ltd
Nottinghamshire County Council,1111/1001,Children and Young People,CYP,Transport Related,CCA,13.01.2012,10-04907,1709.82,Bn Gibson Ltd
Nottinghamshire County Council,1111/1001,Children and Young People,CYP,Transport Related,CCA,13.01.2012,10-04908,2023.56,Bn Gibson Ltd
Nottinghamshire County Council,1111/1001,Children and Young People,CYP,Transport Related,CCA,13.01.2012,10-04909,2899.82,Bn Gibson Ltd
Nottinghamshire County Council,1111/1001,Children and Young People,CYP,Transport Related,CCA,13.01.2012,10-04910,2020.2,Bn Gibson Ltd
Nottinghamshire County Council,1111/1001,Children and Young People,CYP,Transport Related,CCA,13.01.2012,10-04911,2110.5,Bn Gibson Ltd
Nottinghamshire County Council,1111/1001,Children and Young People,CYP,Transport Related,CCA,13.01.2012,10-04912,2580.2,Bn Gibson Ltd
Nottinghamshire County Council,1111/1001,Children and Young People,CYP,Transport Related,CCA,13.01.2012,10-04913,2123.16,Bn Gibson Ltd
Nottinghamshire County Council,1111/1001,Children and Young People,CYP,Transport Related,CCA,13.01.2012,10-04914,1308.32,Bn Gibson Ltd
Nottinghamshire County Council,1111/1001,Children and Young People,CYP,Transport Related,CCA,13.01.2012,10-04915,1586,Bn Gibson Ltd
Nottinghamshire County Council,1111/1001,Children and Young People,CYP,Transport Related,CCA,13.01.2012,10-04916,1396.29,Bn Gibson Ltd
Nottinghamshire County Council,1111/1001,Children and Young People,CYP,Transport Related,CCA,13.01.2012,10-04917,2023.84,Bn Gibson Ltd
Nottinghamshire County Council,1111/1001,Children and Young People,CYP,Transport Related,CCA,13.01.2012,10-04918,2152.78,Bn Gibson Ltd
Nottinghamshire County Council,1111/1001,Children and Young People,CYP,Transport Related,CCA,13.01.2012,10-04919,1331.67,Bn Gibson Ltd
Nottinghamshire County Council,1111/1001,Children and Young People,CYP,Transport Related,CCA,13.01.2012,10-04920,1148.81,P Rhodes Transport Ltd
Nottinghamshire County Council,1111/1001,Children and Young People,CYP,Transport Related,CCA,13.01.2012,10-04921,1238.16,P Rhodes Transport Ltd
Nottinghamshire County Council,1111/1001,Children and Young People,CYP,Transport Related,CCA,13.01.2012,10-04930,1929.6,Marshalls Of Sutton On Trent Ltd
Nottinghamshire County Council,1111/1001,Children and Young People,CYP,Transport Related,CCA,13.01.2012,10-04937,588.14,Nottm Minibuses & Coaches
Nottinghamshire County Council,1111/1001,Children and Young People,CYP,Transport Related,CCA,13.01.2012,10-04943,2281.86,Travel Wright Ltd
Nottinghamshire County Council,1111/1001,Children and Young People,CYP,Transport Related,CCA,13.01.2012,10-04944,1576.44,Travel Wright Ltd
Nottinghamshire County Council,1111/1001,Children and Young People,CYP,Transport Related,CCA,13.01.2012,10-04951,1860,Travel Wright Ltd
Nottinghamshire County Council,1111/1001,Children and Young People,CYP,Transport Related,CCA,13.01.2012,10-04955,1390.62,Jc Coaches
Nottinghamshire County Council,1111/1001,Children and Young People,CYP,Transport Related,CCA,13.01.2012,10-04958,924,Town Taxis Ltd
Nottinghamshire County Council,1111/1001,Children and Young People,CYP,Transport Related,CCA,13.01.2012,10-04959,854,Town Taxis Ltd
Nottinghamshire County Council,1111/1001,Children and Young People,CYP,Transport Related,CCA,13.01.2012,10-04960,561.6,Town Taxis Ltd
Nottinghamshire County Council,1111/1001,Children and Young People,CYP,Transport Related,CCA,17.01.2012,10-03598,2651.44,Harrison Ford
Nottinghamshire County Council,1111/1001,Children and Young People,CYP,Transport Related,CCA,17.01.2012,10-05196,1915,Taxicover Uk Ltd
Nottinghamshire County Council,1111/1001,Children and Young People,CYP,Transport Related,CCA,17.01.2012,10-05197,1225,Taxicover Uk Ltd
Nottinghamshire County Council,1111/1001,Children and Young People,CYP,Transport Related,CCA,17.01.2012,10-05198,1360,Central Cars Nottm Ltd
Nottinghamshire County Council,1111/1001,Children and Young People,CYP,Transport Related,CCA,17.01.2012,10-05199,920,Central Cars Nottm Ltd
Nottinghamshire County Council,1111/1001,Children and Young People,CYP,Transport Related,CCA,17.01.2012,10-05200,784,Central Cars Nottm Ltd
Nottinghamshire County Council,1111/1001,Children and Young People,CYP,Transport Related,CCA,17.01.2012,10-05201,2374.4,Central Cars Nottm Ltd
Nottinghamshire County Council,1111/1001,Children and Young People,CYP,Transport Related,CCA,17.01.2012,10-05202,1025.64,Central Cars Nottm Ltd
Nottinghamshire County Council,1111/1001,Children and Young People,CYP,Transport Related,CCA,17.01.2012,10-05203,1020,Central Cars Nottm Ltd
Nottinghamshire County Council,1111/1001,Children and Young People,CYP,Transport Related,CCA,17.01.2012,10-05204,953.68,Central Cars Nottm Ltd
Nottinghamshire County Council,1111/1001,Children and Young People,CYP,Transport Related,CCA,17.01.2012,10-05205,720,Central Cars Nottm Ltd
Nottinghamshire County Council,1111/1001,Children and Young People,CYP,Transport Related,CCA,17.01.2012,10-05206,1375.36,Johnson Bros Tours Ltd
Nottinghamshire County Council,1111/1001,Children and Young People,CYP,Transport Related,CCA,17.01.2012,10-05213,4025,Premiere Travel Ltd
Nottinghamshire County Council,1111/1001,Children and Young People,CYP,Transport Related,CCA,17.01.2012,10-05218,575,Redfern Travel
Nottinghamshire County Council,1111/1001,Children and Young People,CYP,Transport Related,CCA,17.01.2012,10-05219,1440,Vale Travel
Nottinghamshire County Council,1111/1001,Children and Young People,CYP,Transport Related,CCA,17.01.2012,10-05222,825,Arrow Specialised Transport Ltd
Nottinghamshire County Council,1111/1001,Children and Young People,CYP,Transport Related,CCA,17.01.2012,10-05223,2224.04,D G Private Hire Ltd
Nottinghamshire County Council,1111/1001,Children and Young People,CYP,Transport Related,CCA,17.01.2012,10-05224,502.5,D G Private Hire Ltd
Nottinghamshire County Council,1111/1001,Children and Young People,CYP,Transport Related,CCA,17.01.2012,10-05225,544,D G Private Hire Ltd
Nottinghamshire County Council,1111/1001,Children and Young People,CYP,Transport Related,CCA,17.01.2012,10-05226,1760,D G Private Hire Ltd
Nottinghamshire County Council,1111/1001,Children and Young People,CYP,Transport Related,CCA,17.01.2012,10-05227,1200,D G Private Hire Ltd
Nottinghamshire County Council,1111/1001,Children and Young People,CYP,Transport Related,CCA,17.01.2012,10-05228,924.64,D G Private Hire Ltd
Nottinghamshire County Council,1111/1001,Children and Young People,CYP,Transport Related,CCA,17.01.2012,10-05229,2064.27,D G Private Hire Ltd
Nottinghamshire County Council,1111/1001,Children and Young People,CYP,Transport Related,CCA,17.01.2012,10-05230,1306.5,D G Private Hire Ltd
Nottinghamshire County Council,1111/1001,Children and Young People,CYP,Transport Related,CCA,17.01.2012,10-05231,1907.49,D G Private Hire Ltd
Nottinghamshire County Council,1111/1001,Children and Young People,CYP,Transport Related,CCA,17.01.2012,10-05232,1395,D G Private Hire Ltd
Nottinghamshire County Council,1111/1001,Children and Young People,CYP,Transport Related,CCA,17.01.2012,10-05233,662.4,Motorvation Taxis
Nottinghamshire County Council,1111/1001,Children and Young People,CYP,Transport Related,CCA,17.01.2012,10-05235,1467.2,Trent Cars
Nottinghamshire County Council,1111/1001,Children and Young People,CYP,Transport Related,CCA,17.01.2012,10-05236,4114.3,1st 4 Care Ltd
Nottinghamshire County Council,1111/1001,Children and Young People,CYP,Transport Related,CCA,17.01.2012,10-05237,1443,1st 4 Care Ltd
Nottinghamshire County Council,1111/1001,Children and Young People,CYP,Transport Related,CCA,17.01.2012,10-05238,2343.74,Bn Gibson Ltd
Nottinghamshire County Council,1111/1001,Children and Young People,CYP,Transport Related,CCA,17.01.2012,10-05239,0.02,Premier Taxis
Nottinghamshire County Council,1111/1001,Children and Young People,CYP,Transport Related,CCA,17.01.2012,10-05240,1309,D G Private Hire Ltd
Nottinghamshire County Council,1111/1001,Children and Young People,CYP,Transport Related,CCA,17.01.2012,10-05242,878,Rio Cabs
Nottinghamshire County Council,1111/1001,Children and Young People,CYP,Transport Related,CCA,17.01.2012,10-05243,678.6,Rio Cabs
Nottinghamshire County Council,1111/1001,Children and Young People,CYP,Transport Related,CCA,18.01.2012,10-04040,1507.56,Martins Travel
Nottinghamshire County Council,1111/1001,Children and Young People,CYP,Transport Related,CCA,18.01.2012,10-04041,1535.17,Martins Travel
Nottinghamshire County Council,1111/1001,Children and Young People,CYP,Transport Related,CCA,18.01.2012,10-05428,960,Central Cars Nottm Ltd
Nottinghamshire County Council,1111/1001,Children and Young People,CYP,Transport Related,CCA,18.01.2012,10-05431,1489.08,1st 4 Care Ltd
Nottinghamshire County Council,1111/1001,Children and Young People,CYP,Transport Related,CCA,18.01.2012,10-05432,1510.8,1st 4 Care Ltd
Nottinghamshire County Council,1111/1001,Children and Young People,CYP,Transport Related,CCA,18.01.2012,10-05433,1496.82,1st 4 Care Ltd
Nottinghamshire County Council,1111/1001,Children and Young People,CYP,Transport Related,CCA,18.01.2012,10-05434,1666.98,1st 4 Care Ltd
Nottinghamshire County Council,1111/1001,Children and Young People,CYP,Transport Related,CCA,18.01.2012,10-05435,2215.85,1st 4 Care Ltd
Nottinghamshire County Council,1111/1001,Children and Young People,CYP,Transport Related,CCA,18.01.2012,10-05436,1509.82,1st 4 Care Ltd
Nottinghamshire County Council,1111/1001,Children and Young People,CYP,Transport Related,CCA,18.01.2012,10-05437,1092,123 Taxis
Nottinghamshire County Council,1111/1001,Children and Young People,CYP,Transport Related,CCA,18.01.2012,10-05438,582.4,D G Private Hire Ltd
Nottinghamshire County Council,1111/1001,Children and Young People,CYP,Transport Related,CCA,18.01.2012,10-05439,550,Town Taxis Ltd
Nottinghamshire County Council,1111/1001,Children and Young People,CYP,Transport Related,CCA,19.01.2012,10-04954,1109.52,Ashfield Travel
Nottinghamshire County Council,1111/1001,Children and Young People,CYP,Transport Related,CCA,19.01.2012,10-05524,532,Mar Taxis Ltd
Nottinghamshire County Council,1111/1001,Children and Young People,CYP,Transport Related,CCA,19.01.2012,10-05525,504,Mar Taxis Ltd
Nottinghamshire County Council,1111/1001,Children and Young People,CYP,Transport Related,CCA,19.01.2012,10-05526,980,A Line Taxis
Nottinghamshire County Council,1111/1001,Children and Young People,CYP,Transport Related,CCA,19.01.2012,10-05527,1060,Central Cars Nottm Ltd
Nottinghamshire County Council,1111/1001,Children and Young People,CYP,Transport Related,CCA,19.01.2012,10-05528,934.2,Bridges Transport Services
Nottinghamshire County Council,1111/1001,Children and Young People,CYP,Transport Related,CCA,19.01.2012,10-05529,792.12,Bridges Transport Services
Nottinghamshire County Council,1111/1001,Children and Young People,CYP,Transport Related,CCA,19.01.2012,10-05530,2719.4,1st 4 Care Ltd
Nottinghamshire County Council,1111/1001,Children and Young People,CYP,Transport Related,CCA,19.01.2012,10-05531,1231.68,1st 4 Care Ltd
Nottinghamshire County Council,1111/1001,Children and Young People,CYP,Transport Related,CCA,19.01.2012,10-05533,650,1st 4 Care Ltd
Nottinghamshire County Council,1111/1001,Children and Young People,CYP,Transport Related,CCA,19.01.2012,10-05534,810.81,1st 4 Care Ltd
Nottinghamshire County Council,1111/1001,Children and Young People,CYP,Transport Related,CCA,19.01.2012,10-05535,2600,1st 4 Care Ltd
Nottinghamshire County Council,1111/1001,Children and Young People,CYP,Transport Related,CCA,19.01.2012,10-05538,2100,Stagecoach Services Ltd
Nottinghamshire County Council,1111/1001,Children and Young People,CYP,Transport Related,CCA,19.01.2012,10-05569,3840,Stagecoach Services Ltd
Nottinghamshire County Council,1111/1001,Children and Young People,CYP,Transport Related,CCA,19.01.2012,10-05581,825.93,Stagecoach Services Ltd
Nottinghamshire County Council,1111/1001,Children and Young People,CYP,Transport Related,CCA,23.01.2012,10-04854,717.64,Meden Travel
Nottinghamshire County Council,1111/1001,Children and Young People,CYP,Transport Related,CCA,23.01.2012,10-05907,1695.2,Sharpes Of Nottingham
Nottinghamshire County Council,1111/1001,Children and Young People,CYP,Transport Related,CCA,23.01.2012,10-05911,1045.82,Sharpes Of Nottingham
Nottinghamshire County Council,1111/1001,Children and Young People,CYP,Transport Related,CCA,23.01.2012,10-05912,1737.68,Sharpes Of Nottingham
Nottinghamshire County Council,1111/1001,Children and Young People,CYP,Transport Related,CCA,23.01.2012,10-05914,761.6,Central Cars Nottm Ltd
Nottinghamshire County Council,1111/1001,Children and Young People,CYP,Transport Related,CCA,23.01.2012,10-05915,500.8,Central Cars Nottm Ltd
Nottinghamshire County Council,1111/1001,Children and Young People,CYP,Transport Related,CCA,23.01.2012,10-05916,560,Central Cars Nottm Ltd
Nottinghamshire County Council,1111/1001,Children and Young People,CYP,Transport Related,CCA,23.01.2012,10-05919,3112.4,Arrow Specialised Transport Ltd
Nottinghamshire County Council,1111/1001,Children and Young People,CYP,Transport Related,CCA,23.01.2012,10-05920,1973.64,Arrow Specialised Transport Ltd
Nottinghamshire County Council,1111/1001,Children and Young People,CYP,Transport Related,CCA,23.01.2012,10-05921,809.76,Bridges Transport Services
Nottinghamshire County Council,1111/1001,Children and Young People,CYP,Transport Related,CCA,23.01.2012,10-05922,781.76,Bridges Transport Services
Nottinghamshire County Council,1111/1001,Children and Young People,CYP,Transport Related,CCA,23.01.2012,10-05923,931.14,Bridges Transport Services
Nottinghamshire County Council,1111/1001,Children and Young People,CYP,Transport Related,CCA,23.01.2012,10-05924,1335.6,Bridges Transport Services
Nottinghamshire County Council,1111/1001,Children and Young People,CYP,Transport Related,CCA,23.01.2012,10-05925,570.31,Bridges Transport Services
Nottinghamshire County Council,1111/1001,Children and Young People,CYP,Transport Related,CCA,23.01.2012,10-05926,1687.28,Harrison Ford
Nottinghamshire County Council,1111/1001,Children and Young People,CYP,Transport Related,CCA,23.01.2012,10-05935,1445.22,Sprays Transport Ltd
Nottinghamshire County Council,1111/1001,Children and Young People,CYP,Transport Related,CCA,23.01.2012,10-05936,1316.28,Sprays Transport Ltd
Nottinghamshire County Council,1111/1001,Children and Young People,CYP,Transport Related,CCA,23.01.2012,10-05937,1200,County Cars
Nottinghamshire County Council,1111/1001,Children and Young People,CYP,Transport Related,CCA,23.01.2012,10-05938,2250,1st 4 Care Ltd
Nottinghamshire County Council,1111/1001,Children and Young People,CYP,Transport Related,CCA,23.01.2012,10-05939,1764,1st 4 Care Ltd
Nottinghamshire County Council,1111/1001,Children and Young People,CYP,Transport Related,CCA,23.01.2012,10-05940,1553.06,Bn Gibson Ltd
Nottinghamshire County Council,1111/1001,Children and Young People,CYP,Transport Related,CCA,23.01.2012,10-05941,1583.86,Bn Gibson Ltd
Nottinghamshire County Council,1111/1001,Children and Young People,CYP,Transport Related,CCA,23.01.2012,10-05942,1302,CW Taxis
Nottinghamshire County Council,1111/1001,Children and Young People,CYP,Transport Related,CCA,23.01.2012,10-05944,1122,CW Taxis
Nottinghamshire County Council,1111/1001,Children and Young People,CYP,Transport Related,CCA,23.01.2012,10-05945,274.37,CW Taxis
Nottinghamshire County Council,1111/1001,Children and Young People,CYP,Transport Related,CCA,23.01.2012,10-05946,736.7,CW Taxis
Nottinghamshire County Council,1111/1001,Children and Young People,CYP,Transport Related,CCA,24.01.2012,10-03626,2326.5,Diamond Cars
Nottinghamshire County Council,1111/1001,Children and Young People,CYP,Transport Related,CCA,24.01.2012,10-03627,2188.56,Diamond Cars
Nottinghamshire County Council,1111/1001,Children and Young People,CYP,Transport Related,CCA,24.01.2012,10-05951,1392.72,Diamond Cars
Nottinghamshire County Council,1111/1001,Children and Young People,CYP,Transport Related,CCA,24.01.2012,10-05952,1480.64,Diamond Cars
Nottinghamshire County Council,1111/1001,Children and Young People,CYP,Transport Related,CCA,26.01.2012,10-06464,1237.5,Sharpes Of Nottingham
Nottinghamshire County Council,1111/1001,Children and Young People,CYP,Transport Related,CCA,26.01.2012,10-06466,504,D G Private Hire Ltd
Nottinghamshire County Council,1111/1001,Children and Young People,CYP,Transport Related,CCA,26.01.2012,10-06467,812,D G Private Hire Ltd
Nottinghamshire County Council,1111/1001,Children and Young People,CYP,Transport Related,CCA,26.01.2012,10-06468,770.98,County Cars
Nottinghamshire County Council,1111/1001,Children and Young People,CYP,Transport Related,CCA,27.01.2012,10-06804,560,Central Cars Nottm Ltd
Nottinghamshire County Council,1111/1001,Children and Young People,CYP,Transport Related,CCA,27.01.2012,10-06805,663.08,Martins Travel
Nottinghamshire County Council,1111/1001,Children and Young People,CYP,Transport Related,CDA,06.01.2012,10-03853,431.41,Arrow Specialised Transport Ltd
Nottinghamshire County Council,1111/1001,Children and Young People,CYP,Transport Related,CDA,06.01.2012,10-03854,803.6,Arrow Specialised Transport Ltd
Nottinghamshire County Council,1111/1001,Children and Young People,CYP,Transport Related,CDA,06.01.2012,10-03865,33.89,Horizon Travel
Nottinghamshire County Council,1111/1001,Children and Young People,CYP,Transport Related,CDA,09.01.2012,10-04047,581,Arrow Specialised Transport Ltd
Nottinghamshire County Council,1111/1001,Children and Young People,CYP,Transport Related,CDA,09.01.2012,10-04057,871.99,Sprays Transport Ltd
Nottinghamshire County Council,1111/1001,Children and Young People,CYP,Transport Related,CDA,12.01.2012,10-04540,176.03,6 Five 2s
Nottinghamshire County Council,1111/1001,Children and Young People,CYP,Transport Related,CDA,12.01.2012,10-04590,884.72,Sprays Transport Ltd
Nottinghamshire County Council,1111/1001,Children and Young People,CYP,Transport Related,CDA,13.01.2012,10-04894,649.74,Bn Gibson Ltd
Nottinghamshire County Council,1111/1001,Children and Young People,CYP,Transport Related,CDA,13.01.2012,10-04905,190.13,Bn Gibson Ltd
Nottinghamshire County Council,1111/1001,Children and Young People,CYP,Transport Related,CDA,13.01.2012,10-04916,465.43,Bn Gibson Ltd
Nottinghamshire County Council,1111/1001,Children and Young People,CYP,Transport Related,CDA,13.01.2012,10-04920,1148.81,P Rhodes Transport Ltd
Nottinghamshire County Council,1111/1001,Children and Young People,CYP,Transport Related,CDA,13.01.2012,10-04921,1238.16,P Rhodes Transport Ltd
Nottinghamshire County Council,1111/1001,Children and Young People,CYP,Transport Related,CDA,17.01.2012,10-05243,226.2,Rio Cabs
Nottinghamshire County Council,1111/1001,Children and Young People,CYP,Transport Related,CDA,23.01.2012,10-05945,274.36,CW Taxis
Nottinghamshire County Council,1111/1001,Children and Young People,CYP,Transport Related,CDA,25.01.2012,10-06422,975.5,G4s Policing Solutions Ltd
Nottinghamshire County Council,1111/1001,Children and Young People,CYP,Transport Related,CEA,13.01.2012,10-04869,1274.78,Cardea Resourcing Ltd
Nottinghamshire County Council,1111/1001,Children and Young People,CYP,Transport Related,CEA,27.01.2012,10-06683,450,Making It! Enterprises Ltd
Nottinghamshire County Council,1111/1001,Children and Young People,CYP,Transport Related,CEA,27.01.2012,10-06684,450,Making It! Enterprises Ltd
Nottinghamshire County Council,1111/1001,Children and Young People,CYP,Supplies & Services,DAA,10.01.2012,10-04406,3330.5,Abbey Telecom
Nottinghamshire County Council,1111/1001,Children and Young People,CYP,Supplies & Services,DAA,10.01.2012,10-04407,3260,Safelab Systems Ltd
Nottinghamshire County Council,1111/1001,Children and Young People,CYP,Supplies & Services,DAA,11.01.2012,10-04456,1197.5,Daleswear Ltd
Nottinghamshire County Council,1111/1001,Children and Young People,CYP,Supplies & Services,DAA,12.01.2012,10-04408,146663.32,National Academy
Nottinghamshire County Council,1111/1001,Children and Young People,CYP,Supplies & Services,DAA,12.01.2012,10-04525,6000,Julie Leather Clinical Psychologica
Nottinghamshire County Council,1111/1001,Children and Young People,CYP,Supplies & Services,DAA,12.01.2012,10-04529,1750.85,Nottingham Trent University
Nottinghamshire County Council,1111/1001,Children and Young People,CYP,Supplies & Services,DAA,16.01.2012,10-05023,559.32,Bookpoint Ltd
Nottinghamshire County Council,1111/1001,Children and Young People,CYP,Supplies & Services,DAA,18.01.2012,10-04781,1402.45,Moving Services Group
Nottinghamshire County Council,1111/1001,Children and Young People,CYP,Supplies & Services,DAA,19.01.2012,10-05501,5194,The Manor Academy
Nottinghamshire County Council,1111/1001,Children and Young People,CYP,Supplies & Services,DAA,19.01.2012,10-05511,37224.62,Serlby Park Academy
Nottinghamshire County Council,1111/1001,Children and Young People,CYP,Supplies & Services,DAA,20.01.2012,10-05830,545.53,J P Lennard Ltd
Nottinghamshire County Council,1111/1001,Children and Young People,CYP,Supplies & Services,DAA,20.01.2012,10-05836,545.53,J P Lennard Ltd
Nottinghamshire County Council,1111/1001,Children and Young People,CYP,Supplies & Services,DAA,23.01.2012,10-05859,6000,Institute Of Education
Nottinghamshire County Council,1111/1001,Children and Young People,CYP,Supplies & Services,DAA,23.01.2012,10-05993,1689.97,The Dukeries College
Nottinghamshire County Council,1111/1001,Children and Young People,CYP,Supplies & Services,DAA,26.01.2012,10-06622,1000,Windblowers
Nottinghamshire County Council,1111/1001,Children and Young People,CYP,Supplies & Services,DAA,26.01.2012,10-10113,700,Show Racism The Red Card
Nottinghamshire County Council,1111/1001,Children and Young People,CYP,Supplies & Services,DAA,27.01.2012,10-06738,4679.56,Norbridge Primary School
Nottinghamshire County Council,1111/1001,Children and Young People,CYP,Supplies & Services,DAA,30.01.2012,10-04971,3651.36,Whittle Programmed Painting Ltd
Nottinghamshire County Council,1111/1001,Children and Young People,CYP,Supplies & Services,DAA,31.01.2012,10-09927,290.85,Reprotec Connect For Ltd
Nottinghamshire County Council,1111/1001,Children and Young People,CYP,Supplies & Services,DAA,31.01.2012,10-09995,519.2,Polycopy
Nottinghamshire County Council,1111/1001,Children and Young People,CYP,Supplies & Services,DAA,31.01.2012,10-10003,5202.64,Barnsley Premier Leisure
Nottinghamshire County Council,1111/1001,Children and Young People,CYP,Supplies & Services,DAA,31.01.2012,10-10004,5202.64,Barnsley Premier Leisure
Nottinghamshire County Council,1111/1001,Children and Young People,CYP,Supplies & Services,DAA,31.01.2012,10-10024,561974.59,The Becket School
Nottinghamshire County Council,1111/1001,Children and Young People,CYP,Supplies & Services,DAA,31.01.2012,10-10167,3000,Show Racism The Red Card
Nottinghamshire County Council,1111/1001,Children and Young People,CYP,Supplies & Services,DBA,03.01.2012,10-00247,203.9,Arnold Dairies Ltd
Nottinghamshire County Council,1111/1001,Children and Young People,CYP,Supplies & Services,DBA,03.01.2012,10-00253,301.16,M Maloney Country Butchers & B Ltd
Nottinghamshire County Council,1111/1001,Children and Young People,CYP,Supplies & Services,DBA,04.01.2012,10-03542,262.89,Hallam Country Fresh Foods Ltd
Nottinghamshire County Council,1111/1001,Children and Young People,CYP,Supplies & Services,DBA,10.01.2012,10-04366,271.47,Arnold Dairies Ltd
Nottinghamshire County Council,1111/1001,Children and Young People,CYP,Supplies & Services,DBA,11.01.2012,10-04440,102.95,Brake Bros Ltd
Nottinghamshire County Council,1111/1001,Children and Young People,CYP,Supplies & Services,DBA,12.01.2012,10-04520,221.29,Brake Bros Ltd
Nottinghamshire County Council,1111/1001,Children and Young People,CYP,Supplies & Services,DBA,12.01.2012,10-04635,540.57,Brake Bros Ltd
Nottinghamshire County Council,1111/1001,Children and Young People,CYP,Supplies & Services,DBA,12.01.2012,10-04636,166.01,Brake Bros Ltd
Nottinghamshire County Council,1111/1001,Children and Young People,CYP,Supplies & Services,DBA,12.01.2012,10-04637,458.46,M Maloney Country Butchers & B Ltd
Nottinghamshire County Council,1111/1001,Children and Young People,CYP,Supplies & Services,DBA,12.01.2012,10-04639,150.22,M Maloney Country Butchers & B Ltd
Nottinghamshire County Council,1111/1001,Children and Young People,CYP,Supplies & Services,DBA,12.01.2012,10-04640,223.16,Hallam Country Fresh Foods Ltd
Nottinghamshire County Council,1111/1001,Children and Young People,CYP,Supplies & Services,DBA,13.01.2012,10-04782,579.36,Brake Bros Ltd
Nottinghamshire County Council,1111/1001,Children and Young People,CYP,Supplies & Services,DBA,13.01.2012,10-04783,573.15,Brake Bros Ltd
Nottinghamshire County Council,1111/1001,Children and Young People,CYP,Supplies & Services,DBA,13.01.2012,10-04785,305.74,Brake Bros Ltd
Nottinghamshire County Council,1111/1001,Children and Young People,CYP,Supplies & Services,DBA,16.01.2012,10-05002,213.08,Hallam Country Fresh Foods Ltd
Nottinghamshire County Council,1111/1001,Children and Young People,CYP,Supplies & Services,DBA,17.01.2012,10-05359,285.65,Hallam Country Fresh Foods Ltd
Nottinghamshire County Council,1111/1001,Children and Young People,CYP,Supplies & Services,DBA,19.01.2012,10-05731,135.95,Arnold Dairies Ltd
Nottinghamshire County Council,1111/1001,Children and Young People,CYP,Supplies & Services,DBA,19.01.2012,10-05732,120.81,Arnold Dairies Ltd
Nottinghamshire County Council,1111/1001,Children and Young People,CYP,Supplies & Services,DBA,25.01.2012,10-06335,287.21,Hallam Country Fresh Foods Ltd
Nottinghamshire County Council,1111/1001,Children and Young People,CYP,Supplies & Services,DBA,26.01.2012,10-06509,300.33,Brake Bros Ltd
Nottinghamshire County Council,1111/1001,Children and Young People,CYP,Supplies & Services,DBA,26.01.2012,10-06521,438.05,Brake Bros Ltd
Nottinghamshire County Council,1111/1001,Children and Young People,CYP,Supplies & Services,DBA,26.01.2012,10-06523,526.46,Brake Bros Ltd
Nottinghamshire County Council,1111/1001,Children and Young People,CYP,Supplies & Services,DBA,26.01.2012,10-06525,652.97,Brake Bros Ltd
Nottinghamshire County Council,1111/1001,Children and Young People,CYP,Supplies & Services,DBA,31.01.2012,10-09993,190.32,Arnold Dairies Ltd
Nottinghamshire County Council,1111/1001,Children and Young People,CYP,Supplies & Services,DEA,03.01.2012,10-00239,4341.27,Brian Vyse
Nottinghamshire County Council,1111/1001,Children and Young People,CYP,Supplies & Services,DEA,05.01.2012,10-03735,958.2,Sterilizing Services
Nottinghamshire County Council,1111/1001,Children and Young People,CYP,Supplies & Services,DEA,06.01.2012,10-03843,40.94,Arrow Specialised Transport Ltd
Nottinghamshire County Council,1111/1001,Children and Young People,CYP,Supplies & Services,DEA,13.01.2012,10-04862,600,J Sampson
Nottinghamshire County Council,1111/1001,Children and Young People,CYP,Supplies & Services,DEA,13.01.2012,10-04867,540,R C Hobbs
Nottinghamshire County Council,1111/1001,Children and Young People,CYP,Supplies & Services,DEA,13.01.2012,10-04968,2235.5,Chris Few Consultancy Ltd
Nottinghamshire County Council,1111/1001,Children and Young People,CYP,Supplies & Services,DEA,16.01.2012,10-05034,22500,Action For Children Services Ltd
Nottinghamshire County Council,1111/1001,Children and Young People,CYP,Supplies & Services,DEA,17.01.2012,10-05176,1230,I Dearman
Nottinghamshire County Council,1111/1001,Children and Young People,CYP,Supplies & Services,DEA,17.01.2012,10-05177,668.2,Real Education Ltd
Nottinghamshire County Council,1111/1001,Children and Young People,CYP,Supplies & Services,DEA,19.01.2012,10-10088,815.37,Phs Group Plc
Nottinghamshire County Council,1111/1001,Children and Young People,CYP,Supplies & Services,DEA,23.01.2012,10-05990,1130.5,The Queen Elizabeths School
Nottinghamshire County Council,1111/1001,Children and Young People,CYP,Supplies & Services,DEA,23.01.2012,10-05993,12455.3,The Dukeries College
Nottinghamshire County Council,1111/1001,Children and Young People,CYP,Supplies & Services,DEA,24.01.2012,10-06121,1124.4,Real Education Ltd
Nottinghamshire County Council,1111/1001,Children and Young People,CYP,Supplies & Services,DEA,24.01.2012,10-06122,1467.19,Real Education Ltd
Nottinghamshire County Council,1111/1001,Children and Young People,CYP,Supplies & Services,DEA,25.01.2012,10-06284,6081,Nottingham City Council
Nottinghamshire County Council,1111/1001,Children and Young People,CYP,Supplies & Services,DEA,26.01.2012,10-06619,2020.5,Potential Uk
Nottinghamshire County Council,1111/1001,Children and Young People,CYP,Supplies & Services,DEA,26.01.2012,10-06639,500,Rushcliffe Play Forum
Nottinghamshire County Council,1111/1001,Children and Young People,CYP,Supplies & Services,DEA,30.01.2012,10-06119,4373.45,A4e Ltd
Nottinghamshire County Council,1111/1001,Children and Young People,CYP,Supplies & Services,DEA,30.01.2012,10-06201,1680.2,Chris Few Consultancy Ltd
Nottinghamshire County Council,1111/1001,Children and Young People,CYP,Supplies & Services,DEA,31.01.2012,10-10169,24572.76,Faithful & Gould
Nottinghamshire County Council,1111/1001,Children and Young People,CYP,Supplies & Services,DEA,31.01.2012,10-10170,4373.97,Faithful & Gould
Nottinghamshire County Council,1111/1001,Children and Young People,CYP,Supplies & Services,DEA,31.01.2012,10-10171,24572.76,Faithful & Gould
Nottinghamshire County Council,1111/1001,Children and Young People,CYP,Supplies & Services,DEA,31.01.2012,10-10174,11500,Nottm & Notts Futures Ltd
Nottinghamshire County Council,1111/1001,Children and Young People,CYP,Supplies & Services,DFA,06.01.2012,10-00054,961,Nt Voice & Data Solutions
Nottinghamshire County Council,1111/1001,Children and Young People,CYP,Supplies & Services,DFA,12.01.2012,10-04530,750.34,Leasing Payments Only Neopost Fin L
Nottinghamshire County Council,1111/1001,Children and Young People,CYP,Supplies & Services,DFA,24.01.2012,10-06253,1770,Squidcard Ltd
Nottinghamshire County Council,1111/1001,Children and Young People,CYP,Supplies & Services,DFA,25.01.2012,10-06414,2971.98,Severn Trent Water Ltd
Nottinghamshire County Council,1111/1001,Children and Young People,CYP,Supplies & Services,DFA,26.01.2012,10-06495,521.08,Lantec Services Ltd
Nottinghamshire County Council,1111/1001,Children and Young People,CYP,Supplies & Services,DFA,27.01.2012,10-06683,344.99,Making It! Enterprises Ltd
Nottinghamshire County Council,1111/1001,Children and Young People,CYP,Supplies & Services,DFA,27.01.2012,10-06684,581.07,Making It! Enterprises Ltd
Nottinghamshire County Council,1111/1001,Children and Young People,CYP,Supplies & Services,DFA,27.01.2012,10-06718,1000,Frank Mach Top Ups Only Neopost Ltd
Nottinghamshire County Council,1111/1001,Children and Young People,CYP,Supplies & Services,DFA,30.01.2012,10-09907,1770,Squidcard Ltd
Nottinghamshire County Council,1111/1001,Children and Young People,CYP,Supplies & Services,DFA,31.01.2012,10-09980,1770,Squidcard Ltd
Nottinghamshire County Council,1111/1001,Children and Young People,CYP,Supplies & Services,DFA,31.01.2012,10-09983,1570,Squidcard Ltd
Nottinghamshire County Council,1111/1001,Children and Young People,CYP,Supplies & Services,DFA,31.01.2012,10-09984,2104,Squidcard Ltd
Nottinghamshire County Council,1111/1001,Children and Young People,CYP,Supplies & Services,DFA,31.01.2012,10-10166,650,Royal Mail
Nottinghamshire County Council,1111/1001,Children and Young People,CYP,Supplies & Services,DGA,31.01.2012,10-10040,263,Jay Fostering
Nottinghamshire County Council,1111/1001,Children and Young People,CYP,Supplies & Services,DHA,03.01.2012,10-00097,915,The Secret Garden Private Day Nurse
Nottinghamshire County Council,1111/1001,Children and Young People,CYP,Supplies & Services,DHA,05.01.2012,10-00095,610,West Bridgford Out Of School Club
Nottinghamshire County Council,1111/1001,Children and Young People,CYP,Supplies & Services,DHA,05.01.2012,10-00096,3050,West Bridgford Out Of School Club
Nottinghamshire County Council,1111/1001,Children and Young People,CYP,Supplies & Services,DHA,05.01.2012,10-00098,610,West Bridgford Out Of School Club
Nottinghamshire County Council,1111/1001,Children and Young People,CYP,Supplies & Services,DHA,09.01.2012,10-04110,610,Prebend Pre-School Playgroup
Nottinghamshire County Council,1111/1001,Children and Young People,CYP,Supplies & Services,DHA,09.01.2012,10-04111,610,Prebend Pre-School Playgroup
Nottinghamshire County Council,1111/1001,Children and Young People,CYP,Supplies & Services,DHA,09.01.2012,10-04112,500,V Gill
Nottinghamshire County Council,1111/1001,Children and Young People,CYP,Supplies & Services,DHA,09.01.2012,10-04130,610,Good Shepherd Pre-School
Nottinghamshire County Council,1111/1001,Children and Young People,CYP,Supplies & Services,DHA,18.01.2012,10-05455,3050,West Bridgford Out Of School Club
Nottinghamshire County Council,1111/1001,Children and Young People,CYP,Supplies & Services,DHA,19.01.2012,10-05504,610,East Markham Primary School
Nottinghamshire County Council,1111/1001,Children and Young People,CYP,Supplies & Services,DHA,20.01.2012,10-05505,610,Cranmer Pre-School
Nottinghamshire County Council,1111/1001,Children and Young People,CYP,Supplies & Services,DHA,26.01.2012,10-06490,3050,Children 1st @ Breedon House
Nottinghamshire County Council,1111/1001,Children and Young People,CYP,Supplies & Services,DHA,26.01.2012,10-06491,3050,Children 1st @ Breedon House
Nottinghamshire County Council,1111/1001,Children and Young People,CYP,Supplies & Services,DKA,03.01.2012,10-00262,3000,Hope Fostering Services Ltd
Nottinghamshire County Council,1111/1001,Children and Young People,CYP,Supplies & Services,DKA,06.01.2012,10-03925,3000,Hope Fostering Services Ltd
Nottinghamshire County Council,1111/1001,Children and Young People,CYP,Supplies & Services,DKA,09.01.2012,10-04028,209.97,Taxicover Uk Ltd
Nottinghamshire County Council,1111/1001,Children and Young People,CYP,Supplies & Services,DKA,09.01.2012,10-04116,500,Inclusive Solutions Midlands Ltd
Nottinghamshire County Council,1111/1001,Children and Young People,CYP,Supplies & Services,DKA,10.01.2012,10-04133,833.72,Newark Emmaus Trust
Nottinghamshire County Council,1111/1001,Children and Young People,CYP,Supplies & Services,DKA,10.01.2012,10-04198,5875,Fosterplus Ltd
Nottinghamshire County Council,1111/1001,Children and Young People,CYP,Supplies & Services,DKA,10.01.2012,10-04393,1400,Paramount Hotel
Nottinghamshire County Council,1111/1001,Children and Young People,CYP,Supplies & Services,DKA,10.01.2012,10-04394,3500,Paramount Hotel
Nottinghamshire County Council,1111/1001,Children and Young People,CYP,Supplies & Services,DKA,10.01.2012,10-04395,600,Paramount Hotel
Nottinghamshire County Council,1111/1001,Children and Young People,CYP,Supplies & Services,DKA,10.01.2012,10-04396,1950,Paramount Hotel
Nottinghamshire County Council,1111/1001,Children and Young People,CYP,Supplies & Services,DKA,10.01.2012,10-04397,700,Paramount Hotel
Nottinghamshire County Council,1111/1001,Children and Young People,CYP,Supplies & Services,DKA,11.01.2012,10-04455,900,Bjb Lettings
Nottinghamshire County Council,1111/1001,Children and Young People,CYP,Supplies & Services,DKA,11.01.2012,10-04501,4994.45,Flexible Support Options Uk (Midlan
Nottinghamshire County Council,1111/1001,Children and Young People,CYP,Supplies & Services,DKA,13.01.2012,10-04878,2363,Staffordshire Universiity
Nottinghamshire County Council,1111/1001,Children and Young People,CYP,Supplies & Services,DKA,13.01.2012,10-05000,1655.6,Carefirst Services
Nottinghamshire County Council,1111/1001,Children and Young People,CYP,Supplies & Services,DKA,13.01.2012,10-05001,1500,Carefirst Services
Nottinghamshire County Council,1111/1001,Children and Young People,CYP,Supplies & Services,DKA,16.01.2012,10-05054,3375,Nottingham Trent University
Nottinghamshire County Council,1111/1001,Children and Young People,CYP,Supplies & Services,DKA,16.01.2012,10-05097,1500,Carefirst Services
Nottinghamshire County Council,1111/1001,Children and Young People,CYP,Supplies & Services,DKA,17.01.2012,10-05307,646.85,Busy Bees Childrens Day Nursery
Nottinghamshire County Council,1111/1001,Children and Young People,CYP,Supplies & Services,DKA,18.01.2012,10-05383,3100,Carefirst Services
Nottinghamshire County Council,1111/1001,Children and Young People,CYP,Supplies & Services,DKA,18.01.2012,10-05384,1550,Carefirst Services
Nottinghamshire County Council,1111/1001,Children and Young People,CYP,Supplies & Services,DKA,18.01.2012,10-05460,1480.38,Nottinghamshire Ymca
Nottinghamshire County Council,1111/1001,Children and Young People,CYP,Supplies & Services,DKA,18.01.2012,10-05494,3375,Staffordshire Universiity
Nottinghamshire County Council,1111/1001,Children and Young People,CYP,Supplies & Services,DKA,19.01.2012,10-05508,925,Wyn Training & Consultancy Ltd
Nottinghamshire County Council,1111/1001,Children and Young People,CYP,Supplies & Services,DKA,20.01.2012,10-05774,1461.9,Leicester Housing Association
Nottinghamshire County Council,1111/1001,Children and Young People,CYP,Supplies & Services,DKA,20.01.2012,10-05775,2000,Paramount Hotel (DUPLICATE)
Nottinghamshire County Council,1111/1001,Children and Young People,CYP,Supplies & Services,DKA,20.01.2012,10-05811,600,Smallkid Design
Nottinghamshire County Council,1111/1001,Children and Young People,CYP,Supplies & Services,DKA,24.01.2012,10-06093,1500,Horizon Social Housing Ltd
Nottinghamshire County Council,1111/1001,Children and Young People,CYP,Supplies & Services,DKA,24.01.2012,10-06100,1500,Horizon Social Housing Ltd
Nottinghamshire County Council,1111/1001,Children and Young People,CYP,Supplies & Services,DKA,24.01.2012,10-06102,673.36,Nottm Community Housing Ass
Nottinghamshire County Council,1111/1001,Children and Young People,CYP,Supplies & Services,DKA,24.01.2012,10-06120,17693.97,Misson Primary School
Nottinghamshire County Council,1111/1001,Children and Young People,CYP,Supplies & Services,DKA,24.01.2012,10-06166,1200,Two Left Feet
Nottinghamshire County Council,1111/1001,Children and Young People,CYP,Supplies & Services,DKA,24.01.2012,10-06235,2100,Support After Adoption
Nottinghamshire County Council,1111/1001,Children and Young People,CYP,Supplies & Services,DKA,24.01.2012,10-06263,1500,Horizon Social Housing Ltd
Nottinghamshire County Council,1111/1001,Children and Young People,CYP,Supplies & Services,DKA,25.01.2012,10-06316,500,Churchill Lettings
Nottinghamshire County Council,1111/1001,Children and Young People,CYP,Supplies & Services,DKA,25.01.2012,10-06400,2859.42,Futureminds Social Enterprise Ltd
Nottinghamshire County Council,1111/1001,Children and Young People,CYP,Supplies & Services,DKA,26.01.2012,10-06505,3375,Southampton Solent University
Nottinghamshire County Council,1111/1001,Children and Young People,CYP,Supplies & Services,DKA,26.01.2012,10-06623,1500,Horizon Social Housing Ltd
Nottinghamshire County Council,1111/1001,Children and Young People,CYP,Supplies & Services,DKA,27.01.2012,10-05324,5747,Serlby Park Academy
Nottinghamshire County Council,1111/1001,Children and Young People,CYP,Supplies & Services,DKA,27.01.2012,10-06106,3501.45,Foster Care Associates Ltd
Nottinghamshire County Council,1111/1001,Children and Young People,CYP,Supplies & Services,DKA,27.01.2012,10-06680,1496.32,Adullam Homes Housing Association L
Nottinghamshire County Council,1111/1001,Children and Young People,CYP,Supplies & Services,DKA,27.01.2012,10-06689,1500,Horizon Social Housing Ltd
Nottinghamshire County Council,1111/1001,Children and Young People,CYP,Supplies & Services,DKA,30.01.2012,10-06637,720,Rebecca Brudzinska
Nottinghamshire County Council,1111/1001,Children and Young People,CYP,Supplies & Services,DKA,30.01.2012,10-06822,1200,Low Mill Outdoor Centre
Nottinghamshire County Council,1111/1001,Children and Young People,CYP,Supplies & Services,DKA,30.01.2012,10-06823,1200,Low Mill Outdoor Centre
Nottinghamshire County Council,1111/1001,Children and Young People,CYP,Supplies & Services,DKA,30.01.2012,10-09917,595.52,The Kirkby Trust
Nottinghamshire County Council,1111/1001,Children and Young People,CYP,Supplies & Services,DKA,31.01.2012,10-09985,2808,Hope Fostering Services Ltd
Nottinghamshire County Council,1111/1001,Children and Young People,CYP,Supplies & Services,DKA,31.01.2012,10-09986,2808,Hope Fostering Services Ltd
Nottinghamshire County Council,1111/1001,Children and Young People,CYP,Supplies & Services,DKA,31.01.2012,10-10005,1500,Baaf
Nottinghamshire County Council,1111/1001,Children and Young People,CYP,Supplies & Services,DKA,31.01.2012,10-10178,622.63,Adoption Uk
Nottinghamshire County Council,1111/1001,Children and Young People,CYP,Third Party Payments,EBA,31.01.2012,10-10181,2082,Notts Indep Domestic Abuse Serv
Nottinghamshire County Council,1111/1001,Children and Young People,CYP,Third Party Payments,ECA,05.01.2012,10-03652,354678.61,Nottinghamshire Healthcare Nhs Trus
Nottinghamshire County Council,1111/1001,Children and Young People,CYP,Third Party Payments,ECA,24.01.2012,10-06182,63784.58,Nottinghamshire Healthcare Nhs Trus
Nottinghamshire County Council,1111/1001,Children and Young People,CYP,Third Party Payments,ECA,24.01.2012,10-06183,6752.81,Nottinghamshire Healthcare Nhs Trus
Nottinghamshire County Council,1111/1001,Children and Young People,CYP,Third Party Payments,ECA,24.01.2012,10-06184,10405.89,Nottinghamshire Healthcare Nhs Trus
Nottinghamshire County Council,1111/1001,Children and Young People,CYP,Third Party Payments,ECA,25.01.2012,10-06399,11326,Nottinghamshire Healthcare Nhs Trus
Nottinghamshire County Council,1111/1001,Children and Young People,CYP,Third Party Payments,ECA,25.01.2012,10-06401,20143.5,Nottinghamshire Healthcare Nhs Trus
Nottinghamshire County Council,1111/1001,Children and Young People,CYP,Third Party Payments,EEA,04.01.2012,10-03510,2824.97,The Award Scheme Ltd
Nottinghamshire County Council,1111/1001,Children and Young People,CYP,Third Party Payments,EFA,09.01.2012,10-04122,1200,Nottm Training & Enterprises
Nottinghamshire County Council,1111/1001,Children and Young People,CYP,Third Party Payments,EFA,09.01.2012,10-04124,2280,Educational Excellence
Nottinghamshire County Council,1111/1001,Children and Young People,CYP,Third Party Payments,EFA,10.01.2012,10-04132,1280.24,Real Education Ltd
Nottinghamshire County Council,1111/1001,Children and Young People,CYP,Third Party Payments,EFA,10.01.2012,10-04409,8950,I Can Services Ltd
Nottinghamshire County Council,1111/1001,Children and Young People,CYP,Third Party Payments,EFA,10.01.2012,10-04419,14366,Royal School For The Deaf
Nottinghamshire County Council,1111/1001,Children and Young People,CYP,Third Party Payments,EFA,10.01.2012,10-04420,7990,I Can Services Ltd
Nottinghamshire County Council,1111/1001,Children and Young People,CYP,Third Party Payments,EFA,10.01.2012,10-04421,8950,I Can Services Ltd
Nottinghamshire County Council,1111/1001,Children and Young People,CYP,Third Party Payments,EFA,10.01.2012,10-04422,8950,I Can Services Ltd
Nottinghamshire County Council,1111/1001,Children and Young People,CYP,Third Party Payments,EFA,10.01.2012,10-04423,10497,I Can Services Ltd
Nottinghamshire County Council,1111/1001,Children and Young People,CYP,Third Party Payments,EFA,10.01.2012,10-04424,8950,I Can Services Ltd
Nottinghamshire County Council,1111/1001,Children and Young People,CYP,Third Party Payments,EFA,10.01.2012,10-04425,7990,I Can Services Ltd
Nottinghamshire County Council,1111/1001,Children and Young People,CYP,Third Party Payments,EFA,10.01.2012,10-04426,10497,I Can Services Ltd
Nottinghamshire County Council,1111/1001,Children and Young People,CYP,Third Party Payments,EFA,10.01.2012,10-04427,10497,I Can Services Ltd
Nottinghamshire County Council,1111/1001,Children and Young People,CYP,Third Party Payments,EFA,10.01.2012,10-04428,3477.6,I Can Services Ltd
Nottinghamshire County Council,1111/1001,Children and Young People,CYP,Third Party Payments,EFA,10.01.2012,10-04429,10799,Royal School For The Deaf
Nottinghamshire County Council,1111/1001,Children and Young People,CYP,Third Party Payments,EFA,10.01.2012,10-04431,8950,I Can Services Ltd
Nottinghamshire County Council,1111/1001,Children and Young People,CYP,Third Party Payments,EFA,10.01.2012,10-04432,8950,I Can Services Ltd
Nottinghamshire County Council,1111/1001,Children and Young People,CYP,Third Party Payments,EFA,10.01.2012,10-04433,10497,I Can Services Ltd
Nottinghamshire County Council,1111/1001,Children and Young People,CYP,Third Party Payments,EFA,10.01.2012,10-04434,8694,I Can Services Ltd
Nottinghamshire County Council,1111/1001,Children and Young People,CYP,Third Party Payments,EFA,11.01.2012,10-04481,3000,Educational Excellence
Nottinghamshire County Council,1111/1001,Children and Young People,CYP,Third Party Payments,EFA,12.01.2012,10-04515,10497,I Can Services Ltd
Nottinghamshire County Council,1111/1001,Children and Young People,CYP,Third Party Payments,EFA,12.01.2012,10-04634,8950,I Can Services Ltd
Nottinghamshire County Council,1111/1001,Children and Young People,CYP,Third Party Payments,EFA,17.01.2012,10-05325,8950,I Can Services Ltd
Nottinghamshire County Council,1111/1001,Children and Young People,CYP,Third Party Payments,EFA,17.01.2012,10-05326,663.7,A Davie Occupational Therapy Consul
Nottinghamshire County Council,1111/1001,Children and Young People,CYP,Third Party Payments,EFA,18.01.2012,10-05465,592,A Davie Occupational Therapy Consul
Nottinghamshire County Council,1111/1001,Children and Young People,CYP,Third Party Payments,EFA,20.01.2012,10-05484,208479,Derrymount School
Nottinghamshire County Council,1111/1001,Children and Young People,CYP,Third Party Payments,EFA,23.01.2012,10-05852,2173.8,Real Education Ltd
Nottinghamshire County Council,1111/1001,Children and Young People,CYP,Third Party Payments,EFA,23.01.2012,10-05853,5540,Rural Community Action Notts
Nottinghamshire County Council,1111/1001,Children and Young People,CYP,Third Party Payments,EFA,23.01.2012,10-05994,6121.52,Wellow House School
Nottinghamshire County Council,1111/1001,Children and Young People,CYP,Third Party Payments,EFA,23.01.2012,10-05996,7232,Royal School For The Deaf
Nottinghamshire County Council,1111/1001,Children and Young People,CYP,Third Party Payments,EFA,26.01.2012,10-06484,10799,Royal School For The Deaf
Nottinghamshire County Council,1111/1001,Children and Young People,CYP,Third Party Payments,EFA,26.01.2012,10-06497,8558.33,Royal School For The Deaf
Nottinghamshire County Council,1111/1001,Children and Young People,CYP,Third Party Payments,EFA,26.01.2012,10-06498,10799,Royal School For The Deaf
Nottinghamshire County Council,1111/1001,Children and Young People,CYP,Third Party Payments,EFA,26.01.2012,10-06499,8558.33,Royal School For The Deaf
Nottinghamshire County Council,1111/1001,Children and Young People,CYP,Third Party Payments,EFA,26.01.2012,10-06500,7232,Royal School For The Deaf
Nottinghamshire County Council,1111/1001,Children and Young People,CYP,Third Party Payments,EFA,26.01.2012,10-06501,7232,Royal School For The Deaf
Nottinghamshire County Council,1111/1001,Children and Young People,CYP,Third Party Payments,EFA,26.01.2012,10-06625,3000,Carefirst Services
Nottinghamshire County Council,1111/1001,Children and Young People,CYP,Third Party Payments,EFA,27.01.2012,10-04780,3423,Foster Care Associates Ltd
Nottinghamshire County Council,1111/1001,Children and Young People,CYP,Third Party Payments,EFA,27.01.2012,10-05631,3537.1,Foster Care Associates Ltd
Nottinghamshire County Council,1111/1001,Children and Young People,CYP,Third Party Payments,EFA,27.01.2012,10-06686,1025,The Rocking Horse Day Nursery
Nottinghamshire County Council,1111/1001,Children and Young People,CYP,Third Party Payments,EFA,27.01.2012,10-06717,1201,Mary Hare School
Nottinghamshire County Council,1111/1001,Children and Young People,CYP,Third Party Payments,EFA,27.01.2012,10-06719,17216,National Autistic Society
Nottinghamshire County Council,1111/1001,Children and Young People,CYP,Third Party Payments,EFA,27.01.2012,10-06720,5836.95,Maple Hayes School
Nottinghamshire County Council,1111/1001,Children and Young People,CYP,Third Party Payments,EFA,27.01.2012,10-06734,2808,Hope Fostering Services Ltd
Nottinghamshire County Council,1111/1001,Children and Young People,CYP,Third Party Payments,EFA,30.01.2012,10-06681,793.2,Busy Bees Childrens Day Nursery
Nottinghamshire County Council,1111/1001,Children and Young People,CYP,Third Party Payments,EFA,30.01.2012,10-06848,7232,Royal School For The Deaf
Nottinghamshire County Council,1111/1001,Children and Young People,CYP,Third Party Payments,EGA,03.01.2012,10-00052,2109.8,Alphabet House Day Nursery
Nottinghamshire County Council,1111/1001,Children and Young People,CYP,Third Party Payments,EGA,03.01.2012,10-00104,580.58,Prebend Pre-School Playgroup
Nottinghamshire County Council,1111/1001,Children and Young People,CYP,Third Party Payments,EGA,03.01.2012,10-00110,1309.5,Little Acorns Shireoaks
Nottinghamshire County Council,1111/1001,Children and Young People,CYP,Third Party Payments,EGA,03.01.2012,10-00111,1222.2,Westbourne House Nursery School
Nottinghamshire County Council,1111/1001,Children and Young People,CYP,Third Party Payments,EGA,03.01.2012,10-00112,596.55,Oceans Day Nursery
Nottinghamshire County Council,1111/1001,Children and Young People,CYP,Third Party Payments,EGA,03.01.2012,10-00132,7315.31,Alphabet House Day Nursery WB
Nottinghamshire County Council,1111/1001,Children and Young People,CYP,Third Party Payments,EGA,03.01.2012,10-00133,9579.57,Alphabet House Day Nursery Worksop
Nottinghamshire County Council,1111/1001,Children and Young People,CYP,Third Party Payments,EGA,03.01.2012,10-00134,5834.83,Ashfield Plaza Day Nursery
Nottinghamshire County Council,1111/1001,Children and Young People,CYP,Third Party Payments,EGA,03.01.2012,10-00135,9231.22,Awsworth Schoolhouse Day Nursery
Nottinghamshire County Council,1111/1001,Children and Young People,CYP,Third Party Payments,EGA,03.01.2012,10-00136,12105.09,Bingham Day Nursery & Pre School
Nottinghamshire County Council,1111/1001,Children and Young People,CYP,Third Party Payments,EGA,03.01.2012,10-00137,12627.62,Bright Sparks Day Nursery
Nottinghamshire County Council,1111/1001,Children and Young People,CYP,Third Party Payments,EGA,03.01.2012,10-00138,9666.66,Butterflies Nursery (West Notts Col
Nottinghamshire County Council,1111/1001,Children and Young People,CYP,Third Party Payments,EGA,03.01.2012,10-00141,17054.54,Cherubs Day Nursery
Nottinghamshire County Council,1111/1001,Children and Young People,CYP,Third Party Payments,EGA,03.01.2012,10-00146,5747.74,Claremont Early Years Ltd
Nottinghamshire County Council,1111/1001,Children and Young People,CYP,Third Party Payments,EGA,03.01.2012,10-00147,4572.07,Duncroft Day Nursery
Nottinghamshire County Council,1111/1001,Children and Young People,CYP,Third Party Payments,EGA,03.01.2012,10-00148,3120.62,Fosse Paddock Kindergarten
Nottinghamshire County Council,1111/1001,Children and Young People,CYP,Third Party Payments,EGA,03.01.2012,10-00151,6313.81,Little Friends Day Nursery
Nottinghamshire County Council,1111/1001,Children and Young People,CYP,Third Party Payments,EGA,03.01.2012,10-00153,11756.75,Nurseryworld & Friends Nursery & Pr
Nottinghamshire County Council,1111/1001,Children and Young People,CYP,Third Party Payments,EGA,03.01.2012,10-00154,15893.38,Oceans Day Nursery
Nottinghamshire County Council,1111/1001,Children and Young People,CYP,Third Party Payments,EGA,03.01.2012,10-00155,4310.81,Pump Farm Day Nursery
Nottinghamshire County Council,1111/1001,Children and Young People,CYP,Third Party Payments,EGA,03.01.2012,10-00156,4789.79,Rainbow Day Nursery
Nottinghamshire County Council,1111/1001,Children and Young People,CYP,Third Party Payments,EGA,03.01.2012,10-00158,2177.18,Station House Day Nursery Ltd
Nottinghamshire County Council,1111/1001,Children and Young People,CYP,Third Party Payments,EGA,03.01.2012,10-00160,7054.05,The Secret Garden Private Day Nurse
Nottinghamshire County Council,1111/1001,Children and Young People,CYP,Third Party Payments,EGA,03.01.2012,10-00161,9579.57,Tiny World Mansfield
Nottinghamshire County Council,1111/1001,Children and Young People,CYP,Third Party Payments,EGA,03.01.2012,10-00165,11611.6,Westbourne House Nursery School
Nottinghamshire County Council,1111/1001,Children and Young People,CYP,Third Party Payments,EGA,03.01.2012,10-00166,4499.5,Young Rascals Day Nursery
Nottinghamshire County Council,1111/1001,Children and Young People,CYP,Third Party Payments,EGA,03.01.2012,10-00169,11539.03,Bramcote Pre-School Playgroup
Nottinghamshire County Council,1111/1001,Children and Young People,CYP,Third Party Payments,EGA,03.01.2012,10-00172,10015.01,Hazel Hurst School
Nottinghamshire County Council,1111/1001,Children and Young People,CYP,Third Party Payments,EGA,03.01.2012,10-00173,9289.28,Highfields School & Nursery
Nottinghamshire County Council,1111/1001,Children and Young People,CYP,Third Party Payments,EGA,03.01.2012,10-00174,10377.87,Horsendale Playgroup
Nottinghamshire County Council,1111/1001,Children and Young People,CYP,Third Party Payments,EGA,03.01.2012,10-00176,8312.85,Saville House School
Nottinghamshire County Council,1111/1001,Children and Young People,CYP,Third Party Payments,EGA,03.01.2012,10-00193,1741.74,Kirkby Cross Playgroup
Nottinghamshire County Council,1111/1001,Children and Young People,CYP,Third Party Payments,EGA,03.01.2012,10-00194,1741.74,Grove Pre-School
Nottinghamshire County Council,1111/1001,Children and Young People,CYP,Third Party Payments,EGA,03.01.2012,10-00195,2119.22,Phoenix Farm Pre School
Nottinghamshire County Council,1111/1001,Children and Young People,CYP,Third Party Payments,EGA,03.01.2012,10-00196,4702.7,Prebend Pre-School Playgroup
Nottinghamshire County Council,1111/1001,Children and Young People,CYP,Third Party Payments,EGA,03.01.2012,10-00199,7982.98,Railway Children Playgroup
Nottinghamshire County Council,1111/1001,Children and Young People,CYP,Third Party Payments,EGA,03.01.2012,10-00203,7750.74,Windmill Kindergarten Playgroup
Nottinghamshire County Council,1111/1001,Children and Young People,CYP,Third Party Payments,EGA,03.01.2012,10-00209,12772.76,Little Acorns Shireoaks
Nottinghamshire County Council,1111/1001,Children and Young People,CYP,Third Party Payments,EGA,03.01.2012,10-00212,10740.73,Christchurch Hall Pre-School Playgr
Nottinghamshire County Council,1111/1001,Children and Young People,CYP,Third Party Payments,EGA,03.01.2012,10-00213,9144.14,Chetwynd Barracks Pre-School
Nottinghamshire County Council,1111/1001,Children and Young People,CYP,Third Party Payments,EGA,03.01.2012,10-00214,4528.52,Carlton Hill Playgroup
Nottinghamshire County Council,1111/1001,Children and Young People,CYP,Third Party Payments,EGA,03.01.2012,10-00216,6966.96,Sutton Bonington Playgroup
Nottinghamshire County Council,1111/1001,Children and Young People,CYP,Third Party Payments,EGA,03.01.2012,10-00219,3570.57,Hermitage Pre-School
Nottinghamshire County Council,1111/1001,Children and Young People,CYP,Third Party Payments,EGA,03.01.2012,10-00221,7054.05,Blyth Pre-School Playgroup
Nottinghamshire County Council,1111/1001,Children and Young People,CYP,Third Party Payments,EGA,03.01.2012,10-00223,8360.35,Abacus Pre-School
Nottinghamshire County Council,1111/1001,Children and Young People,CYP,Third Party Payments,EGA,03.01.2012,10-03350,3985.71,By The Bridge
Nottinghamshire County Council,1111/1001,Children and Young People,CYP,Third Party Payments,EGA,04.01.2012,10-00053,4522.46,Pathway Care Solutions Ltd
Nottinghamshire County Council,1111/1001,Children and Young People,CYP,Third Party Payments,EGA,04.01.2012,10-00072,54073.64,Pathway Care Solutions Ltd
Nottinghamshire County Council,1111/1001,Children and Young People,CYP,Third Party Payments,EGA,04.01.2012,10-00073,15599.99,Pathway Care Solutions Ltd
Nottinghamshire County Council,1111/1001,Children and Young People,CYP,Third Party Payments,EGA,04.01.2012,10-00074,3600,Pathway Care Solutions II Ltd
Nottinghamshire County Council,1111/1001,Children and Young People,CYP,Third Party Payments,EGA,04.01.2012,10-00075,58690.5,Pathway Care Solutions II Ltd
Nottinghamshire County Council,1111/1001,Children and Young People,CYP,Third Party Payments,EGA,04.01.2012,10-00076,54073.64,Pathway Care Solutions II Ltd
Nottinghamshire County Council,1111/1001,Children and Young People,CYP,Third Party Payments,EGA,04.01.2012,10-00077,54073.64,Pathway Care Solutions Ltd
Nottinghamshire County Council,1111/1001,Children and Young People,CYP,Third Party Payments,EGA,04.01.2012,10-00078,58690.5,Pathway Care Solutions II Ltd
Nottinghamshire County Council,1111/1001,Children and Young People,CYP,Third Party Payments,EGA,04.01.2012,10-00079,43443.9,Pathway Care Solutions Ltd
Nottinghamshire County Council,1111/1001,Children and Young People,CYP,Third Party Payments,EGA,04.01.2012,10-00080,47105.72,Pathway Care Solutions Ltd
Nottinghamshire County Council,1111/1001,Children and Young People,CYP,Third Party Payments,EGA,04.01.2012,10-00081,54073.64,Pathway Care Solutions Ltd
Nottinghamshire County Council,1111/1001,Children and Young People,CYP,Third Party Payments,EGA,04.01.2012,10-00082,67293.9,Pathway Care Solutions II Ltd
Nottinghamshire County Council,1111/1001,Children and Young People,CYP,Third Party Payments,EGA,04.01.2012,10-00083,58690.5,Pathway Care Solutions II Ltd
Nottinghamshire County Council,1111/1001,Children and Young People,CYP,Third Party Payments,EGA,04.01.2012,10-00084,53238.85,Pathway Care Solutions II Ltd
Nottinghamshire County Council,1111/1001,Children and Young People,CYP,Third Party Payments,EGA,04.01.2012,10-00085,53238.85,Pathway Care Solutions II Ltd
Nottinghamshire County Council,1111/1001,Children and Young People,CYP,Third Party Payments,EGA,04.01.2012,10-00086,54073.64,Pathway Care Solutions Ltd
Nottinghamshire County Council,1111/1001,Children and Young People,CYP,Third Party Payments,EGA,04.01.2012,10-00093,67464.25,Pathway Care Solutions II Ltd
Nottinghamshire County Council,1111/1001,Children and Young People,CYP,Third Party Payments,EGA,04.01.2012,10-00094,11542.85,Pathway Care Solutions II Ltd
Nottinghamshire County Council,1111/1001,Children and Young People,CYP,Third Party Payments,EGA,04.01.2012,10-03346,8371.43,Progressive Care Derbyshire
Nottinghamshire County Council,1111/1001,Children and Young People,CYP,Third Party Payments,EGA,04.01.2012,10-03347,3737.68,16 Plus
Nottinghamshire County Council,1111/1001,Children and Young People,CYP,Third Party Payments,EGA,04.01.2012,10-03348,1774.28,Pathway Care Solutions Ltd
Nottinghamshire County Council,1111/1001,Children and Young People,CYP,Third Party Payments,EGA,04.01.2012,10-03349,1833.42,Pathway Care Solutions Ltd
Nottinghamshire County Council,1111/1001,Children and Young People,CYP,Third Party Payments,EGA,04.01.2012,10-03351,2732.25,16 Plus
Nottinghamshire County Council,1111/1001,Children and Young People,CYP,Third Party Payments,EGA,04.01.2012,10-03405,2300.06,Stepping Stones
Nottinghamshire County Council,1111/1001,Children and Young People,CYP,Third Party Payments,EGA,04.01.2012,10-03408,2678.7,Hillcrest Nursing Home
Nottinghamshire County Council,1111/1001,Children and Young People,CYP,Third Party Payments,EGA,04.01.2012,10-03411,3385.71,Hillcrest Nursing Home
Nottinghamshire County Council,1111/1001,Children and Young People,CYP,Third Party Payments,EGA,04.01.2012,10-03413,2767.99,Hillcrest Nursing Home
Nottinghamshire County Council,1111/1001,Children and Young People,CYP,Third Party Payments,EGA,04.01.2012,10-03518,15849.83,Burton Joyce Wraparound Care Group
Nottinghamshire County Council,1111/1001,Children and Young People,CYP,Third Party Payments,EGA,04.01.2012,10-03519,4934.93,Cherubs Childrens Centre Pleasley
Nottinghamshire County Council,1111/1001,Children and Young People,CYP,Third Party Payments,EGA,04.01.2012,10-03520,1016.02,Dawn Sparrow's Childminding Service
Nottinghamshire County Council,1111/1001,Children and Young People,CYP,Third Party Payments,EGA,04.01.2012,10-03521,12042.25,Greasley Beauvale Chicdcare Centre
Nottinghamshire County Council,1111/1001,Children and Young People,CYP,Third Party Payments,EGA,04.01.2012,10-03522,9579.57,Just Learning Ltd
Nottinghamshire County Council,1111/1001,Children and Young People,CYP,Third Party Payments,EGA,04.01.2012,10-03523,2540.04,New Woods Childcare Centre
Nottinghamshire County Council,1111/1001,Children and Young People,CYP,Third Party Payments,EGA,04.01.2012,10-03524,1132.13,Ordsall Pre-School
Nottinghamshire County Council,1111/1001,Children and Young People,CYP,Third Party Payments,EGA,04.01.2012,10-03525,10305.3,Safe Haven Day Nursery
Nottinghamshire County Council,1111/1001,Children and Young People,CYP,Third Party Payments,EGA,04.01.2012,10-03526,1520.06,Sunbeams Pre-School
Nottinghamshire County Council,1111/1001,Children and Young People,CYP,Third Party Payments,EGA,04.01.2012,10-03527,5779.41,Tiny Teddies Day Nursery
Nottinghamshire County Council,1111/1001,Children and Young People,CYP,Third Party Payments,EGA,04.01.2012,10-03528,2170.58,Toddlers University (Bee)
Nottinghamshire County Council,1111/1001,Children and Young People,CYP,Third Party Payments,EGA,04.01.2012,10-03529,19040.39,Treetops Nursery
Nottinghamshire County Council,1111/1001,Children and Young People,CYP,Third Party Payments,EGA,04.01.2012,10-03530,2177.18,West Street Pre-School
Nottinghamshire County Council,1111/1001,Children and Young People,CYP,Third Party Payments,EGA,04.01.2012,10-03532,5767.86,Treetops Nursery
Nottinghamshire County Council,1111/1001,Children and Young People,CYP,Third Party Payments,EGA,04.01.2012,10-03533,16285.27,Buttercross Pre School
Nottinghamshire County Council,1111/1001,Children and Young People,CYP,Third Party Payments,EGA,04.01.2012,10-03544,8099.09,Dagfa House School
Nottinghamshire County Council,1111/1001,Children and Young People,CYP,Third Party Payments,EGA,05.01.2012,10-03559,16293,Nottinghamshire Healthcare Nhs Trus
Nottinghamshire County Council,1111/1001,Children and Young People,CYP,Third Party Payments,EGA,06.01.2012,10-00113,1372.55,Sutton Nursery Children'S Centre
Nottinghamshire County Council,1111/1001,Children and Young People,CYP,Third Party Payments,EGA,06.01.2012,10-00119,814.8,Kiltons Childcare
Nottinghamshire County Council,1111/1001,Children and Young People,CYP,Third Party Payments,EGA,06.01.2012,10-03893,14083.33,Fairview Only Total Care Matters Lt
Nottinghamshire County Council,1111/1001,Children and Young People,CYP,Third Party Payments,EGA,06.01.2012,10-03894,6041.4,Treehouse Care Fostering Solutions
Nottinghamshire County Council,1111/1001,Children and Young People,CYP,Third Party Payments,EGA,06.01.2012,10-03895,13444,Fairview Only Total Care Matters Lt
Nottinghamshire County Council,1111/1001,Children and Young People,CYP,Third Party Payments,EGA,06.01.2012,10-03896,13650,Fairview Only Total Care Matters Lt
Nottinghamshire County Council,1111/1001,Children and Young People,CYP,Third Party Payments,EGA,06.01.2012,10-03897,3165,Fostering People Ltd
Nottinghamshire County Council,1111/1001,Children and Young People,CYP,Third Party Payments,EGA,06.01.2012,10-03898,3165,Fostering People Ltd
Nottinghamshire County Council,1111/1001,Children and Young People,CYP,Third Party Payments,EGA,06.01.2012,10-03899,2847,Fostering People Ltd
Nottinghamshire County Council,1111/1001,Children and Young People,CYP,Third Party Payments,EGA,06.01.2012,10-03900,3300,Fostering People Ltd
Nottinghamshire County Council,1111/1001,Children and Young People,CYP,Third Party Payments,EGA,06.01.2012,10-03901,5190,Fostering People Ltd
Nottinghamshire County Council,1111/1001,Children and Young People,CYP,Third Party Payments,EGA,06.01.2012,10-03902,3300,Fostering People Ltd
Nottinghamshire County Council,1111/1001,Children and Young People,CYP,Third Party Payments,EGA,06.01.2012,10-03903,3300,Fostering People Ltd
Nottinghamshire County Council,1111/1001,Children and Young People,CYP,Third Party Payments,EGA,06.01.2012,10-03904,3165,Fostering People Ltd
Nottinghamshire County Council,1111/1001,Children and Young People,CYP,Third Party Payments,EGA,06.01.2012,10-03905,3300,Fostering People Ltd
Nottinghamshire County Council,1111/1001,Children and Young People,CYP,Third Party Payments,EGA,06.01.2012,10-03906,2997,Fostering People Ltd
Nottinghamshire County Council,1111/1001,Children and Young People,CYP,Third Party Payments,EGA,06.01.2012,10-03907,3165,Fostering People Ltd
Nottinghamshire County Council,1111/1001,Children and Young People,CYP,Third Party Payments,EGA,06.01.2012,10-03908,3293.7,Anglia Fostering Agency
Nottinghamshire County Council,1111/1001,Children and Young People,CYP,Third Party Payments,EGA,06.01.2012,10-03910,4208.25,Foster Care Associates Ltd
Nottinghamshire County Council,1111/1001,Children and Young People,CYP,Third Party Payments,EGA,06.01.2012,10-03911,3258,Foster Care Associates Ltd
Nottinghamshire County Council,1111/1001,Children and Young People,CYP,Third Party Payments,EGA,06.01.2012,10-03912,4031.7,Foster Care Associates Ltd
Nottinghamshire County Council,1111/1001,Children and Young People,CYP,Third Party Payments,EGA,06.01.2012,10-03913,2847,Fostering People Ltd
Nottinghamshire County Council,1111/1001,Children and Young People,CYP,Third Party Payments,EGA,06.01.2012,10-03914,3660,Fostering People Ltd
Nottinghamshire County Council,1111/1001,Children and Young People,CYP,Third Party Payments,EGA,06.01.2012,10-03915,2997,Fostering People Ltd
Nottinghamshire County Council,1111/1001,Children and Young People,CYP,Third Party Payments,EGA,06.01.2012,10-03916,4072.5,Foster Care Associates Ltd
Nottinghamshire County Council,1111/1001,Children and Young People,CYP,Third Party Payments,EGA,09.01.2012,10-03997,679,Walesby School Playgroup
Nottinghamshire County Council,1111/1001,Children and Young People,CYP,Third Party Payments,EGA,09.01.2012,10-03998,679,Childrens First@Breedon House - Tot
Nottinghamshire County Council,1111/1001,Children and Young People,CYP,Third Party Payments,EGA,09.01.2012,10-04012,1358,Stapleford Day Nursery
Nottinghamshire County Council,1111/1001,Children and Young People,CYP,Third Party Payments,EGA,09.01.2012,10-04013,567.45,Bircotes Pre-School
Nottinghamshire County Council,1111/1001,Children and Young People,CYP,Third Party Payments,EGA,09.01.2012,10-04014,1047.6,Alphabet House Day Nursery Worksop
Nottinghamshire County Council,1111/1001,Children and Young People,CYP,Third Party Payments,EGA,09.01.2012,10-04015,1358,Thrumpton Kids Clubs
Nottinghamshire County Council,1111/1001,Children and Young People,CYP,Third Party Payments,EGA,09.01.2012,10-04016,800.25,Tiny World Mansfield
Nottinghamshire County Council,1111/1001,Children and Young People,CYP,Third Party Payments,EGA,09.01.2012,10-04017,611.1,T Snell
Nottinghamshire County Council,1111/1001,Children and Young People,CYP,Third Party Payments,EGA,10.01.2012,10-00139,7837.83,Cherubs Child Care Centre
Nottinghamshire County Council,1111/1001,Children and Young People,CYP,Third Party Payments,EGA,10.01.2012,10-00140,16473.96,Cherubs Childrens Centre Wynndale
Nottinghamshire County Council,1111/1001,Children and Young People,CYP,Third Party Payments,EGA,10.01.2012,10-00149,7576.57,Homestead Day Nursery
Nottinghamshire County Council,1111/1001,Children and Young People,CYP,Third Party Payments,EGA,10.01.2012,10-00150,7054.05,Hucknall Day Nursery
Nottinghamshire County Council,1111/1001,Children and Young People,CYP,Third Party Payments,EGA,10.01.2012,10-00157,4789.79,Rocking Horse Nursery Butlers Hill
Nottinghamshire County Council,1111/1001,Children and Young People,CYP,Third Party Payments,EGA,10.01.2012,10-00159,9579.57,Stepping Stones 11
Nottinghamshire County Council,1111/1001,Children and Young People,CYP,Third Party Payments,EGA,10.01.2012,10-00162,3768.49,Valmarys Childrens Centre 2
Nottinghamshire County Council,1111/1001,Children and Young People,CYP,Third Party Payments,EGA,10.01.2012,10-00167,21554.03,Bizzy Kidz
Nottinghamshire County Council,1111/1001,Children and Young People,CYP,Third Party Payments,EGA,10.01.2012,10-00170,5588.08,Early Years Playgroup
Nottinghamshire County Council,1111/1001,Children and Young People,CYP,Third Party Payments,EGA,10.01.2012,10-00171,4441.44,Friary Playschool
Nottinghamshire County Council,1111/1001,Children and Young People,CYP,Third Party Payments,EGA,10.01.2012,10-00175,13411.4,Pre-School 345
Nottinghamshire County Council,1111/1001,Children and Young People,CYP,Third Party Payments,EGA,10.01.2012,10-00198,20175.16,Puddleducks Pre-School
Nottinghamshire County Council,1111/1001,Children and Young People,CYP,Third Party Payments,EGA,10.01.2012,10-00202,3628.63,Willoughby On The Wolds Playgroup
Nottinghamshire County Council,1111/1001,Children and Young People,CYP,Third Party Payments,EGA,10.01.2012,10-00208,15240.23,Little Nippers Pre-School
Nottinghamshire County Council,1111/1001,Children and Young People,CYP,Third Party Payments,EGA,10.01.2012,10-00211,2960.96,Foxy Creek Pre-School Playgroup
Nottinghamshire County Council,1111/1001,Children and Young People,CYP,Third Party Payments,EGA,10.01.2012,10-00215,4528.52,Speckled Frogs Pre-School
Nottinghamshire County Council,1111/1001,Children and Young People,CYP,Third Party Payments,EGA,10.01.2012,10-00217,5399.39,Trowell Pre School
Nottinghamshire County Council,1111/1001,Children and Young People,CYP,Third Party Payments,EGA,10.01.2012,10-00218,4209.21,Kimberley Pre-School Playgroup
Nottinghamshire County Council,1111/1001,Children and Young People,CYP,Third Party Payments,EGA,10.01.2012,10-00220,7315.31,Busy Bees Playgroup
Nottinghamshire County Council,1111/1001,Children and Young People,CYP,Third Party Payments,EGA,10.01.2012,10-00222,9405.4,Attenborough Church Pre-School
Nottinghamshire County Council,1111/1001,Children and Young People,CYP,Third Party Payments,EGA,10.01.2012,10-04136,1358,Eastwood Childcare
Nottinghamshire County Council,1111/1001,Children and Young People,CYP,Third Party Payments,EGA,11.01.2012,10-00152,10450.44,The Learning Tree Nursery
Nottinghamshire County Council,1111/1001,Children and Young People,CYP,Third Party Payments,EGA,11.01.2012,10-04442,791.7,Shaping Futures Ltd
Nottinghamshire County Council,1111/1001,Children and Young People,CYP,Third Party Payments,EGA,11.01.2012,10-04443,791.7,Scottswood Pdn Ltd
Nottinghamshire County Council,1111/1001,Children and Young People,CYP,Third Party Payments,EGA,11.01.2012,10-04444,3570.57,Southfields Pre-School
Nottinghamshire County Council,1111/1001,Children and Young People,CYP,Third Party Payments,EGA,11.01.2012,10-04445,9231.22,Cranmer Pre-School
Nottinghamshire County Council,1111/1001,Children and Young People,CYP,Third Party Payments,EGA,11.01.2012,10-04446,3483.48,Mattersey Playgroup
Nottinghamshire County Council,1111/1001,Children and Young People,CYP,Third Party Payments,EGA,11.01.2012,10-04447,4006,Attenborough Day Nursery & Pre-Sch
Nottinghamshire County Council,1111/1001,Children and Young People,CYP,Third Party Payments,EGA,11.01.2012,10-04502,20383,Wings Education Ltd
Nottinghamshire County Council,1111/1001,Children and Young People,CYP,Third Party Payments,EGA,11.01.2012,10-04503,7795.72,Firstpoint
Nottinghamshire County Council,1111/1001,Children and Young People,CYP,Third Party Payments,EGA,13.01.2012,10-00108,1018.5,Safe Haven Day Nursery
Nottinghamshire County Council,1111/1001,Children and Young People,CYP,Third Party Payments,EGA,13.01.2012,10-00109,611.1,All Aboard Day Nursery
Nottinghamshire County Council,1111/1001,Children and Young People,CYP,Third Party Payments,EGA,16.01.2012,10-05032,9603.62,Coteswood House School
Nottinghamshire County Council,1111/1001,Children and Young People,CYP,Third Party Payments,EGA,16.01.2012,10-05033,6009,Arnold View Pre-School
Nottinghamshire County Council,1111/1001,Children and Young People,CYP,Third Party Payments,EGA,16.01.2012,10-05035,659.75,The Orchard Day Nursery
Nottinghamshire County Council,1111/1001,Children and Young People,CYP,Third Party Payments,EGA,16.01.2012,10-05037,8752.24,Carlton & Gedling Day Nursery
Nottinghamshire County Council,1111/1001,Children and Young People,CYP,Third Party Payments,EGA,17.01.2012,10-05297,2037,North Notts College
Nottinghamshire County Council,1111/1001,Children and Young People,CYP,Third Party Payments,EGA,17.01.2012,10-05298,1164,Little Nippers Pre-School
Nottinghamshire County Council,1111/1001,Children and Young People,CYP,Third Party Payments,EGA,17.01.2012,10-05319,582,Early Years Playgroup
Nottinghamshire County Council,1111/1001,Children and Young People,CYP,Third Party Payments,EGA,17.01.2012,10-05331,37441.75,Pre School Learning Alliance
Nottinghamshire County Council,1111/1001,Children and Young People,CYP,Third Party Payments,EGA,19.01.2012,10-05743,870.87,Gina's Childcare
Nottinghamshire County Council,1111/1001,Children and Young People,CYP,Third Party Payments,EGA,19.01.2012,10-05744,6604.1,East Bridgford Pre-School
Nottinghamshire County Council,1111/1001,Children and Young People,CYP,Third Party Payments,EGA,19.01.2012,10-05745,8186.18,Crossdale Busy Bees Pre-School
Nottinghamshire County Council,1111/1001,Children and Young People,CYP,Third Party Payments,EGA,20.01.2012,10-00130,9579.57,All Aboard Day Nursery
Nottinghamshire County Council,1111/1001,Children and Young People,CYP,Third Party Payments,EGA,20.01.2012,10-00131,10885.88,Alphabet House Day Nursery
Nottinghamshire County Council,1111/1001,Children and Young People,CYP,Third Party Payments,EGA,20.01.2012,10-00205,4528.52,Gotham Pre-School Playgroup
Nottinghamshire County Council,1111/1001,Children and Young People,CYP,Third Party Payments,EGA,20.01.2012,10-05783,1772,Nottinghamshire Healthcare Nhs Trus
Nottinghamshire County Council,1111/1001,Children and Young People,CYP,Third Party Payments,EGA,20.01.2012,10-05817,1696,Scope Central Trading
Nottinghamshire County Council,1111/1001,Children and Young People,CYP,Third Party Payments,EGA,20.01.2012,10-05818,800,Blue Mountain Homes Ltd
Nottinghamshire County Council,1111/1001,Children and Young People,CYP,Third Party Payments,EGA,20.01.2012,10-05819,58838,Kisimul School
Nottinghamshire County Council,1111/1001,Children and Young People,CYP,Third Party Payments,EGA,20.01.2012,10-05821,2300.06,Stepping Stones
Nottinghamshire County Council,1111/1001,Children and Young People,CYP,Third Party Payments,EGA,20.01.2012,10-05822,1586.84,Stepping Stones
Nottinghamshire County Council,1111/1001,Children and Young People,CYP,Third Party Payments,EGA,20.01.2012,10-05823,3424.2,Parallel Parents
Nottinghamshire County Council,1111/1001,Children and Young People,CYP,Third Party Payments,EGA,20.01.2012,10-05824,13263.66,Direct Care Ltd
Nottinghamshire County Council,1111/1001,Children and Young People,CYP,Third Party Payments,EGA,20.01.2012,10-05825,3403.8,Jay Fostering
Nottinghamshire County Council,1111/1001,Children and Young People,CYP,Third Party Payments,EGA,20.01.2012,10-05826,3179.67,Jay Fostering
Nottinghamshire County Council,1111/1001,Children and Young People,CYP,Third Party Payments,EGA,20.01.2012,10-05827,6310.67,Jay Fostering
Nottinghamshire County Council,1111/1001,Children and Young People,CYP,Third Party Payments,EGA,20.01.2012,10-05828,3582.67,Jay Fostering
Nottinghamshire County Council,1111/1001,Children and Young People,CYP,Third Party Payments,EGA,20.01.2012,10-05829,1857.93,16 Plus
Nottinghamshire County Council,1111/1001,Children and Young People,CYP,Third Party Payments,EGA,20.01.2012,10-05832,3193.31,Jay Fostering
Nottinghamshire County Council,1111/1001,Children and Young People,CYP,Third Party Payments,EGA,20.01.2012,10-05833,2769.6,Jay Fostering
Nottinghamshire County Council,1111/1001,Children and Young People,CYP,Third Party Payments,EGA,20.01.2012,10-05834,3090.3,Jay Fostering
Nottinghamshire County Council,1111/1001,Children and Young People,CYP,Third Party Payments,EGA,20.01.2012,10-05835,3097.43,Jay Fostering
Nottinghamshire County Council,1111/1001,Children and Young People,CYP,Third Party Payments,EGA,20.01.2012,10-05837,3193.22,Jay Fostering
Nottinghamshire County Council,1111/1001,Children and Young People,CYP,Third Party Payments,EGA,20.01.2012,10-05838,3090.21,Jay Fostering
Nottinghamshire County Council,1111/1001,Children and Young People,CYP,Third Party Payments,EGA,20.01.2012,10-05839,3193.22,Jay Fostering
Nottinghamshire County Council,1111/1001,Children and Young People,CYP,Third Party Payments,EGA,20.01.2012,10-05840,3361.33,Jay Fostering
Nottinghamshire County Council,1111/1001,Children and Young People,CYP,Third Party Payments,EGA,20.01.2012,10-05841,3179.7,Jay Fostering
Nottinghamshire County Council,1111/1001,Children and Young People,CYP,Third Party Payments,EGA,20.01.2012,10-05842,2861.92,Jay Fostering
Nottinghamshire County Council,1111/1001,Children and Young People,CYP,Third Party Payments,EGA,20.01.2012,10-05843,3361.33,Jay Fostering
Nottinghamshire County Council,1111/1001,Children and Young People,CYP,Third Party Payments,EGA,20.01.2012,10-05844,552,Quayside Care Ltd
Nottinghamshire County Council,1111/1001,Children and Young People,CYP,Third Party Payments,EGA,20.01.2012,10-05845,1990.6,Newark Emmaus Trust
Nottinghamshire County Council,1111/1001,Children and Young People,CYP,Third Party Payments,EGA,20.01.2012,10-05846,3396.98,The National Fostering Agency
Nottinghamshire County Council,1111/1001,Children and Young People,CYP,Third Party Payments,EGA,23.01.2012,10-05854,845.25,Quayside Care Ltd
Nottinghamshire County Council,1111/1001,Children and Young People,CYP,Third Party Payments,EGA,23.01.2012,10-05860,1286.96,Lloyds Tsb Commercial Finance
Nottinghamshire County Council,1111/1001,Children and Young People,CYP,Third Party Payments,EGA,23.01.2012,10-05890,746.9,Good Foundations Day Nursery
Nottinghamshire County Council,1111/1001,Children and Young People,CYP,Third Party Payments,EGA,23.01.2012,10-05956,40983.36,East Midlands Care Matters
Nottinghamshire County Council,1111/1001,Children and Young People,CYP,Third Party Payments,EGA,24.01.2012,10-05021,21597.58,Barnby Road Academy Prim & Nursery
Nottinghamshire County Council,1111/1001,Children and Young People,CYP,Third Party Payments,EGA,24.01.2012,10-06188,569.25,Quayside Care Ltd
Nottinghamshire County Council,1111/1001,Children and Young People,CYP,Third Party Payments,EGA,24.01.2012,10-06189,1586.84,Lloyds Tsb Commercial Finance
Nottinghamshire County Council,1111/1001,Children and Young People,CYP,Third Party Payments,EGA,24.01.2012,10-06190,6121.32,Jay Fostering
Nottinghamshire County Council,1111/1001,Children and Young People,CYP,Third Party Payments,EGA,24.01.2012,10-06191,1586.84,Lloyds Tsb Commercial Finance
Nottinghamshire County Council,1111/1001,Children and Young People,CYP,Third Party Payments,EGA,24.01.2012,10-06192,1586.84,Lloyds Tsb Commercial Finance
Nottinghamshire County Council,1111/1001,Children and Young People,CYP,Third Party Payments,EGA,24.01.2012,10-06194,1789.76,Lloyds Tsb Commercial Finance
Nottinghamshire County Council,1111/1001,Children and Young People,CYP,Third Party Payments,EGA,24.01.2012,10-06195,3252.86,Jay Fostering
Nottinghamshire County Council,1111/1001,Children and Young People,CYP,Third Party Payments,EGA,24.01.2012,10-06196,8055.56,Firstpoint
Nottinghamshire County Council,1111/1001,Children and Young People,CYP,Third Party Payments,EGA,24.01.2012,10-06198,3090.21,Jay Fostering
Nottinghamshire County Council,1111/1001,Children and Young People,CYP,Third Party Payments,EGA,24.01.2012,10-06199,519.85,Newport City Council
Nottinghamshire County Council,1111/1001,Children and Young People,CYP,Third Party Payments,EGA,24.01.2012,10-06215,1586.84,Stepping Stones
Nottinghamshire County Council,1111/1001,Children and Young People,CYP,Third Party Payments,EGA,24.01.2012,10-06233,2923.26,Jay Fostering
Nottinghamshire County Council,1111/1001,Children and Young People,CYP,Third Party Payments,EGA,24.01.2012,10-06234,62250.01,Hesley Group Ltd
Nottinghamshire County Council,1111/1001,Children and Young People,CYP,Third Party Payments,EGA,24.01.2012,10-06255,32567,Nottinghamshire Healthcare Nhs Trus
Nottinghamshire County Council,1111/1001,Children and Young People,CYP,Third Party Payments,EGA,25.01.2012,10-06336,746.9,Play Days Child Minders
Nottinghamshire County Council,1111/1001,Children and Young People,CYP,Third Party Payments,EGA,25.01.2012,10-06337,1493.8,Rocking Horse Nursery Butlers Hill
Nottinghamshire County Council,1111/1001,Children and Young People,CYP,Third Party Payments,EGA,25.01.2012,10-06338,746.9,Little Nippers Pre-School
Nottinghamshire County Council,1111/1001,Children and Young People,CYP,Third Party Payments,EGA,25.01.2012,10-06339,1493.8,Wollaton Village Day Nurseries Ltd.
Nottinghamshire County Council,1111/1001,Children and Young People,CYP,Third Party Payments,EGA,25.01.2012,10-06340,645.05,Little Oaks Nursery
Nottinghamshire County Council,1111/1001,Children and Young People,CYP,Third Party Payments,EGA,25.01.2012,10-06341,1120.35,East Leake Pre-School Playgroup
Nottinghamshire County Council,1111/1001,Children and Young People,CYP,Third Party Payments,EGA,25.01.2012,10-06343,709.56,Homestead Day Nursery
Nottinghamshire County Council,1111/1001,Children and Young People,CYP,Third Party Payments,EGA,25.01.2012,10-06415,1500,The Kirkby Trust
Nottinghamshire County Council,1111/1001,Children and Young People,CYP,Third Party Payments,EGA,25.01.2012,10-06416,1586.84,Lloyds Tsb Commercial Finance
Nottinghamshire County Council,1111/1001,Children and Young People,CYP,Third Party Payments,EGA,25.01.2012,10-06417,1586.84,Lloyds Tsb Commercial Finance
Nottinghamshire County Council,1111/1001,Children and Young People,CYP,Third Party Payments,EGA,25.01.2012,10-06418,5610.6,Lincolnshire County Council
Nottinghamshire County Council,1111/1001,Children and Young People,CYP,Third Party Payments,EGA,25.01.2012,10-06419,5797.62,Lincolnshire County Council
Nottinghamshire County Council,1111/1001,Children and Young People,CYP,Third Party Payments,EGA,25.01.2012,10-06420,5610.6,Lincolnshire County Council
Nottinghamshire County Council,1111/1001,Children and Young People,CYP,Third Party Payments,EGA,25.01.2012,10-06421,2946.24,The Adolescent & Childrens Trust
Nottinghamshire County Council,1111/1001,Children and Young People,CYP,Third Party Payments,EGA,26.01.2012,10-05036,17646,Pre School Learning Alliance (DUPLI
Nottinghamshire County Council,1111/1001,Children and Young People,CYP,Third Party Payments,EGA,26.01.2012,10-06632,520,Crossroads Care East Midlands
Nottinghamshire County Council,1111/1001,Children and Young People,CYP,Third Party Payments,EGA,26.01.2012,10-10115,3007,Compass Services For Children Ltd
Nottinghamshire County Council,1111/1001,Children and Young People,CYP,Third Party Payments,EGA,26.01.2012,10-10116,3007,Compass Services For Children Ltd
Nottinghamshire County Council,1111/1001,Children and Young People,CYP,Third Party Payments,EGA,27.01.2012,10-00103,1222.2,Pre School Learning Alliance (DUPLI
Nottinghamshire County Council,1111/1001,Children and Young People,CYP,Third Party Payments,EGA,27.01.2012,10-00168,16546.53,Pre School Learning Alliance (DUPLI
Nottinghamshire County Council,1111/1001,Children and Young People,CYP,Third Party Payments,EGA,27.01.2012,10-04453,3042,Foster Care Associates Ltd
Nottinghamshire County Council,1111/1001,Children and Young People,CYP,Third Party Payments,EGA,27.01.2012,10-04504,3258,Foster Care Associates Ltd
Nottinghamshire County Council,1111/1001,Children and Young People,CYP,Third Party Payments,EGA,27.01.2012,10-04505,3990.9,Foster Care Associates Ltd
Nottinghamshire County Council,1111/1001,Children and Young People,CYP,Third Party Payments,EGA,27.01.2012,10-05847,4072.5,Foster Care Associates Ltd
Nottinghamshire County Council,1111/1001,Children and Young People,CYP,Third Party Payments,EGA,27.01.2012,10-06641,746.9,Prebend Pre-School Playgroup
Nottinghamshire County Council,1111/1001,Children and Young People,CYP,Third Party Payments,EGA,27.01.2012,10-06642,712.95,Duncroft Day Nursery
Nottinghamshire County Council,1111/1001,Children and Young People,CYP,Third Party Payments,EGA,27.01.2012,10-06643,1086.4,Cherubs Childrens Centre Wynndale
Nottinghamshire County Council,1111/1001,Children and Young People,CYP,Third Party Payments,EGA,27.01.2012,10-06644,1493.8,Westbourne House Nursery School
Nottinghamshire County Council,1111/1001,Children and Young People,CYP,Third Party Payments,EGA,27.01.2012,10-06645,1120.35,Leen Mills Pre School Playgroup
Nottinghamshire County Council,1111/1001,Children and Young People,CYP,Third Party Payments,EGA,27.01.2012,10-06646,1120.35,Killisick Pre-School
Nottinghamshire County Council,1111/1001,Children and Young People,CYP,Third Party Payments,EGA,27.01.2012,10-06647,746.9,Little Bears Day Nursery
Nottinghamshire County Council,1111/1001,Children and Young People,CYP,Third Party Payments,EGA,27.01.2012,10-06648,1120.35,Little Kites Pre-School
Nottinghamshire County Council,1111/1001,Children and Young People,CYP,Third Party Payments,EGA,27.01.2012,10-06649,570.36,PSLA Meden Vale Childcare
Nottinghamshire County Council,1111/1001,Children and Young People,CYP,Third Party Payments,EGA,27.01.2012,10-06650,1120.35,The Learning Tree Day Nursery 2
Nottinghamshire County Council,1111/1001,Children and Young People,CYP,Third Party Payments,EGA,27.01.2012,10-06651,882.7,Cherubs Childrens Centre Wynndale
Nottinghamshire County Council,1111/1001,Children and Young People,CYP,Third Party Payments,EGA,27.01.2012,10-06699,1833.3,Mansfield Childrens Community
Nottinghamshire County Council,1111/1001,Children and Young People,CYP,Third Party Payments,EGA,27.01.2012,10-06700,1064.33,Bircotes Pre-School
Nottinghamshire County Council,1111/1001,Children and Young People,CYP,Third Party Payments,EGA,27.01.2012,10-06702,1493.8,Nottinghamshire Helathcare NHS Trus
Nottinghamshire County Council,1111/1001,Children and Young People,CYP,Third Party Payments,EGA,27.01.2012,10-06760,6217.51,Jani Homes
Nottinghamshire County Council,1111/1001,Children and Young People,CYP,Third Party Payments,EGA,27.01.2012,10-06807,657.14,The Kirkby Trust
Nottinghamshire County Council,1111/1001,Children and Young People,CYP,Third Party Payments,EGA,27.01.2012,10-10126,4039.92,Foster Care Associates Ltd
Nottinghamshire County Council,1111/1001,Children and Young People,CYP,Third Party Payments,EGA,27.01.2012,10-10127,3270.5,Fostering People Ltd
Nottinghamshire County Council,1111/1001,Children and Young People,CYP,Third Party Payments,EGA,27.01.2012,10-10128,3332.81,Foster Care Associates Ltd
Nottinghamshire County Council,1111/1001,Children and Young People,CYP,Third Party Payments,EGA,27.01.2012,10-10129,2985.6,Jay Fostering
Nottinghamshire County Council,1111/1001,Children and Young People,CYP,Third Party Payments,EGA,27.01.2012,10-10130,3270.5,Fostering People Ltd
Nottinghamshire County Council,1111/1001,Children and Young People,CYP,Third Party Payments,EGA,27.01.2012,10-10131,3410,Fostering People Ltd
Nottinghamshire County Council,1111/1001,Children and Young People,CYP,Third Party Payments,EGA,27.01.2012,10-10132,3410,Fostering People Ltd
Nottinghamshire County Council,1111/1001,Children and Young People,CYP,Third Party Payments,EGA,27.01.2012,10-10133,3096.9,Fostering People Ltd
Nottinghamshire County Council,1111/1001,Children and Young People,CYP,Third Party Payments,EGA,27.01.2012,10-10134,3410,Fostering People Ltd
Nottinghamshire County Council,1111/1001,Children and Young People,CYP,Third Party Payments,EGA,27.01.2012,10-10135,3410,Fostering People Ltd
Nottinghamshire County Council,1111/1001,Children and Young People,CYP,Third Party Payments,EGA,27.01.2012,10-10136,3410,Fostering People Ltd
Nottinghamshire County Council,1111/1001,Children and Young People,CYP,Third Party Payments,EGA,27.01.2012,10-10137,3096.9,Fostering People Ltd
Nottinghamshire County Council,1111/1001,Children and Young People,CYP,Third Party Payments,EGA,27.01.2012,10-10138,3270.5,Fostering People Ltd
Nottinghamshire County Council,1111/1001,Children and Young People,CYP,Third Party Payments,EGA,27.01.2012,10-10139,3270.5,Fostering People Ltd
Nottinghamshire County Council,1111/1001,Children and Young People,CYP,Third Party Payments,EGA,27.01.2012,10-10142,3270.5,Fostering People Ltd
Nottinghamshire County Council,1111/1001,Children and Young People,CYP,Third Party Payments,EGA,27.01.2012,10-10143,3142.83,Jay Fostering
Nottinghamshire County Council,1111/1001,Children and Young People,CYP,Third Party Payments,EGA,27.01.2012,10-10144,3410,Fostering People Ltd
Nottinghamshire County Council,1111/1001,Children and Young People,CYP,Third Party Payments,EGA,27.01.2012,10-10146,2777.29,Hope Fostering Services Ltd
Nottinghamshire County Council,1111/1001,Children and Young People,CYP,Third Party Payments,EGA,27.01.2012,10-10150,2777.29,Hope Fostering Services Ltd
Nottinghamshire County Council,1111/1001,Children and Young People,CYP,Third Party Payments,EGA,27.01.2012,10-10152,2777.29,Hope Fostering Services Ltd
Nottinghamshire County Council,1111/1001,Children and Young People,CYP,Third Party Payments,EGA,27.01.2012,10-10153,3108.99,Hope Fostering Services Ltd
Nottinghamshire County Council,1111/1001,Children and Young People,CYP,Third Party Payments,EGA,27.01.2012,10-10154,3410,Fostering People Ltd
Nottinghamshire County Council,1111/1001,Children and Young People,CYP,Third Party Payments,EGA,27.01.2012,10-10155,3270.5,Fostering People Ltd
Nottinghamshire County Council,1111/1001,Children and Young People,CYP,Third Party Payments,EGA,27.01.2012,10-10156,4076.5,Fostering People Ltd
Nottinghamshire County Council,1111/1001,Children and Young People,CYP,Third Party Payments,EGA,27.01.2012,10-10157,3270.5,Foster Care Associates Ltd
Nottinghamshire County Council,1111/1001,Children and Young People,CYP,Third Party Payments,EGA,27.01.2012,10-10158,3270.5,Fostering People Ltd
Nottinghamshire County Council,1111/1001,Children and Young People,CYP,Third Party Payments,EGA,27.01.2012,10-10159,3366.6,Foster Care Associates Ltd
Nottinghamshire County Council,1111/1001,Children and Young People,CYP,Third Party Payments,EGA,30.01.2012,10-06819,3020.64,Jay Fostering
Nottinghamshire County Council,1111/1001,Children and Young People,CYP,Third Party Payments,EGA,30.01.2012,10-06820,3193.22,Jay Fostering
Nottinghamshire County Council,1111/1001,Children and Young People,CYP,Third Party Payments,EGA,30.01.2012,10-06821,2297.7,Fostering People Ltd
Nottinghamshire County Council,1111/1001,Children and Young People,CYP,Third Party Payments,EGA,30.01.2012,10-10140,2777.29,Hope Fostering Services Ltd
Nottinghamshire County Council,1111/1001,Children and Young People,CYP,Third Party Payments,EGA,30.01.2012,10-10141,2922.99,Hope Fostering Services Ltd
Nottinghamshire County Council,1111/1001,Children and Young People,CYP,Third Party Payments,EGA,30.01.2012,10-10145,3108.99,Hope Fostering Services Ltd
Nottinghamshire County Council,1111/1001,Children and Young People,CYP,Third Party Payments,EGA,30.01.2012,10-10147,2777.29,Hope Fostering Services Ltd
Nottinghamshire County Council,1111/1001,Children and Young People,CYP,Third Party Payments,EGA,30.01.2012,10-10148,3109.3,Hope Fostering Services Ltd
Nottinghamshire County Council,1111/1001,Children and Young People,CYP,Third Party Payments,EGA,30.01.2012,10-10149,2922.99,Hope Fostering Services Ltd
Nottinghamshire County Council,1111/1001,Children and Young People,CYP,Third Party Payments,EGA,30.01.2012,10-10151,3155.18,Hope Fostering Services Ltd
Nottinghamshire County Council,1111/1001,Children and Young People,CYP,Third Party Payments,EGA,30.01.2012,10-10160,4074.02,Foster Care Associates Ltd
Nottinghamshire County Council,1111/1001,Children and Young People,CYP,Third Party Payments,EGA,30.01.2012,10-10161,4208.25,Foster Care Associates Ltd
Nottinghamshire County Council,1111/1001,Children and Young People,CYP,Third Party Payments,EGA,30.01.2012,10-10162,3852.68,Foster Care Associates Ltd
Nottinghamshire County Council,1111/1001,Children and Young People,CYP,Third Party Payments,EGA,30.01.2012,10-10163,4208.25,Foster Care Associates Ltd
Nottinghamshire County Council,1111/1001,Children and Young People,CYP,Third Party Payments,EGA,31.01.2012,10-09969,1059.2,At Your Service Care Ltd
Nottinghamshire County Council,1111/1001,Children and Young People,CYP,Third Party Payments,EGA,31.01.2012,10-10042,552,Quayside Care Ltd
Nottinghamshire County Council,1111/1001,Children and Young People,CYP,Third Party Payments,EGA,31.01.2012,10-10043,17207,Wings Education Ltd
Nottinghamshire County Council,1111/1001,Children and Young People,CYP,Third Party Payments,EGA,31.01.2012,10-10044,3020.7,Jay Fostering
Nottinghamshire County Council,1111/1001,Children and Young People,CYP,Third Party Payments,EGA,31.01.2012,10-10045,15300,Country Care
Nottinghamshire County Council,1111/1001,Children and Young People,CYP,Third Party Payments,EGA,31.01.2012,10-10046,4385,Woodard Schools (Notts) Ltd
Nottinghamshire County Council,1111/1001,Children and Young People,CYP,Third Party Payments,EGA,31.01.2012,10-10047,12399.38,Castle Homes Care Ltd
Nottinghamshire County Council,1111/1001,Children and Young People,CYP,Third Party Payments,EGA,31.01.2012,10-10048,12000,Blue Mountain Homes Ltd
Nottinghamshire County Council,1111/1001,Children and Young People,CYP,Third Party Payments,EGA,31.01.2012,10-10049,800,Blue Mountain Homes Ltd
Nottinghamshire County Council,1111/1001,Children and Young People,CYP,Third Party Payments,EGA,31.01.2012,10-10050,1081.96,16 Plus
Nottinghamshire County Council,1111/1001,Children and Young People,CYP,Third Party Payments,EGA,31.01.2012,10-10051,13285.67,Bettercare Keys Ltd
Nottinghamshire County Council,1111/1001,Children and Young People,CYP,Third Party Payments,EGA,31.01.2012,10-10052,3193.31,Jay Fostering
Nottinghamshire County Council,1111/1001,Children and Young People,CYP,Third Party Payments,EGA,31.01.2012,10-10053,3077.13,Jay Fostering
Nottinghamshire County Council,1111/1001,Children and Young People,CYP,Third Party Payments,EGA,31.01.2012,10-10054,3090.3,Jay Fostering
Nottinghamshire County Council,1111/1001,Children and Young People,CYP,Third Party Payments,EGA,31.01.2012,10-10055,2997.51,Jay Fostering
Nottinghamshire County Council,1111/1001,Children and Young People,CYP,Third Party Payments,EGA,31.01.2012,10-10056,3252.9,Jay Fostering
Nottinghamshire County Council,1111/1001,Children and Young People,CYP,Third Party Payments,EGA,31.01.2012,10-10057,3361.28,Jay Fostering
Nottinghamshire County Council,1111/1001,Children and Young People,CYP,Third Party Payments,EGA,31.01.2012,10-10180,2840.75,Fostering Solutions Ltd
Nottinghamshire County Council,1111/1001,Children and Young People,CYP,Third Party Payments,EGA,31.01.2012,10-10183,1375,S Cowen
Nottinghamshire County Council,1111/1001,Children and Young People,CYP,Third Party Payments,EHA,19.01.2012,10-05506,860,Dfw Adoption
Nottinghamshire County Council,1111/1001,Children and Young People,CYP,Third Party Payments,EHA,30.01.2012,10-06845,11589,Cabrini Childrens Society
Nottinghamshire County Council,1111/1001,Children and Young People,CYP,Transfer Payments,GAA,13.01.2012,10-04786,9100,Tring Park School
Nottinghamshire County Council,1111/1001,Children and Young People,CYP,Transfer Payments,GAA,31.01.2012,10-10040,554.96,Jay Fostering
Nottinghamshire County Council,1111/1001,Children and Young People,CYP,Support Services,HAA,05.01.2012,10-03585,1501.5,Arnold Acorn Travel
Nottinghamshire County Council,1111/1001,Children and Young People,CYP,Support Services,HAA,05.01.2012,10-03599,4433.8,F & J Marriott T/A Unity Coaches
Nottinghamshire County Council,1111/1001,Children and Young People,CYP,Support Services,HAA,05.01.2012,10-03600,1194,F & J Marriott T/A Unity Coaches
Nottinghamshire County Council,1111/1001,Children and Young People,CYP,Support Services,HAA,05.01.2012,10-03605,1025.35,AOT Coaches
Nottinghamshire County Council,1111/1001,Children and Young People,CYP,Support Services,HAA,05.01.2012,10-03606,1495.16,AOT Coaches
Nottinghamshire County Council,1111/1001,Children and Young People,CYP,Support Services,HAA,05.01.2012,10-03607,1679.49,AOT Coaches
Nottinghamshire County Council,1111/1001,Children and Young People,CYP,Support Services,HAA,05.01.2012,10-03608,1868.59,AOT Coaches
Nottinghamshire County Council,1111/1001,Children and Young People,CYP,Support Services,HAA,05.01.2012,10-03609,1510.98,AOT Coaches
Nottinghamshire County Council,1111/1001,Children and Young People,CYP,Support Services,HAA,05.01.2012,10-03613,9471,K & H Doyle Coaches Ltd
Nottinghamshire County Council,1111/1001,Children and Young People,CYP,Support Services,HAA,05.01.2012,10-03615,1845.2,Freeway Coaches Ltd
Nottinghamshire County Council,1111/1001,Children and Young People,CYP,Support Services,HAA,05.01.2012,10-03616,1678.48,Freeway Coaches Ltd
Nottinghamshire County Council,1111/1001,Children and Young People,CYP,Support Services,HAA,05.01.2012,10-03620,1806,Paul S Winson Coaches
Nottinghamshire County Council,1111/1001,Children and Young People,CYP,Support Services,HAA,05.01.2012,10-03621,1984,Paul S Winson Coaches
Nottinghamshire County Council,1111/1001,Children and Young People,CYP,Support Services,HAA,05.01.2012,10-03623,1545,C W Moxon Ltd
Nottinghamshire County Council,1111/1001,Children and Young People,CYP,Support Services,HAA,05.01.2012,10-03624,1565.7,C W Moxon Ltd
Nottinghamshire County Council,1111/1001,Children and Young People,CYP,Support Services,HAA,05.01.2012,10-03625,1811.6,C W Moxon Ltd
Nottinghamshire County Council,1111/1001,Children and Young People,CYP,Support Services,HAA,12.01.2012,10-04550,840,Kirkhams Coaches
Nottinghamshire County Council,1111/1001,Children and Young People,CYP,Support Services,HAA,12.01.2012,10-04551,11190.15,Redfern Travel
Nottinghamshire County Council,1111/1001,Children and Young People,CYP,Support Services,HAA,12.01.2012,10-04552,7936,Redfern Travel
Nottinghamshire County Council,1111/1001,Children and Young People,CYP,Support Services,HAA,12.01.2012,10-04554,1738.4,Redfern Travel
Nottinghamshire County Council,1111/1001,Children and Young People,CYP,Support Services,HAA,12.01.2012,10-04555,2131.59,Redfern Travel
Nottinghamshire County Council,1111/1001,Children and Young People,CYP,Support Services,HAA,12.01.2012,10-04556,2038.05,Redfern Travel
Nottinghamshire County Council,1111/1001,Children and Young People,CYP,Support Services,HAA,12.01.2012,10-04557,1923.97,Redfern Travel
Nottinghamshire County Council,1111/1001,Children and Young People,CYP,Support Services,HAA,12.01.2012,10-04604,2036.25,Tiger European Uk Ltd
Nottinghamshire County Council,1111/1001,Children and Young People,CYP,Support Services,HAA,12.01.2012,10-04605,1520.7,Tiger European Uk Ltd
Nottinghamshire County Council,1111/1001,Children and Young People,CYP,Support Services,HAA,12.01.2012,10-04606,1689.56,Tiger European Uk Ltd
Nottinghamshire County Council,1111/1001,Children and Young People,CYP,Support Services,HAA,12.01.2012,10-04607,1668,Tiger European Uk Ltd
Nottinghamshire County Council,1111/1001,Children and Young People,CYP,Support Services,HAA,12.01.2012,10-04622,2238.9,Freeway Coaches Ltd
Nottinghamshire County Council,1111/1001,Children and Young People,CYP,Support Services,HAA,13.01.2012,10-04852,1526,Garys Coaches Ltd
Nottinghamshire County Council,1111/1001,Children and Young People,CYP,Support Services,HAA,13.01.2012,10-04856,2003.75,Dunn Motor Traction
Nottinghamshire County Council,1111/1001,Children and Young People,CYP,Support Services,HAA,13.01.2012,10-04857,1446.68,Dunn Motor Traction
Nottinghamshire County Council,1111/1001,Children and Young People,CYP,Support Services,HAA,13.01.2012,10-04858,2582.19,Dunn Motor Traction
Nottinghamshire County Council,1111/1001,Children and Young People,CYP,Support Services,HAA,13.01.2012,10-04859,2041.12,Dunn Motor Traction
Nottinghamshire County Council,1111/1001,Children and Young People,CYP,Support Services,HAA,13.01.2012,10-04860,4987.5,Dunn Motor Traction
Nottinghamshire County Council,1111/1001,Children and Young People,CYP,Support Services,HAA,13.01.2012,10-04922,1385.5,Marshalls Of Sutton On Trent Ltd
Nottinghamshire County Council,1111/1001,Children and Young People,CYP,Support Services,HAA,13.01.2012,10-04925,1489.09,Marshalls Of Sutton On Trent Ltd
Nottinghamshire County Council,1111/1001,Children and Young People,CYP,Support Services,HAA,13.01.2012,10-04932,1788,Marshalls Of Sutton On Trent Ltd
Nottinghamshire County Council,1111/1001,Children and Young People,CYP,Support Services,HAA,13.01.2012,10-04936,755,Nottm Minibuses & Coaches
Nottinghamshire County Council,1111/1001,Children and Young People,CYP,Support Services,HAA,13.01.2012,10-04938,2360.84,Silverdale Tours Nottm Ltd
Nottinghamshire County Council,1111/1001,Children and Young People,CYP,Support Services,HAA,13.01.2012,10-04939,1874.2,Silverdale Tours Nottm Ltd
Nottinghamshire County Council,1111/1001,Children and Young People,CYP,Support Services,HAA,13.01.2012,10-04940,2062.04,Silverdale Tours Nottm Ltd
Nottinghamshire County Council,1111/1001,Children and Young People,CYP,Support Services,HAA,13.01.2012,10-04941,2013.34,Silverdale Tours Nottm Ltd
Nottinghamshire County Council,1111/1001,Children and Young People,CYP,Support Services,HAA,13.01.2012,10-04942,1175.72,Silverdale Tours Nottm Ltd
Nottinghamshire County Council,1111/1001,Children and Young People,CYP,Support Services,HAA,13.01.2012,10-04945,1871.85,Travel Wright Ltd
Nottinghamshire County Council,1111/1001,Children and Young People,CYP,Support Services,HAA,13.01.2012,10-04946,2185.31,Travel Wright Ltd
Nottinghamshire County Council,1111/1001,Children and Young People,CYP,Support Services,HAA,13.01.2012,10-04947,1862.59,Travel Wright Ltd
Nottinghamshire County Council,1111/1001,Children and Young People,CYP,Support Services,HAA,13.01.2012,10-04948,1400,Travel Wright Ltd
Nottinghamshire County Council,1111/1001,Children and Young People,CYP,Support Services,HAA,13.01.2012,10-04949,1378,Travel Wright Ltd
Nottinghamshire County Council,1111/1001,Children and Young People,CYP,Support Services,HAA,13.01.2012,10-04950,1937.44,Travel Wright Ltd
Nottinghamshire County Council,1111/1001,Children and Young People,CYP,Support Services,HAA,13.01.2012,10-04952,120,Travel Wright Ltd
Nottinghamshire County Council,1111/1001,Children and Young People,CYP,Support Services,HAA,13.01.2012,10-04956,1024.44,Jc Coaches
Nottinghamshire County Council,1111/1001,Children and Young People,CYP,Support Services,HAA,13.01.2012,10-04957,3850,Wilfreda Beehive
Nottinghamshire County Council,1111/1001,Children and Young People,CYP,Support Services,HAA,17.01.2012,10-05207,2146,Premiere Travel Ltd
Nottinghamshire County Council,1111/1001,Children and Young People,CYP,Support Services,HAA,17.01.2012,10-05208,1630.2,Premiere Travel Ltd
Nottinghamshire County Council,1111/1001,Children and Young People,CYP,Support Services,HAA,17.01.2012,10-05209,1696.4,Premiere Travel Ltd
Nottinghamshire County Council,1111/1001,Children and Young People,CYP,Support Services,HAA,17.01.2012,10-05210,1966.98,Premiere Travel Ltd
Nottinghamshire County Council,1111/1001,Children and Young People,CYP,Support Services,HAA,17.01.2012,10-05211,2085.8,Premiere Travel Ltd
Nottinghamshire County Council,1111/1001,Children and Young People,CYP,Support Services,HAA,17.01.2012,10-05214,9932.6,Premiere Travel Ltd
Nottinghamshire County Council,1111/1001,Children and Young People,CYP,Support Services,HAA,17.01.2012,10-05215,19011.91,Premiere Travel Ltd
Nottinghamshire County Council,1111/1001,Children and Young People,CYP,Support Services,HAA,17.01.2012,10-05216,3373.46,Premiere Travel Ltd
Nottinghamshire County Council,1111/1001,Children and Young People,CYP,Support Services,HAA,17.01.2012,10-05220,1258.6,Vale Travel
Nottinghamshire County Council,1111/1001,Children and Young People,CYP,Support Services,HAA,17.01.2012,10-05241,1678.3,Jb Tours Watnall Ltd
Nottinghamshire County Council,1111/1001,Children and Young People,CYP,Support Services,HAA,19.01.2012,10-05570,3145.5,Stagecoach Services Ltd
Nottinghamshire County Council,1111/1001,Children and Young People,CYP,Support Services,HAA,19.01.2012,10-05582,1740,Stagecoach Services Ltd
Nottinghamshire County Council,1111/1001,Children and Young People,CYP,Support Services,HAA,19.01.2012,10-05583,2646.6,Stagecoach Services Ltd
Nottinghamshire County Council,1111/1001,Children and Young People,CYP,Support Services,HAA,19.01.2012,10-05584,2697.9,Stagecoach Services Ltd
Nottinghamshire County Council,1111/1001,Children and Young People,CYP,Support Services,HAA,23.01.2012,10-05858,1200,The Dukeries College
Nottinghamshire County Council,1111/1001,Children and Young People,CYP,Support Services,HAA,23.01.2012,10-05908,2176.85,Sharpes Of Nottingham
Nottinghamshire County Council,1111/1001,Children and Young People,CYP,Support Services,HAA,23.01.2012,10-05909,4016.04,Sharpes Of Nottingham
Nottinghamshire County Council,1111/1001,Children and Young People,CYP,Support Services,HAA,23.01.2012,10-05910,1863.85,Sharpes Of Nottingham
Nottinghamshire County Council,1111/1001,Children and Young People,CYP,Support Services,HAA,23.01.2012,10-05913,1524.8,Sharpes Of Nottingham
Nottinghamshire County Council,1111/1001,Children and Young People,CYP,Support Services,HAA,23.01.2012,10-05917,9061.1,Johnson Bros Tours Ltd
Nottinghamshire County Council,1111/1001,Children and Young People,CYP,Support Services,HAA,23.01.2012,10-05918,2394.24,Johnson Bros Tours Ltd
Nottinghamshire County Council,1111/1001,Children and Young People,CYP,Support Services,HAA,23.01.2012,10-05927,4941.12,Lowes Coaches Ltd
Nottinghamshire County Council,1111/1001,Children and Young People,CYP,Support Services,HAA,23.01.2012,10-05928,2771,Lowes Coaches Ltd
Nottinghamshire County Council,1111/1001,Children and Young People,CYP,Support Services,HAA,23.01.2012,10-05929,2242.55,Lowes Coaches Ltd
Nottinghamshire County Council,1111/1001,Children and Young People,CYP,Support Services,HAA,23.01.2012,10-05930,2249,Lowes Coaches Ltd
Nottinghamshire County Council,1111/1001,Children and Young People,CYP,Support Services,HAA,23.01.2012,10-05931,1636,Lowes Coaches Ltd
Nottinghamshire County Council,1111/1001,Children and Young People,CYP,Support Services,HAA,23.01.2012,10-05932,1533.2,Lowes Coaches Ltd
Nottinghamshire County Council,1111/1001,Children and Young People,CYP,Support Services,HAA,23.01.2012,10-05933,1901,Lowes Coaches Ltd
Nottinghamshire County Council,1111/1001,Children and Young People,CYP,Support Services,HAA,23.01.2012,10-05934,1660.63,Lowes Coaches Ltd
Nottinghamshire County Council,1111/1001,Children and Young People,CYP,Support Services,HAA,23.01.2012,10-05947,2762.95,AOT Coaches
Nottinghamshire County Council,1111/1001,Children and Young People,CYP,Support Services,HAA,23.01.2012,10-05953,3865.5,Wallis Coachways
Nottinghamshire County Council,1111/1001,Children and Young People,CYP,Support Services,HAA,23.01.2012,10-05954,1887.12,Wallis Coachways
Nottinghamshire County Council,1111/1001,Children and Young People,CYP,Income,JHA,30.01.2012,10-00024,2789,Not assigned
Nottinghamshire County Council,1111/1001,Adult Social Care and Health,ASCH,Employee Related,ABA,06.01.2012,10-00089,11,Capita Resourcing
Nottinghamshire County Council,1111/1001,Adult Social Care and Health,ASCH,Premises Related,BAA,03.01.2012,10-00257,630,Slack & Co Floorcoverings
Nottinghamshire County Council,1111/1001,Adult Social Care and Health,ASCH,Premises Related,BAA,06.01.2012,10-03947,1910.43,Ashwell Maintenance Ltd
Nottinghamshire County Council,1111/1001,Adult Social Care and Health,ASCH,Premises Related,BAA,18.01.2012,10-05395,562.1,Arjo Med Ab Ltd
Nottinghamshire County Council,1111/1001,Adult Social Care and Health,ASCH,Premises Related,BAA,18.01.2012,10-05409,998.55,Slack & Co Floorcoverings
Nottinghamshire County Council,1111/1001,Adult Social Care and Health,ASCH,Premises Related,BAA,20.01.2012,10-05851,6250,C A Thompson Ltd T/A Ultraseal
Nottinghamshire County Council,1111/1001,Adult Social Care and Health,ASCH,Premises Related,BAA,27.01.2012,10-06667,1105.2,Besam Ltd
Nottinghamshire County Council,1111/1001,Adult Social Care and Health,ASCH,Premises Related,BCA,18.01.2012,10-05388,1977.54,Paul Hunt Electrical Ltd
Nottinghamshire County Council,1111/1001,Adult Social Care and Health,ASCH,Premises Related,BCA,20.01.2012,10-05803,925,Forever Fuels Ltd
Nottinghamshire County Council,1111/1001,Adult Social Care and Health,ASCH,Premises Related,BCA,31.01.2012,10-09988,1045.59,Coal 4 Energy Ltd
Nottinghamshire County Council,1111/1001,Adult Social Care and Health,ASCH,Premises Related,BDA,04.01.2012,10-03396,806,Grove Street Methodist Church
Nottinghamshire County Council,1111/1001,Adult Social Care and Health,ASCH,Premises Related,BDA,04.01.2012,10-03503,6684.48,Places For People Individual Suppor
Nottinghamshire County Council,1111/1001,Adult Social Care and Health,ASCH,Premises Related,BDA,10.01.2012,10-00001,6600,Premain Ltd
Nottinghamshire County Council,1111/1001,Adult Social Care and Health,ASCH,Premises Related,BDA,10.01.2012,10-04134,1500.8,Making It! Enterprises Ltd
Nottinghamshire County Council,1111/1001,Adult Social Care and Health,ASCH,Premises Related,BDA,10.01.2012,10-04405,902.8,Making It! Enterprises Ltd
Nottinghamshire County Council,1111/1001,Adult Social Care and Health,ASCH,Premises Related,BDA,13.01.2012,10-04871,958.7,Making It! Enterprises Ltd
Nottinghamshire County Council,1111/1001,Adult Social Care and Health,ASCH,Premises Related,BDA,16.01.2012,10-05006,600,J Sudbury
Nottinghamshire County Council,1111/1001,Adult Social Care and Health,ASCH,Premises Related,BDA,18.01.2012,10-05396,5000,T P R Precision
Nottinghamshire County Council,1111/1001,Adult Social Care and Health,ASCH,Premises Related,BDA,19.01.2012,10-05592,728.5,Making It! Enterprises Ltd
Nottinghamshire County Council,1111/1001,Adult Social Care and Health,ASCH,Premises Related,BDA,23.01.2012,10-05963,1561.28,Making It! Enterprises Ltd
Nottinghamshire County Council,1111/1001,Adult Social Care and Health,ASCH,Premises Related,BDA,23.01.2012,10-05975,775.28,Progress Care Housing Assoc Ltd
Nottinghamshire County Council,1111/1001,Adult Social Care and Health,ASCH,Premises Related,BDA,23.01.2012,10-05978,1249.44,Renaissance Social Housing
Nottinghamshire County Council,1111/1001,Adult Social Care and Health,ASCH,Premises Related,BDA,24.01.2012,10-06088,1205.1,Making It! Enterprises Ltd
Nottinghamshire County Council,1111/1001,Adult Social Care and Health,ASCH,Premises Related,BDA,25.01.2012,10-06423,4251.52,Making It! Enterprises Ltd
Nottinghamshire County Council,1111/1001,Adult Social Care and Health,ASCH,Premises Related,BDA,27.01.2012,10-06797,600,J Sudbury
Nottinghamshire County Council,1111/1001,Adult Social Care and Health,ASCH,Premises Related,BDA,31.01.2012,10-09987,775.28,Progress Care Housing Assoc Ltd
Nottinghamshire County Council,1111/1001,Adult Social Care and Health,ASCH,Premises Related,BFA,03.01.2012,10-00246,1617.93,Severn Trent Water Ltd
Nottinghamshire County Council,1111/1001,Adult Social Care and Health,ASCH,Premises Related,BFA,05.01.2012,10-03633,2280.46,Severn Trent Water Ltd
Nottinghamshire County Council,1111/1001,Adult Social Care and Health,ASCH,Premises Related,BFA,05.01.2012,10-03738,2693.49,Severn Trent Water Ltd
Nottinghamshire County Council,1111/1001,Adult Social Care and Health,ASCH,Premises Related,BFA,17.01.2012,10-05342,1580.67,Severn Trent Water Ltd
Nottinghamshire County Council,1111/1001,Adult Social Care and Health,ASCH,Premises Related,BJA,10.01.2012,10-04437,674.8,Eddie Ward
Nottinghamshire County Council,1111/1001,Adult Social Care and Health,ASCH,Premises Related,BJA,18.01.2012,10-05487,612.6,J & R Bennett Ltd
Nottinghamshire County Council,1111/1001,Adult Social Care and Health,ASCH,Transport Related,CCA,06.01.2012,10-03930,1078.11,Gk Group Mansfield
Nottinghamshire County Council,1111/1001,Adult Social Care and Health,ASCH,Transport Related,CCA,09.01.2012,10-04072,1144,1st 4 Care Ltd
Nottinghamshire County Council,1111/1001,Adult Social Care and Health,ASCH,Transport Related,CCA,12.01.2012,10-04533,1442.1,Taxicover Uk Ltd
Nottinghamshire County Council,1111/1001,Adult Social Care and Health,ASCH,Transport Related,CCA,12.01.2012,10-04534,1017.45,Taxicover Uk Ltd
Nottinghamshire County Council,1111/1001,Adult Social Care and Health,ASCH,Transport Related,CCA,12.01.2012,10-04535,543.15,Taxicover Uk Ltd
Nottinghamshire County Council,1111/1001,Adult Social Care and Health,ASCH,Transport Related,CCA,12.01.2012,10-04536,1288.7,Southside Cars
Nottinghamshire County Council,1111/1001,Adult Social Care and Health,ASCH,Transport Related,CCA,12.01.2012,10-04558,788.1,200 Cars Ltd
Nottinghamshire County Council,1111/1001,Adult Social Care and Health,ASCH,Transport Related,CCA,12.01.2012,10-04559,1047.3,200 Cars Ltd
Nottinghamshire County Council,1111/1001,Adult Social Care and Health,ASCH,Transport Related,CCA,12.01.2012,10-04560,811.45,200 Cars Ltd
Nottinghamshire County Council,1111/1001,Adult Social Care and Health,ASCH,Transport Related,CCA,12.01.2012,10-04570,1120,Bridges Transport Services
Nottinghamshire County Council,1111/1001,Adult Social Care and Health,ASCH,Transport Related,CCA,12.01.2012,10-04571,1120,Bridges Transport Services
Nottinghamshire County Council,1111/1001,Adult Social Care and Health,ASCH,Transport Related,CCA,12.01.2012,10-04572,3155.8,Bridges Transport Services
Nottinghamshire County Council,1111/1001,Adult Social Care and Health,ASCH,Transport Related,CCA,12.01.2012,10-04573,1949.8,Bridges Transport Services
Nottinghamshire County Council,1111/1001,Adult Social Care and Health,ASCH,Transport Related,CCA,12.01.2012,10-04574,850,Bridges Transport Services
Nottinghamshire County Council,1111/1001,Adult Social Care and Health,ASCH,Transport Related,CCA,12.01.2012,10-04575,1090,Bridges Transport Services
Nottinghamshire County Council,1111/1001,Adult Social Care and Health,ASCH,Transport Related,CCA,12.01.2012,10-04576,1200,Bridges Transport Services
Nottinghamshire County Council,1111/1001,Adult Social Care and Health,ASCH,Transport Related,CCA,12.01.2012,10-04577,865,Bridges Transport Services
Nottinghamshire County Council,1111/1001,Adult Social Care and Health,ASCH,Transport Related,CCA,12.01.2012,10-04578,560,Bridges Transport Services
Nottinghamshire County Council,1111/1001,Adult Social Care and Health,ASCH,Transport Related,CCA,12.01.2012,10-04579,538.2,Bridges Transport Services
Nottinghamshire County Council,1111/1001,Adult Social Care and Health,ASCH,Transport Related,CCA,12.01.2012,10-04581,850,Galaxy Cabs
Nottinghamshire County Council,1111/1001,Adult Social Care and Health,ASCH,Transport Related,CCA,12.01.2012,10-04582,1628.1,Ja Travel Ltd
Nottinghamshire County Council,1111/1001,Adult Social Care and Health,ASCH,Transport Related,CCA,12.01.2012,10-04583,2410.5,Mct Uk Ltd
Nottinghamshire County Council,1111/1001,Adult Social Care and Health,ASCH,Transport Related,CCA,12.01.2012,10-04584,536,Motorvation Taxis
Nottinghamshire County Council,1111/1001,Adult Social Care and Health,ASCH,Transport Related,CCA,12.01.2012,10-04585,867.9,Ng11 Cars
Nottinghamshire County Council,1111/1001,Adult Social Care and Health,ASCH,Transport Related,CCA,12.01.2012,10-04586,768,Ng11 Cars
Nottinghamshire County Council,1111/1001,Adult Social Care and Health,ASCH,Transport Related,CCA,12.01.2012,10-04588,2052.8,Sprays Transport Ltd
Nottinghamshire County Council,1111/1001,Adult Social Care and Health,ASCH,Transport Related,CCA,12.01.2012,10-04589,2805.12,Sprays Transport Ltd
Nottinghamshire County Council,1111/1001,Adult Social Care and Health,ASCH,Transport Related,CCA,12.01.2012,10-04591,528.4,Trent Cars
Nottinghamshire County Council,1111/1001,Adult Social Care and Health,ASCH,Transport Related,CCA,12.01.2012,10-04592,1756.5,F & J Marriott T/A Unity Coaches
Nottinghamshire County Council,1111/1001,Adult Social Care and Health,ASCH,Transport Related,CCA,12.01.2012,10-04593,1941.3,F & J Marriott T/A Unity Coaches
Nottinghamshire County Council,1111/1001,Adult Social Care and Health,ASCH,Transport Related,CCA,12.01.2012,10-04594,2190,F & J Marriott T/A Unity Coaches
Nottinghamshire County Council,1111/1001,Adult Social Care and Health,ASCH,Transport Related,CCA,12.01.2012,10-04595,2106.6,Vallances Coaches
Nottinghamshire County Council,1111/1001,Adult Social Care and Health,ASCH,Transport Related,CCA,12.01.2012,10-04600,1040,Petes Taxi Service
Nottinghamshire County Council,1111/1001,Adult Social Care and Health,ASCH,Transport Related,CCA,12.01.2012,10-04602,734.3,Nunns Cars
Nottinghamshire County Council,1111/1001,Adult Social Care and Health,ASCH,Transport Related,CCA,12.01.2012,10-04603,1094,Nunns Cars
Nottinghamshire County Council,1111/1001,Adult Social Care and Health,ASCH,Transport Related,CCA,12.01.2012,10-04609,2229,Tims Taxi
Nottinghamshire County Council,1111/1001,Adult Social Care and Health,ASCH,Transport Related,CCA,12.01.2012,10-04610,595,P & P Taxis
Nottinghamshire County Council,1111/1001,Adult Social Care and Health,ASCH,Transport Related,CCA,12.01.2012,10-04611,2184,P & P Taxis
Nottinghamshire County Council,1111/1001,Adult Social Care and Health,ASCH,Transport Related,CCA,12.01.2012,10-04612,1450,P & P Taxis
Nottinghamshire County Council,1111/1001,Adult Social Care and Health,ASCH,Transport Related,CCA,12.01.2012,10-04614,1146,P & P Taxis
Nottinghamshire County Council,1111/1001,Adult Social Care and Health,ASCH,Transport Related,CCA,12.01.2012,10-04615,940,P & P Taxis
Nottinghamshire County Council,1111/1001,Adult Social Care and Health,ASCH,Transport Related,CCA,12.01.2012,10-04616,1340,P & P Taxis
Nottinghamshire County Council,1111/1001,Adult Social Care and Health,ASCH,Transport Related,CCA,12.01.2012,10-04617,1346,P & P Taxis
Nottinghamshire County Council,1111/1001,Adult Social Care and Health,ASCH,Transport Related,CCA,12.01.2012,10-04618,1900,P & P Taxis
Nottinghamshire County Council,1111/1001,Adult Social Care and Health,ASCH,Transport Related,CCA,12.01.2012,10-04619,560,P & P Taxis
Nottinghamshire County Council,1111/1001,Adult Social Care and Health,ASCH,Transport Related,CCA,12.01.2012,10-04620,600,P & P Taxis
Nottinghamshire County Council,1111/1001,Adult Social Care and Health,ASCH,Transport Related,CCA,12.01.2012,10-04621,562,P & P Taxis
Nottinghamshire County Council,1111/1001,Adult Social Care and Health,ASCH,Transport Related,CCA,12.01.2012,10-04624,1080,Town Taxis Ltd
Nottinghamshire County Council,1111/1001,Adult Social Care and Health,ASCH,Transport Related,CCA,12.01.2012,10-04625,2854.25,Town Taxis Ltd
Nottinghamshire County Council,1111/1001,Adult Social Care and Health,ASCH,Transport Related,CCA,12.01.2012,10-04641,563.38,A Line Taxis
Nottinghamshire County Council,1111/1001,Adult Social Care and Health,ASCH,Transport Related,CCA,12.01.2012,10-04642,1040,Bridges Transport Services
Nottinghamshire County Council,1111/1001,Adult Social Care and Health,ASCH,Transport Related,CCA,12.01.2012,10-04643,1034,P & P Taxis
Nottinghamshire County Council,1111/1001,Adult Social Care and Health,ASCH,Transport Related,CCA,12.01.2012,10-04644,690,Bridges Transport Services
Nottinghamshire County Council,1111/1001,Adult Social Care and Health,ASCH,Transport Related,CCA,12.01.2012,10-04645,900,Bridges Transport Services
Nottinghamshire County Council,1111/1001,Adult Social Care and Health,ASCH,Transport Related,CCA,13.01.2012,10-04788,1768,Cabline Uk Ltd
Nottinghamshire County Council,1111/1001,Adult Social Care and Health,ASCH,Transport Related,CCA,13.01.2012,10-04789,2200.1,Central Cars Nottm Ltd
Nottinghamshire County Council,1111/1001,Adult Social Care and Health,ASCH,Transport Related,CCA,13.01.2012,10-04790,1831.4,Central Cars Nottm Ltd
Nottinghamshire County Council,1111/1001,Adult Social Care and Health,ASCH,Transport Related,CCA,13.01.2012,10-04791,1827.8,Central Cars Nottm Ltd
Nottinghamshire County Council,1111/1001,Adult Social Care and Health,ASCH,Transport Related,CCA,13.01.2012,10-04792,1168.9,Central Cars Nottm Ltd
Nottinghamshire County Council,1111/1001,Adult Social Care and Health,ASCH,Transport Related,CCA,13.01.2012,10-04793,510,Central Cars Nottm Ltd
Nottinghamshire County Council,1111/1001,Adult Social Care and Health,ASCH,Transport Related,CCA,13.01.2012,10-04794,1569.1,CBC Taxis Ltd
Nottinghamshire County Council,1111/1001,Adult Social Care and Health,ASCH,Transport Related,CCA,13.01.2012,10-04795,1508.3,CBC Taxis Ltd
Nottinghamshire County Council,1111/1001,Adult Social Care and Health,ASCH,Transport Related,CCA,13.01.2012,10-04796,1425.4,CBC Taxis Ltd
Nottinghamshire County Council,1111/1001,Adult Social Care and Health,ASCH,Transport Related,CCA,13.01.2012,10-04797,546.2,CBC Taxis Ltd
Nottinghamshire County Council,1111/1001,Adult Social Care and Health,ASCH,Transport Related,CCA,13.01.2012,10-04798,14848.76,Ace Of Mansfield Ltd
Nottinghamshire County Council,1111/1001,Adult Social Care and Health,ASCH,Transport Related,CCA,13.01.2012,10-04799,566.72,Acorn Travel
Nottinghamshire County Council,1111/1001,Adult Social Care and Health,ASCH,Transport Related,CCA,13.01.2012,10-04800,1085.4,Acorn Travel
Nottinghamshire County Council,1111/1001,Adult Social Care and Health,ASCH,Transport Related,CCA,13.01.2012,10-04801,945.12,Acorn Travel
Nottinghamshire County Council,1111/1001,Adult Social Care and Health,ASCH,Transport Related,CCA,13.01.2012,10-04802,1331,Alpha Cars
Nottinghamshire County Council,1111/1001,Adult Social Care and Health,ASCH,Transport Related,CCA,13.01.2012,10-04803,4424.3,D G Private Hire Ltd
Nottinghamshire County Council,1111/1001,Adult Social Care and Health,ASCH,Transport Related,CCA,13.01.2012,10-04804,3689.4,D G Private Hire Ltd
Nottinghamshire County Council,1111/1001,Adult Social Care and Health,ASCH,Transport Related,CCA,13.01.2012,10-04805,1621.3,D G Private Hire Ltd
Nottinghamshire County Council,1111/1001,Adult Social Care and Health,ASCH,Transport Related,CCA,13.01.2012,10-04806,3164.5,D G Private Hire Ltd
Nottinghamshire County Council,1111/1001,Adult Social Care and Health,ASCH,Transport Related,CCA,13.01.2012,10-04807,3542.1,D G Private Hire Ltd
Nottinghamshire County Council,1111/1001,Adult Social Care and Health,ASCH,Transport Related,CCA,13.01.2012,10-04808,1605.2,D G Private Hire Ltd
Nottinghamshire County Council,1111/1001,Adult Social Care and Health,ASCH,Transport Related,CCA,13.01.2012,10-04809,2212,D G Private Hire Ltd
Nottinghamshire County Council,1111/1001,Adult Social Care and Health,ASCH,Transport Related,CCA,13.01.2012,10-04810,6943.5,D G Private Hire Ltd
Nottinghamshire County Council,1111/1001,Adult Social Care and Health,ASCH,Transport Related,CCA,13.01.2012,10-04811,668.4,D G Private Hire Ltd
Nottinghamshire County Council,1111/1001,Adult Social Care and Health,ASCH,Transport Related,CCA,13.01.2012,10-04814,2955.96,Hawkins Taxis & Transport
Nottinghamshire County Council,1111/1001,Adult Social Care and Health,ASCH,Transport Related,CCA,13.01.2012,10-04846,520.2,Aaeron Cars
Nottinghamshire County Council,1111/1001,Adult Social Care and Health,ASCH,Transport Related,CCA,13.01.2012,10-04848,1884.45,Bn Gibson Ltd
Nottinghamshire County Council,1111/1001,Adult Social Care and Health,ASCH,Transport Related,CCA,13.01.2012,10-04849,2494.5,Bn Gibson Ltd
Nottinghamshire County Council,1111/1001,Adult Social Care and Health,ASCH,Transport Related,CCA,13.01.2012,10-04850,1794,Bn Gibson Ltd
Nottinghamshire County Council,1111/1001,Adult Social Care and Health,ASCH,Transport Related,CCA,13.01.2012,10-04851,9133,Abacus Cars
Nottinghamshire County Council,1111/1001,Adult Social Care and Health,ASCH,Transport Related,CCA,13.01.2012,10-04861,552,Cable Cars Taxis Nottm Ltd
Nottinghamshire County Council,1111/1001,Adult Social Care and Health,ASCH,Transport Related,CCA,13.01.2012,10-04898,76.63,Bn Gibson Ltd
Nottinghamshire County Council,1111/1001,Adult Social Care and Health,ASCH,Transport Related,CCA,13.01.2012,10-04902,888,Bn Gibson Ltd
Nottinghamshire County Council,1111/1001,Adult Social Care and Health,ASCH,Transport Related,CCA,17.01.2012,10-05221,12200.5,Cem Muskham Ltd T/A Z Cars
Nottinghamshire County Council,1111/1001,Adult Social Care and Health,ASCH,Transport Related,CCA,17.01.2012,10-05234,5287.85,Shelleys Taxis Ltd
Nottinghamshire County Council,1111/1001,Adult Social Care and Health,ASCH,Transport Related,CCA,17.01.2012,10-05239,2862.48,Premier Taxis
Nottinghamshire County Council,1111/1001,Adult Social Care and Health,ASCH,Transport Related,CCA,19.01.2012,10-05532,1005.96,1st 4 Care Ltd
Nottinghamshire County Council,1111/1001,Adult Social Care and Health,ASCH,Transport Related,CCA,23.01.2012,10-05943,947.3,CW Taxis
Nottinghamshire County Council,1111/1001,Adult Social Care and Health,ASCH,Transport Related,CCA,24.01.2012,10-05950,3038.61,Diamond Cars
Nottinghamshire County Council,1111/1001,Adult Social Care and Health,ASCH,Transport Related,CCA,25.01.2012,10-06299,1292,The Oaklands RH (mens group only)
Nottinghamshire County Council,1111/1001,Adult Social Care and Health,ASCH,Transport Related,CCA,26.01.2012,10-06465,640,Anitas Contracts
Nottinghamshire County Council,1111/1001,Adult Social Care and Health,ASCH,Transport Related,CCA,26.01.2012,10-06483,2125,1st 4 Care Ltd
Nottinghamshire County Council,1111/1001,Adult Social Care and Health,ASCH,Transport Related,CCA,26.01.2012,10-06612,957.1,1st 4 Care Ltd
Nottinghamshire County Council,1111/1001,Adult Social Care and Health,ASCH,Transport Related,CCA,26.01.2012,10-06628,678,1st 4 Care Ltd
Nottinghamshire County Council,1111/1001,Adult Social Care and Health,ASCH,Transport Related,CCA,26.01.2012,10-06629,1381.25,1st 4 Care Ltd
Nottinghamshire County Council,1111/1001,Adult Social Care and Health,ASCH,Transport Related,CCA,26.01.2012,10-06630,2700,1st 4 Care Ltd
Nottinghamshire County Council,1111/1001,Adult Social Care and Health,ASCH,Transport Related,CCA,27.01.2012,10-06767,813,1st 4 Care Ltd
Nottinghamshire County Council,1111/1001,Adult Social Care and Health,ASCH,Transport Related,CCA,27.01.2012,10-06782,595,1st 4 Care Ltd
Nottinghamshire County Council,1111/1001,Adult Social Care and Health,ASCH,Transport Related,CCA,27.01.2012,10-06790,2000,Vantastec
Nottinghamshire County Council,1111/1001,Adult Social Care and Health,ASCH,Transport Related,CCA,30.01.2012,10-06844,1446.5,1st 4 Care Ltd
Nottinghamshire County Council,1111/1001,Adult Social Care and Health,ASCH,Transport Related,CEA,05.01.2012,10-03629,32.94,Capita Resourcing Social Care & Hou
Nottinghamshire County Council,1111/1001,Adult Social Care and Health,ASCH,Transport Related,CEA,06.01.2012,10-00090,22.05,Capita Resourcing
Nottinghamshire County Council,1111/1001,Adult Social Care and Health,ASCH,Transport Related,CEA,06.01.2012,10-00091,6.64,Capita Resourcing
Nottinghamshire County Council,1111/1001,Adult Social Care and Health,ASCH,Transport Related,CEA,06.01.2012,10-00092,22.5,Capita Resourcing
Nottinghamshire County Council,1111/1001,Adult Social Care and Health,ASCH,Transport Related,CEA,06.01.2012,10-00127,10.9,Capita Resourcing
Nottinghamshire County Council,1111/1001,Adult Social Care and Health,ASCH,Transport Related,CEA,06.01.2012,10-03752,35.91,Capita Resourcing Social Care & Hou
Nottinghamshire County Council,1111/1001,Adult Social Care and Health,ASCH,Transport Related,CEA,06.01.2012,10-03926,12.6,Capita Resourcing Social Care & Hou
Nottinghamshire County Council,1111/1001,Adult Social Care and Health,ASCH,Transport Related,CEA,11.01.2012,10-04448,21.6,Capita Resourcing
Nottinghamshire County Council,1111/1001,Adult Social Care and Health,ASCH,Transport Related,CEA,11.01.2012,10-04478,26.4,Capita Resourcing Social Care & Hou
Nottinghamshire County Council,1111/1001,Adult Social Care and Health,ASCH,Transport Related,CEA,11.01.2012,10-04479,370.35,Capita Resourcing
Nottinghamshire County Council,1111/1001,Adult Social Care and Health,ASCH,Transport Related,CEA,11.01.2012,10-04496,16.2,Capita Resourcing Social Care & Hou
Nottinghamshire County Council,1111/1001,Adult Social Care and Health,ASCH,Transport Related,CEA,13.01.2012,10-04480,429.75,Capita Resourcing Social Care & Hou
Nottinghamshire County Council,1111/1001,Adult Social Care and Health,ASCH,Transport Related,CEA,13.01.2012,10-04497,15.92,Capita Resourcing
Nottinghamshire County Council,1111/1001,Adult Social Care and Health,ASCH,Transport Related,CEA,17.01.2012,10-05356,17.1,Capita Resourcing
Nottinghamshire County Council,1111/1001,Adult Social Care and Health,ASCH,Transport Related,CEA,19.01.2012,10-05751,19.8,Capita Resourcing Social Care & Hou
Nottinghamshire County Council,1111/1001,Adult Social Care and Health,ASCH,Transport Related,CEA,26.01.2012,10-06514,42.3,Capita Resourcing Social Care & Hou
Nottinghamshire County Council,1111/1001,Adult Social Care and Health,ASCH,Transport Related,CEA,27.01.2012,10-05042,9.9,Capita Resourcing
Nottinghamshire County Council,1111/1001,Adult Social Care and Health,ASCH,Supplies & Services,DAA,05.01.2012,10-03554,543.01,Moles Seeds Uk Ltd
Nottinghamshire County Council,1111/1001,Adult Social Care and Health,ASCH,Supplies & Services,DAA,10.01.2012,10-04196,605.23,William Freer Limited
Nottinghamshire County Council,1111/1001,Adult Social Care and Health,ASCH,Supplies & Services,DAA,10.01.2012,10-04368,1400,Trojan Consultants Ltd
Nottinghamshire County Council,1111/1001,Adult Social Care and Health,ASCH,Supplies & Services,DAA,10.01.2012,10-04377,245174.98,British Red Cross Society
Nottinghamshire County Council,1111/1001,Adult Social Care and Health,ASCH,Supplies & Services,DAA,10.01.2012,10-04404,1540,Trojan Consultants Ltd
Nottinghamshire County Council,1111/1001,Adult Social Care and Health,ASCH,Supplies & Services,DAA,10.01.2012,10-04405,10,Making It! Enterprises Ltd
Nottinghamshire County Council,1111/1001,Adult Social Care and Health,ASCH,Supplies & Services,DAA,11.01.2012,10-04449,540,JKF Fabrication Engineering Ltd
Nottinghamshire County Council,1111/1001,Adult Social Care and Health,ASCH,Supplies & Services,DAA,11.01.2012,10-04450,908.88,Lathams Ltd
Nottinghamshire County Council,1111/1001,Adult Social Care and Health,ASCH,Supplies & Services,DAA,13.01.2012,10-04870,23783.26,British Red Cross Society
Nottinghamshire County Council,1111/1001,Adult Social Care and Health,ASCH,Supplies & Services,DAA,17.01.2012,10-05295,1137,Sherwin Williams Uk Coatings Ltd
Nottinghamshire County Council,1111/1001,Adult Social Care and Health,ASCH,Supplies & Services,DAA,19.01.2012,10-05592,330,Making It! Enterprises Ltd
Nottinghamshire County Council,1111/1001,Adult Social Care and Health,ASCH,Supplies & Services,DAA,19.01.2012,10-05730,644.68,Fabrique Du Metal Ltd t/a Advance S
Nottinghamshire County Council,1111/1001,Adult Social Care and Health,ASCH,Supplies & Services,DAA,20.01.2012,10-05793,924.57,Express Lifts Alliance Ltd
Nottinghamshire County Council,1111/1001,Adult Social Care and Health,ASCH,Supplies & Services,DAA,23.01.2012,10-05993,1689.97,The Dukeries College
Nottinghamshire County Council,1111/1001,Adult Social Care and Health,ASCH,Supplies & Services,DAA,24.01.2012,10-06114,1302,Summit Chairs Ltd
Nottinghamshire County Council,1111/1001,Adult Social Care and Health,ASCH,Supplies & Services,DAA,24.01.2012,10-06186,2864,Slack & Co Floorcoverings
Nottinghamshire County Council,1111/1001,Adult Social Care and Health,ASCH,Supplies & Services,DAA,24.01.2012,10-06279,2516.15,Falcon Panel Products Ltd
Nottinghamshire County Council,1111/1001,Adult Social Care and Health,ASCH,Supplies & Services,DAA,26.01.2012,10-06617,1302,Summit Chairs Ltd
Nottinghamshire County Council,1111/1001,Adult Social Care and Health,ASCH,Supplies & Services,DAA,27.01.2012,10-06661,1236.05,Lathams Ltd
Nottinghamshire County Council,1111/1001,Adult Social Care and Health,ASCH,Supplies & Services,DBA,03.01.2012,10-00247,2550.72,Arnold Dairies Ltd
Nottinghamshire County Council,1111/1001,Adult Social Care and Health,ASCH,Supplies & Services,DBA,03.01.2012,10-00253,6473.07,M Maloney Country Butchers & B Ltd
Nottinghamshire County Council,1111/1001,Adult Social Care and Health,ASCH,Supplies & Services,DBA,04.01.2012,10-03542,2726.29,Hallam Country Fresh Foods Ltd
Nottinghamshire County Council,1111/1001,Adult Social Care and Health,ASCH,Supplies & Services,DBA,05.01.2012,10-03763,782.54,Brake Bros Ltd
Nottinghamshire County Council,1111/1001,Adult Social Care and Health,ASCH,Supplies & Services,DBA,06.01.2012,10-03920,600.2,Mkg Food Products Ltd
Nottinghamshire County Council,1111/1001,Adult Social Care and Health,ASCH,Supplies & Services,DBA,06.01.2012,10-03939,1257.3,Brake Bros Ltd
Nottinghamshire County Council,1111/1001,Adult Social Care and Health,ASCH,Supplies & Services,DBA,06.01.2012,10-03960,638.52,Mkg Food Products Ltd
Nottinghamshire County Council,1111/1001,Adult Social Care and Health,ASCH,Supplies & Services,DBA,10.01.2012,10-04366,2903.19,Arnold Dairies Ltd
Nottinghamshire County Council,1111/1001,Adult Social Care and Health,ASCH,Supplies & Services,DBA,10.01.2012,10-04417,540.56,Brake Bros Ltd
Nottinghamshire County Council,1111/1001,Adult Social Care and Health,ASCH,Supplies & Services,DBA,10.01.2012,10-04418,1175.42,Brake Bros Ltd
Nottinghamshire County Council,1111/1001,Adult Social Care and Health,ASCH,Supplies & Services,DBA,11.01.2012,10-04440,6175.63,Brake Bros Ltd
Nottinghamshire County Council,1111/1001,Adult Social Care and Health,ASCH,Supplies & Services,DBA,11.01.2012,10-04500,2325,Foodblenders Ltd
Nottinghamshire County Council,1111/1001,Adult Social Care and Health,ASCH,Supplies & Services,DBA,12.01.2012,10-04520,3405.98,Brake Bros Ltd
Nottinghamshire County Council,1111/1001,Adult Social Care and Health,ASCH,Supplies & Services,DBA,12.01.2012,10-04635,2486.28,Brake Bros Ltd
Nottinghamshire County Council,1111/1001,Adult Social Care and Health,ASCH,Supplies & Services,DBA,12.01.2012,10-04636,1330.13,Brake Bros Ltd
Nottinghamshire County Council,1111/1001,Adult Social Care and Health,ASCH,Supplies & Services,DBA,12.01.2012,10-04637,4369.95,M Maloney Country Butchers & B Ltd
Nottinghamshire County Council,1111/1001,Adult Social Care and Health,ASCH,Supplies & Services,DBA,12.01.2012,10-04639,3558.3,M Maloney Country Butchers & B Ltd
Nottinghamshire County Council,1111/1001,Adult Social Care and Health,ASCH,Supplies & Services,DBA,12.01.2012,10-04640,1231.09,Hallam Country Fresh Foods Ltd
Nottinghamshire County Council,1111/1001,Adult Social Care and Health,ASCH,Supplies & Services,DBA,13.01.2012,10-04782,3966.14,Brake Bros Ltd
Nottinghamshire County Council,1111/1001,Adult Social Care and Health,ASCH,Supplies & Services,DBA,13.01.2012,10-04784,2167.56,Brake Bros Ltd
Nottinghamshire County Council,1111/1001,Adult Social Care and Health,ASCH,Supplies & Services,DBA,13.01.2012,10-04785,2390.13,Brake Bros Ltd
Nottinghamshire County Council,1111/1001,Adult Social Care and Health,ASCH,Supplies & Services,DBA,16.01.2012,10-05002,3073.43,Hallam Country Fresh Foods Ltd
Nottinghamshire County Council,1111/1001,Adult Social Care and Health,ASCH,Supplies & Services,DBA,17.01.2012,10-05359,2887.03,Hallam Country Fresh Foods Ltd
Nottinghamshire County Council,1111/1001,Adult Social Care and Health,ASCH,Supplies & Services,DBA,19.01.2012,10-05731,2156.61,Arnold Dairies Ltd
Nottinghamshire County Council,1111/1001,Adult Social Care and Health,ASCH,Supplies & Services,DBA,19.01.2012,10-05732,2124.92,Arnold Dairies Ltd
Nottinghamshire County Council,1111/1001,Adult Social Care and Health,ASCH,Supplies & Services,DBA,20.01.2012,10-05777,887.5,Foodblenders Ltd
Nottinghamshire County Council,1111/1001,Adult Social Care and Health,ASCH,Supplies & Services,DBA,20.01.2012,10-05796,2366.7,Mkg Food Products Ltd
Nottinghamshire County Council,1111/1001,Adult Social Care and Health,ASCH,Supplies & Services,DBA,23.01.2012,10-05904,555.62,Mkg Food Products Ltd
Nottinghamshire County Council,1111/1001,Adult Social Care and Health,ASCH,Supplies & Services,DBA,25.01.2012,10-06335,2965.16,Hallam Country Fresh Foods Ltd
Nottinghamshire County Council,1111/1001,Adult Social Care and Health,ASCH,Supplies & Services,DBA,26.01.2012,10-06472,2325,Foodblenders Ltd
Nottinghamshire County Council,1111/1001,Adult Social Care and Health,ASCH,Supplies & Services,DBA,26.01.2012,10-06509,3119.47,Brake Bros Ltd
Nottinghamshire County Council,1111/1001,Adult Social Care and Health,ASCH,Supplies & Services,DBA,26.01.2012,10-06521,207.05,Brake Bros Ltd
Nottinghamshire County Council,1111/1001,Adult Social Care and Health,ASCH,Supplies & Services,DBA,26.01.2012,10-06522,1361.2,Brake Bros Ltd
Nottinghamshire County Council,1111/1001,Adult Social Care and Health,ASCH,Supplies & Services,DBA,26.01.2012,10-06523,4763.89,Brake Bros Ltd
Nottinghamshire County Council,1111/1001,Adult Social Care and Health,ASCH,Supplies & Services,DBA,26.01.2012,10-06524,1027.26,Brake Bros Ltd
Nottinghamshire County Council,1111/1001,Adult Social Care and Health,ASCH,Supplies & Services,DBA,31.01.2012,10-09993,2465.75,Arnold Dairies Ltd
Nottinghamshire County Council,1111/1001,Adult Social Care and Health,ASCH,Supplies & Services,DCA,17.01.2012,10-04374,961.88,Sunlight Service Group - (DUPLICATE
Nottinghamshire County Council,1111/1001,Adult Social Care and Health,ASCH,Supplies & Services,DEA,10.01.2012,10-04414,541.5,B Byrne
Nottinghamshire County Council,1111/1001,Adult Social Care and Health,ASCH,Supplies & Services,DEA,13.01.2012,10-04415,655,New College Nottingham
Nottinghamshire County Council,1111/1001,Adult Social Care and Health,ASCH,Supplies & Services,DEA,13.01.2012,10-04416,531,New College Nottingham
Nottinghamshire County Council,1111/1001,Adult Social Care and Health,ASCH,Supplies & Services,DEA,13.01.2012,10-04875,1185.5,Allan Breeton
Nottinghamshire County Council,1111/1001,Adult Social Care and Health,ASCH,Supplies & Services,DEA,13.01.2012,10-04877,1141.4,Allan Breeton
Nottinghamshire County Council,1111/1001,Adult Social Care and Health,ASCH,Supplies & Services,DEA,13.01.2012,10-04969,746.2,Community Catalysts Cic
Nottinghamshire County Council,1111/1001,Adult Social Care and Health,ASCH,Supplies & Services,DEA,18.01.2012,10-05419,1023.6,D Leak
Nottinghamshire County Council,1111/1001,Adult Social Care and Health,ASCH,Supplies & Services,DEA,18.01.2012,10-05461,8823.8,Lambert Smith Hampton
Nottinghamshire County Council,1111/1001,Adult Social Care and Health,ASCH,Supplies & Services,DEA,23.01.2012,10-05985,25962.13,Nottinghamshire Healthcare Nhs Trus
Nottinghamshire County Council,1111/1001,Adult Social Care and Health,ASCH,Supplies & Services,DEA,23.01.2012,10-05993,12455.3,The Dukeries College
Nottinghamshire County Council,1111/1001,Adult Social Care and Health,ASCH,Supplies & Services,DEA,24.01.2012,10-06080,784.5,Pgs Joinery Services Ltd
Nottinghamshire County Council,1111/1001,Adult Social Care and Health,ASCH,Supplies & Services,DEA,24.01.2012,10-06089,781,Pgs Joinery Services Ltd
Nottinghamshire County Council,1111/1001,Adult Social Care and Health,ASCH,Supplies & Services,DEA,24.01.2012,10-06094,934,S & L Warren
Nottinghamshire County Council,1111/1001,Adult Social Care and Health,ASCH,Supplies & Services,DEA,24.01.2012,10-06158,632.5,Elf Property Care
Nottinghamshire County Council,1111/1001,Adult Social Care and Health,ASCH,Supplies & Services,DEA,26.01.2012,10-10121,1146.6,H Richmond
Nottinghamshire County Council,1111/1001,Adult Social Care and Health,ASCH,Supplies & Services,DFA,09.01.2012,10-04121,695.61,Virgin Media
Nottinghamshire County Council,1111/1001,Adult Social Care and Health,ASCH,Supplies & Services,DFA,10.01.2012,10-04405,81.94,Making It! Enterprises Ltd
Nottinghamshire County Council,1111/1001,Adult Social Care and Health,ASCH,Supplies & Services,DFA,19.01.2012,10-05592,127.19,Making It! Enterprises Ltd
Nottinghamshire County Council,1111/1001,Adult Social Care and Health,ASCH,Supplies & Services,DFA,26.01.2012,10-06489,580.55,British Telecommunications Plc
Nottinghamshire County Council,1111/1001,Adult Social Care and Health,ASCH,Supplies & Services,DFA,27.01.2012,10-06787,1585,Tallon Monitoring Ltd
Nottinghamshire County Council,1111/1001,Adult Social Care and Health,ASCH,Supplies & Services,DGA,18.01.2012,10-05492,525.5,Care & Health Law
Nottinghamshire County Council,1111/1001,Adult Social Care and Health,ASCH,Supplies & Services,DHA,04.01.2012,10-03422,2640,Norsaca Society Office
Nottinghamshire County Council,1111/1001,Adult Social Care and Health,ASCH,Supplies & Services,DHA,05.01.2012,10-03638,1512,Alzheimers Society
Nottinghamshire County Council,1111/1001,Adult Social Care and Health,ASCH,Supplies & Services,DHA,05.01.2012,10-03639,2888,Age Uk Nottm & Notts
Nottinghamshire County Council,1111/1001,Adult Social Care and Health,ASCH,Supplies & Services,DHA,06.01.2012,10-03917,43523.09,Carers Federation Ltd
Nottinghamshire County Council,1111/1001,Adult Social Care and Health,ASCH,Supplies & Services,DHA,10.01.2012,10-04137,2175,Norsaca Society Office
Nottinghamshire County Council,1111/1001,Adult Social Care and Health,ASCH,Supplies & Services,DHA,13.01.2012,10-04123,2298.25,Care & Comfort Community Services
Nottinghamshire County Council,1111/1001,Adult Social Care and Health,ASCH,Supplies & Services,DHA,23.01.2012,10-05864,1216,Age Uk Nottm & Notts
Nottinghamshire County Council,1111/1001,Adult Social Care and Health,ASCH,Supplies & Services,DHA,23.01.2012,10-05865,1748,Age Uk Nottm & Notts
Nottinghamshire County Council,1111/1001,Adult Social Care and Health,ASCH,Supplies & Services,DHA,23.01.2012,10-05866,1824,Age Uk Nottm & Notts
Nottinghamshire County Council,1111/1001,Adult Social Care and Health,ASCH,Supplies & Services,DHA,23.01.2012,10-05869,660,Headway Nottingham
Nottinghamshire County Council,1111/1001,Adult Social Care and Health,ASCH,Supplies & Services,DHA,23.01.2012,10-05879,1110,Headway Nottingham
Nottinghamshire County Council,1111/1001,Adult Social Care and Health,ASCH,Supplies & Services,DHA,23.01.2012,10-05881,660,Headway Nottingham
Nottinghamshire County Council,1111/1001,Adult Social Care and Health,ASCH,Supplies & Services,DKA,10.01.2012,10-04377,44469.27,British Red Cross Society
Nottinghamshire County Council,1111/1001,Adult Social Care and Health,ASCH,Supplies & Services,DKA,10.01.2012,10-04438,1207.95,Nottingham Rehab Ltd
Nottinghamshire County Council,1111/1001,Adult Social Care and Health,ASCH,Supplies & Services,DKA,13.01.2012,10-04870,29616.96,British Red Cross Society
Nottinghamshire County Council,1111/1001,Adult Social Care and Health,ASCH,Supplies & Services,DKA,17.01.2012,10-05334,678.6,Premier Pets Hotel Ltd
Nottinghamshire County Council,1111/1001,Adult Social Care and Health,ASCH,Supplies & Services,DKA,24.01.2012,10-10099,2000,Envirotec
Nottinghamshire County Council,1111/1001,Adult Social Care and Health,ASCH,Supplies & Services,DKA,30.01.2012,10-09915,1000,Baker Street Group
Nottinghamshire County Council,1111/1001,Adult Social Care and Health,ASCH,Third Party Payments,ECA,10.01.2012,10-04377,51290.34,British Red Cross Society
Nottinghamshire County Council,1111/1001,Adult Social Care and Health,ASCH,Third Party Payments,ECA,13.01.2012,10-04870,28860.69,British Red Cross Society
Nottinghamshire County Council,1111/1001,Adult Social Care and Health,ASCH,Third Party Payments,ECA,27.01.2012,10-06676,15757.5,Nottinghamshire County Teaching Pct
Nottinghamshire County Council,1111/1001,Adult Social Care and Health,ASCH,Third Party Payments,EGA,03.01.2012,10-00033,1724,Forest Hill Nursing Home
Nottinghamshire County Council,1111/1001,Adult Social Care and Health,ASCH,Third Party Payments,EGA,03.01.2012,10-00034,1724,Forest Hill Nursing Home
Nottinghamshire County Council,1111/1001,Adult Social Care and Health,ASCH,Third Party Payments,EGA,03.01.2012,10-00035,1952,Forest Hill Nursing Home
Nottinghamshire County Council,1111/1001,Adult Social Care and Health,ASCH,Third Party Payments,EGA,03.01.2012,10-00036,1724,Forest Hill Nursing Home
Nottinghamshire County Council,1111/1001,Adult Social Care and Health,ASCH,Third Party Payments,EGA,03.01.2012,10-00037,1724,Forest Hill Nursing Home
Nottinghamshire County Council,1111/1001,Adult Social Care and Health,ASCH,Third Party Payments,EGA,03.01.2012,10-00038,1724,Forest Hill Nursing Home
Nottinghamshire County Council,1111/1001,Adult Social Care and Health,ASCH,Third Party Payments,EGA,03.01.2012,10-00039,1724,Forest Hill Nursing Home
Nottinghamshire County Council,1111/1001,Adult Social Care and Health,ASCH,Third Party Payments,EGA,03.01.2012,10-00040,1724,Forest Hill Nursing Home
Nottinghamshire County Council,1111/1001,Adult Social Care and Health,ASCH,Third Party Payments,EGA,03.01.2012,10-00041,1952,Forest Hill Nursing Home
Nottinghamshire County Council,1111/1001,Adult Social Care and Health,ASCH,Third Party Payments,EGA,03.01.2012,10-00042,1724,Forest Hill Nursing Home
Nottinghamshire County Council,1111/1001,Adult Social Care and Health,ASCH,Third Party Payments,EGA,03.01.2012,10-00043,1724,Forest Hill Nursing Home
Nottinghamshire County Council,1111/1001,Adult Social Care and Health,ASCH,Third Party Payments,EGA,03.01.2012,10-00044,1952,Forest Hill Nursing Home
Nottinghamshire County Council,1111/1001,Adult Social Care and Health,ASCH,Third Party Payments,EGA,03.01.2012,10-00045,1724,Forest Hill Nursing Home
Nottinghamshire County Council,1111/1001,Adult Social Care and Health,ASCH,Third Party Payments,EGA,03.01.2012,10-00046,1724,Forest Hill Nursing Home
Nottinghamshire County Council,1111/1001,Adult Social Care and Health,ASCH,Third Party Payments,EGA,03.01.2012,10-00047,1724,Forest Hill Nursing Home
Nottinghamshire County Council,1111/1001,Adult Social Care and Health,ASCH,Third Party Payments,EGA,03.01.2012,10-00048,3651.32,N C H A (Claremont Road Project)
Nottinghamshire County Council,1111/1001,Adult Social Care and Health,ASCH,Third Party Payments,EGA,03.01.2012,10-00049,3596,N C H A (Claremont Road Project)
Nottinghamshire County Council,1111/1001,Adult Social Care and Health,ASCH,Third Party Payments,EGA,03.01.2012,10-00240,708.24,Reach Housing & Enablement Serv Ltd
Nottinghamshire County Council,1111/1001,Adult Social Care and Health,ASCH,Third Party Payments,EGA,03.01.2012,10-00261,5292.85,Scope Central Trading
Nottinghamshire County Council,1111/1001,Adult Social Care and Health,ASCH,Third Party Payments,EGA,03.01.2012,10-00267,6400,Sussex Health Care
Nottinghamshire County Council,1111/1001,Adult Social Care and Health,ASCH,Third Party Payments,EGA,03.01.2012,10-00268,3546.4,Hilton Park Care Centre
Nottinghamshire County Council,1111/1001,Adult Social Care and Health,ASCH,Third Party Payments,EGA,03.01.2012,10-00269,1985.36,The Royal Care Home
Nottinghamshire County Council,1111/1001,Adult Social Care and Health,ASCH,Third Party Payments,EGA,03.01.2012,10-00270,1985.4,The Royal Care Home
Nottinghamshire County Council,1111/1001,Adult Social Care and Health,ASCH,Third Party Payments,EGA,03.01.2012,10-00271,1725.92,The Royal Care Home
Nottinghamshire County Council,1111/1001,Adult Social Care and Health,ASCH,Third Party Payments,EGA,03.01.2012,10-00272,2160,Hembury Fort House
Nottinghamshire County Council,1111/1001,Adult Social Care and Health,ASCH,Third Party Payments,EGA,03.01.2012,10-00273,7873.92,Mencap 547
Nottinghamshire County Council,1111/1001,Adult Social Care and Health,ASCH,Third Party Payments,EGA,03.01.2012,10-00274,7873.92,Mencap 547
Nottinghamshire County Council,1111/1001,Adult Social Care and Health,ASCH,Third Party Payments,EGA,03.01.2012,10-00275,7873.92,Mencap 547
Nottinghamshire County Council,1111/1001,Adult Social Care and Health,ASCH,Third Party Payments,EGA,03.01.2012,10-00276,7873.92,Mencap 547
Nottinghamshire County Council,1111/1001,Adult Social Care and Health,ASCH,Third Party Payments,EGA,03.01.2012,10-00277,3544,Avery Lodge Care Home
Nottinghamshire County Council,1111/1001,Adult Social Care and Health,ASCH,Third Party Payments,EGA,03.01.2012,10-00278,3728,Avery Lodge Care Home
Nottinghamshire County Council,1111/1001,Adult Social Care and Health,ASCH,Third Party Payments,EGA,03.01.2012,10-00279,14829.12,Ashfield Court
Nottinghamshire County Council,1111/1001,Adult Social Care and Health,ASCH,Third Party Payments,EGA,03.01.2012,10-00280,11949.52,Ashfield Court
Nottinghamshire County Council,1111/1001,Adult Social Care and Health,ASCH,Third Party Payments,EGA,03.01.2012,10-00281,12212.16,Ashfield Court
Nottinghamshire County Council,1111/1001,Adult Social Care and Health,ASCH,Third Party Payments,EGA,03.01.2012,10-00282,11270.16,Ashfield Court
Nottinghamshire County Council,1111/1001,Adult Social Care and Health,ASCH,Third Party Payments,EGA,03.01.2012,10-00283,13608,Ashfield Court
Nottinghamshire County Council,1111/1001,Adult Social Care and Health,ASCH,Third Party Payments,EGA,03.01.2012,10-00284,12282.08,Ashfield Court
Nottinghamshire County Council,1111/1001,Adult Social Care and Health,ASCH,Third Party Payments,EGA,03.01.2012,10-00285,9574.4,Ashfield Court
Nottinghamshire County Council,1111/1001,Adult Social Care and Health,ASCH,Third Party Payments,EGA,03.01.2012,10-00286,11470.8,Ashfield Court
Nottinghamshire County Council,1111/1001,Adult Social Care and Health,ASCH,Third Party Payments,EGA,03.01.2012,10-00287,1641.14,Bramcote Hills Care Home
Nottinghamshire County Council,1111/1001,Adult Social Care and Health,ASCH,Third Party Payments,EGA,03.01.2012,10-00288,845.14,Bramcote Hills Care Home
Nottinghamshire County Council,1111/1001,Adult Social Care and Health,ASCH,Third Party Payments,EGA,03.01.2012,10-00289,1624,Bramcote Hills Care Home
Nottinghamshire County Council,1111/1001,Adult Social Care and Health,ASCH,Third Party Payments,EGA,03.01.2012,10-00290,718,Bramcote Hills Care Home
Nottinghamshire County Council,1111/1001,Adult Social Care and Health,ASCH,Third Party Payments,EGA,03.01.2012,10-00291,1589.86,Bramcote Hills Care Home
Nottinghamshire County Council,1111/1001,Adult Social Care and Health,ASCH,Third Party Payments,EGA,03.01.2012,10-00292,1795,Bramcote Hills Care Home
Nottinghamshire County Council,1111/1001,Adult Social Care and Health,ASCH,Third Party Payments,EGA,03.01.2012,10-00293,1392,Bramcote Hills Care Home
Nottinghamshire County Council,1111/1001,Adult Social Care and Health,ASCH,Third Party Payments,EGA,03.01.2012,10-00294,1757.2,Bramcote Hills Care Home
Nottinghamshire County Council,1111/1001,Adult Social Care and Health,ASCH,Third Party Payments,EGA,03.01.2012,10-00295,944.57,Bramcote Hills Care Home
Nottinghamshire County Council,1111/1001,Adult Social Care and Health,ASCH,Third Party Payments,EGA,03.01.2012,10-00296,1488.86,Bramcote Hills Care Home
Nottinghamshire County Council,1111/1001,Adult Social Care and Health,ASCH,Third Party Payments,EGA,03.01.2012,10-00297,2100,Bramcote Hills Care Home
Nottinghamshire County Council,1111/1001,Adult Social Care and Health,ASCH,Third Party Payments,EGA,03.01.2012,10-00298,772,Bramcote Hills Care Home
Nottinghamshire County Council,1111/1001,Adult Social Care and Health,ASCH,Third Party Payments,EGA,03.01.2012,10-00299,1624,Bramcote Hills Care Home
Nottinghamshire County Council,1111/1001,Adult Social Care and Health,ASCH,Third Party Payments,EGA,03.01.2012,10-00300,1302,Bramcote Hills Care Home
Nottinghamshire County Council,1111/1001,Adult Social Care and Health,ASCH,Third Party Payments,EGA,03.01.2012,10-00301,1342.29,Bramcote Hills Care Home
Nottinghamshire County Council,1111/1001,Adult Social Care and Health,ASCH,Third Party Payments,EGA,03.01.2012,10-00302,1564,Bramcote Hills Care Home
Nottinghamshire County Council,1111/1001,Adult Social Care and Health,ASCH,Third Party Payments,EGA,03.01.2012,10-00303,1436,Bramcote Hills Care Home
Nottinghamshire County Council,1111/1001,Adult Social Care and Health,ASCH,Third Party Payments,EGA,03.01.2012,10-00304,5000,Because We Care Ltd
Nottinghamshire County Council,1111/1001,Adult Social Care and Health,ASCH,Third Party Payments,EGA,03.01.2012,10-00305,4600,Because We Care Ltd
Nottinghamshire County Council,1111/1001,Adult Social Care and Health,ASCH,Third Party Payments,EGA,03.01.2012,10-00306,4480,Because We Care Ltd
Nottinghamshire County Council,1111/1001,Adult Social Care and Health,ASCH,Third Party Payments,EGA,03.01.2012,10-00307,9450.4,Creative Care (East Midlands) Ltd
Nottinghamshire County Council,1111/1001,Adult Social Care and Health,ASCH,Third Party Payments,EGA,03.01.2012,10-00308,9758.12,Creative Care (East Midlands) Ltd
Nottinghamshire County Council,1111/1001,Adult Social Care and Health,ASCH,Third Party Payments,EGA,03.01.2012,10-00309,9475.84,Creative Care (East Midlands) Ltd
Nottinghamshire County Council,1111/1001,Adult Social Care and Health,ASCH,Third Party Payments,EGA,03.01.2012,10-00310,1392,Redlands Christian Carehome Aka Eve
Nottinghamshire County Council,1111/1001,Adult Social Care and Health,ASCH,Third Party Payments,EGA,03.01.2012,10-00311,1392,Redlands Christian Carehome Aka Eve
Nottinghamshire County Council,1111/1001,Adult Social Care and Health,ASCH,Third Party Payments,EGA,03.01.2012,10-00312,1392,Redlands Christian Carehome Aka Eve
Nottinghamshire County Council,1111/1001,Adult Social Care and Health,ASCH,Third Party Payments,EGA,03.01.2012,10-00313,1392,Redlands Christian Carehome Aka Eve
Nottinghamshire County Council,1111/1001,Adult Social Care and Health,ASCH,Third Party Payments,EGA,03.01.2012,10-00314,1968,Monkstone House
Nottinghamshire County Council,1111/1001,Adult Social Care and Health,ASCH,Third Party Payments,EGA,03.01.2012,10-00315,9710.48,Freedom Care Home
Nottinghamshire County Council,1111/1001,Adult Social Care and Health,ASCH,Third Party Payments,EGA,03.01.2012,10-00316,3561.44,Corner View
Nottinghamshire County Council,1111/1001,Adult Social Care and Health,ASCH,Third Party Payments,EGA,03.01.2012,10-00317,3000,Corner View
Nottinghamshire County Council,1111/1001,Adult Social Care and Health,ASCH,Third Party Payments,EGA,03.01.2012,10-00318,3561.44,Corner View
Nottinghamshire County Council,1111/1001,Adult Social Care and Health,ASCH,Third Party Payments,EGA,03.01.2012,10-00319,3561.44,Corner View
Nottinghamshire County Council,1111/1001,Adult Social Care and Health,ASCH,Third Party Payments,EGA,03.01.2012,10-00322,756,The Grange Nursing Home
Nottinghamshire County Council,1111/1001,Adult Social Care and Health,ASCH,Third Party Payments,EGA,03.01.2012,10-00323,1544,The Grange Nursing Home
Nottinghamshire County Council,1111/1001,Adult Social Care and Health,ASCH,Third Party Payments,EGA,03.01.2012,10-00324,1436,The Grange Nursing Home
Nottinghamshire County Council,1111/1001,Adult Social Care and Health,ASCH,Third Party Payments,EGA,03.01.2012,10-00325,1620,The Grange Nursing Home
Nottinghamshire County Council,1111/1001,Adult Social Care and Health,ASCH,Third Party Payments,EGA,03.01.2012,10-00326,1504,The Grange Nursing Home
Nottinghamshire County Council,1111/1001,Adult Social Care and Health,ASCH,Third Party Payments,EGA,03.01.2012,10-00327,1392,The Grange Nursing Home
Nottinghamshire County Council,1111/1001,Adult Social Care and Health,ASCH,Third Party Payments,EGA,03.01.2012,10-00328,1504,The Grange Nursing Home
Nottinghamshire County Council,1111/1001,Adult Social Care and Health,ASCH,Third Party Payments,EGA,03.01.2012,10-00329,1544,The Grange Nursing Home
Nottinghamshire County Council,1111/1001,Adult Social Care and Health,ASCH,Third Party Payments,EGA,03.01.2012,10-00330,1504,The Grange Nursing Home
Nottinghamshire County Council,1111/1001,Adult Social Care and Health,ASCH,Third Party Payments,EGA,03.01.2012,10-00331,1680,The Grange Nursing Home
Nottinghamshire County Council,1111/1001,Adult Social Care and Health,ASCH,Third Party Payments,EGA,03.01.2012,10-00332,1544,The Grange Nursing Home
Nottinghamshire County Council,1111/1001,Adult Social Care and Health,ASCH,Third Party Payments,EGA,03.01.2012,10-00333,1592,The Grange Nursing Home
Nottinghamshire County Council,1111/1001,Adult Social Care and Health,ASCH,Third Party Payments,EGA,03.01.2012,10-00334,1034.46,The Cedars & Larches Care Home
Nottinghamshire County Council,1111/1001,Adult Social Care and Health,ASCH,Third Party Payments,EGA,03.01.2012,10-00335,1700,Arlington House
Nottinghamshire County Council,1111/1001,Adult Social Care and Health,ASCH,Third Party Payments,EGA,03.01.2012,10-00337,1906.06,St Marys Convent
Nottinghamshire County Council,1111/1001,Adult Social Care and Health,ASCH,Third Party Payments,EGA,03.01.2012,10-00341,13200,Kenwyn Care Home
Nottinghamshire County Council,1111/1001,Adult Social Care and Health,ASCH,Third Party Payments,EGA,03.01.2012,10-00342,2821,The Dovecote
Nottinghamshire County Council,1111/1001,Adult Social Care and Health,ASCH,Third Party Payments,EGA,03.01.2012,10-00343,2137.04,The Dovecote
Nottinghamshire County Council,1111/1001,Adult Social Care and Health,ASCH,Third Party Payments,EGA,03.01.2012,10-00344,2027.76,The Dovecote
Nottinghamshire County Council,1111/1001,Adult Social Care and Health,ASCH,Third Party Payments,EGA,03.01.2012,10-00345,4366.4,The Dovecote
Nottinghamshire County Council,1111/1001,Adult Social Care and Health,ASCH,Third Party Payments,EGA,03.01.2012,10-00346,2453.52,The Dovecote
Nottinghamshire County Council,1111/1001,Adult Social Care and Health,ASCH,Third Party Payments,EGA,03.01.2012,10-00347,2027.76,The Dovecote
Nottinghamshire County Council,1111/1001,Adult Social Care and Health,ASCH,Third Party Payments,EGA,03.01.2012,10-00348,1827.84,The Dovecote
Nottinghamshire County Council,1111/1001,Adult Social Care and Health,ASCH,Third Party Payments,EGA,03.01.2012,10-00349,1827.84,The Dovecote
Nottinghamshire County Council,1111/1001,Adult Social Care and Health,ASCH,Third Party Payments,EGA,03.01.2012,10-00350,1827.84,The Dovecote
Nottinghamshire County Council,1111/1001,Adult Social Care and Health,ASCH,Third Party Payments,EGA,03.01.2012,10-00351,2027.76,The Dovecote
